Workbook

Sheet Data

Sheet ABS
A1: =SUM(A3:A5) -> 0 | B1: =SUM(B3:B5) -> 0 | C1: =SUM(C3:C5) -> 0 | D1: Total
A2: Failed | B2: Error | C2: NotSupport | D2: Verification Area
A3: =COUNTIF(INDIRECT(D3),"=false") -> 0 | B3: =COUNTIF(INDIRECT(D3),"=Error") -> 0 | C3: =COUNTIF(INDIRECT(D3),"=NSup") -> 0 | D3: E12:E53
A9: ABS(number)
A11: Data | C11: Formula | D11: Expected | E11: Check | F11: Mask | G11: Comments | H11: Description
C12: =ABS(1) -> 1 | D12: 1 | E12: =IF(F12=0,IF(ISERR(C12),"Error", IF(C12=D12,TRUE,FALSE)),"NSup") -> TRUE
C13: =ABS(1.23987349283742E+24) -> 1.239873493e+24 | D13: 1.24E+24 | E13: TRUE | H13: Scientific
C14: 12.34543 | D14: 12.34543 | E14: TRUE | H14: Decimal
C15: =ABS("-12") -> 12 | D15: 12 | E15: TRUE | H15: Text - Negative number
C16: =ABS("10000.234") -> 10000.234 | D16: 10000.234 | E16: TRUE | H16: Text
C17: =ABS(-1.33333333333333) -> 1.333333333 | D17: 1.333333333 | E17: TRUE | H17: Fraction
A18: 394858.2392 | C18: =ABS(A18) -> 394858.2392 | D18: 394858.2392 | E18: TRUE
A19: -1.36913 | C19: 1.36913 | D19: 1.36913 | E19: TRUE
A20: 173.847849 | C20: 173.847849 | D20: 173.847849 | E20: TRUE
A21: -0.759924 | C21: 0.759924 | D21: 0.759924 | E21: TRUE
A22: 0.020063216 | C22: 0.020063216 | D22: 0.020063216 | E22: TRUE
A23: -35.3555 | C23: 35.3555 | D23: 35.3555 | E23: TRUE
A24: 417.3 | C24: 417.3 | D24: 417.3 | E24: TRUE
A25: -1400.4 | C25: 1400.4 | D25: 1400.4 | E25: TRUE
A26: 7789593.66 | C26: 7789593.66 | D26: 7789593.66 | E26: TRUE
A27: -41069.94769 | C27: 41069.94769 | D27: 41069.94769 | E27: TRUE
A28: 1 | C28: 1 | D28: 1 | E28: TRUE
A29: -3.60572 | C29: 3.60572 | D29: 3.60572 | E29: TRUE
A30: 2.5 | C30: 2.5 | D30: 2.5 | E30: TRUE
A31: -0.56602 | C31: 0.56602 | D31: 0.56602 | E31: TRUE
A32: 1.16 | C32: 1.16 | D32: 1.16 | E32: TRUE
A33: -2 | C33: 2 | D33: 2 | E33: TRUE
A34: 22.43 | C34: 22.43 | D34: 22.43 | E34: TRUE
A35: -4.6369 | C35: 4.6369 | D35: 4.6369 | E35: TRUE
A36: $0.38 | C36: 0.381676 | D36: 0.381676 | E36: TRUE | H36: Currency
A37: ($24.95) | C37: 24.94692 | D37: 24.94692 | E37: TRUE
A38: $1.22 | C38: 1.22469659 | D38: 1.22469659 | E38: TRUE
A39: ($0.67) | C39: 0.668 | D39: 0.668 | E39: TRUE
A40: 164.00% | C40: 1.64 | D40: 1.64 | E40: TRUE | H40: Percentage
A41: -55.03% | C41: 0.55028 | D41: 0.55028 | E41: TRUE
A42: 12500.00% | C42: 125 | D42: 125 | E42: TRUE
A43: 0.00% | C43: 0 | D43: 0 | E43: TRUE
A44: 0.9285 | C44: 0.9285 | D44: 0.9285 | E44: TRUE | H44: Fraction
A45: -0.56 | C45: 0.56 | D45: 0.56 | E45: TRUE
A46: 21.26879 | C46: 21.26879 | D46: 21.26879 | E46: TRUE
A47: -1.730056 | C47: 1.730056 | D47: 1.730056 | E47: TRUE
A48: 15302.9001 | C48: 15302.9001 | D48: 15302.9001 | E48: TRUE | H48: Text
A49: -111.6926 | C49: 111.6926 | D49: 111.6926 | E49: TRUE
A50: 10.77633 | C50: 10.77633 | D50: 10.77633 | E50: TRUE
A51: -181549591913735 | C51: 181549591913735 | D51: 181549591913735 | E51: TRUE
A52: 93.192 | C52: 93.192 | D52: 93.192 | E52: TRUE
A53: -4.4 | C53: 4.4 | D53: 4.4 | E53: TRUE

Sheet ACOS
A1: =SUM(A3:A5) -> 0 | B1: =SUM(B3:B5) -> 3 | C1: =SUM(C3:C5) -> 0 | D1: Total
A2: Failed | B2: Error | C2: NotSupport | D2: Verification Area
A3: =COUNTIF(INDIRECT(D3),"=false") -> 0 | B3: =COUNTIF(INDIRECT(D3),"=Error") -> 3 | C3: =COUNTIF(INDIRECT(D3),"=NSup") -> 0 | D3: E12:E203
A9: ACOS(number)
A11: Data | C11: Formula | D11: Expected | E11: Check | F11: Mask | G11: Comments | H11: Description
A12: 0.00 | B12: =C12/PI()*180 -> 90 | C12: =ACOS(A12) -> 1.570796327 | D12: 1.570796327 | E12: =IF(F12=0,IF(ISERR(C12),"Error", IF(C12=D12,TRUE,FALSE)),"NSup") -> TRUE
A13: 1 | B13: 0 | C13: =ACOS(A13) -> 0 | D13: 0 | E13: TRUE
A14: -1 | B14: 180 | C14: =ACOS(A14) -> 3.141592654 | D14: 3.141592654 | E14: TRUE
A15: 0.9986 | B15: 3.032161498 | C15: =ACOS(A15) -> 0.05292120159 | D15: 0.05292120159 | E15: TRUE | H15: random number between domain of definition
B16: 11.47834095 | C16: =ACOS("0.98") -> 0.2003348423 | D16: 0.2003348423 | E16: TRUE | H16: text
A17: 0.96463013 | B17: 15.2842039 | C17: =ACOS(A17) -> 0.2667596816 | D17: 0.2667596816 | E17: TRUE
A18: 0.9395 | B18: 20.03224323 | C18: =ACOS(A18) -> 0.3496286009 | D18: 0.3496286009 | E18: TRUE
B19: 23.07391807 | C19: =ACOS(0.92) -> 0.4027158416 | D19: 0.4027158416 | E19: TRUE
A20: 0.91427612 | B20: 23.89686523 | C20: =ACOS(A20) -> 0.4170789792 | D20: 0.4170789792 | E20: TRUE
A21: 0.91 | B21: 24.49464847 | C21: =ACOS(A21) -> 0.4275122649 | D21: 0.4275122649 | E21: TRUE
A22: 0.86 | B22: 30.68341711 | C22: =ACOS(A22) -> 0.5355266543 | D22: 0.5355266543 | E22: TRUE
A23: 0.84 | B23: 32.85988038 | C23: =ACOS(A23) -> 0.5735131044 | D23: 0.5735131044 | E23: TRUE
A24: 0.82 | B24: 34.91520625 | C24: =ACOS(A24) -> 0.609385308 | D24: 0.609385308 | E24: TRUE
B25: 37.06996753 | C25: =ACOS(0.7979) -> 0.6469929871 | D25: 0.6469929871 | E25: TRUE
A26: 0.7734 | B26: 39.33980458 | C26: =ACOS(A26) -> 0.6866091171 | D26: 0.6866091171 | E26: TRUE
A27: 0.7649 | B27: 40.10190361 | C27: 0.6999102543 | D27: 0.6999102543 | E27: TRUE
A28: 0.74 | B28: 42.26858443 | C28: 0.7377259685 | D28: 0.7377259685 | E28: TRUE
A29: 0.7004 | B29: 45.54089513 | C29: 0.7948385643 | D29: 0.7948385643 | E29: TRUE
A30: 0.65 | B30: 49.45839813 | C30: 0.8632118901 | D30: 0.8632118901 | E30: TRUE
A31: 0.6306 | B31: 50.90559667 | C31: 0.8884702695 | D31: 0.8884702695 | E31: TRUE
A32: 0.6129 | B32: 52.20051147 | C32: 0.9110707964 | D32: 0.9110707964 | E32: TRUE
A33: 0.60498047 | B33: 52.77256348 | C33: 0.9210549874 | D33: 0.9210549874 | E33: TRUE
A34: 0.58 | B34: 54.54945736 | C34: 0.9520676361 | D34: 0.9520676361 | E34: TRUE
A35: 0.57 | B35: 55.24977425 | C35: 0.9642904716 | D35: 0.9642904716 | E35: TRUE
A36: 0.561 | B36: 55.87501735 | C36: 0.9752030224 | D36: 0.9752030224 | E36: TRUE
A37: 0.56 | B37: 55.94420226 | C37: 0.9764105268 | D37: 0.9764105268 | E37: TRUE
A38: 0.55 | B38: 56.63298703 | C38: 0.9884320889 | D38: 0.9884320889 | E38: TRUE
A39: 0.54040527 | B39: 57.28876841 | C39: 0.9998776331 | D39: 0.9998776331 | E39: TRUE
A40: 0.53125 | B40: 57.91004874 | C40: 1.010721021 | D40: 1.010721021 | E40: TRUE
A41: 0.53 | B41: 57.99454517 | C41: 1.012195761 | D41: 1.012195761 | E41: TRUE
A42: 0.5 | B42: 60 | C42: 1.047197551 | D42: 1.047197551 | E42: TRUE
A43: 0.4968 | B43: 60.21148543 | C43: 1.050888668 | D43: 1.050888668 | E43: TRUE
A44: 0.48284912 | B44: =C44/PI()*180 -> 61.12835154 | C44: 1.066891001 | D44: 1.066891001 | E44: =IF(F44=0,IF(ISERR(C44),"Error", IF(C44=D44,TRUE,FALSE)),"NSup") -> TRUE
A45: 0.47 | B45: 61.96570347 | C45: 1.081505549 | D45: 1.081505549 | E45: TRUE
A46: 0.44 | B46: 63.89611886 | C46: 1.115197653 | D46: 1.115197653 | E46: TRUE
A47: 0.43 | B47: 64.53243986 | C47: 1.12630355 | D47: 1.12630355 | E47: TRUE
A48: 0.41955566 | B48: 65.19346237 | C48: 1.137840569 | D48: 1.137840569 | E48: TRUE
A49: 0.40579224 | B49: 66.05921749 | C49: 1.152950847 | D49: 1.152950847 | E49: TRUE
A50: 0.3938 | B50: 66.80884587 | C50: 1.16603433 | D50: 1.16603433 | E50: TRUE
A51: 0.37 | B51: 68.28438272 | C51: 1.191787306 | D51: 1.191787306 | E51: TRUE
A52: 0.36895752 | B52: 68.3486608 | C52: 1.19290917 | D52: 1.19290917 | E52: TRUE
A53: 0.36 | B53: 68.89980398 | C53: 1.202528433 | D53: 1.202528433 | E53: TRUE
A54: 0.3438 | B54: 69.89143949 | C54: 1.219835738 | D54: 1.219835738 | E54: TRUE
A55: 0.33599854 | B55: 70.36672992 | C55: 1.228131121 | D55: 1.228131121 | E55: TRUE
A56: 0.32 | B56: 71.33707512 | C56: 1.24506684 | D56: 1.24506684 | E56: TRUE
A57: 0.3048 | B57: 72.25386816 | C57: 1.261067897 | D57: 1.261067897 | E57: TRUE
A58: 0.29208374 | B58: 73.01725225 | C58: =ACOS(A58) -> 1.274391462 | D58: 1.274391462 | E58: TRUE
A59: 0.29 | B59: 73.14204398 | C59: 1.276569489 | D59: 1.276569489 | E59: TRUE
A60: 0.2613 | B60: 74.85278647 | C60: 1.306427578 | D60: 1.306427578 | E60: TRUE
A61: 0.25 | B61: 75.52248781 | C61: 1.318116072 | D61: 1.318116072 | E61: TRUE
A62: 0.2 | B62: 78.46304097 | C62: 1.369438406 | D62: 1.369438406 | E62: TRUE
A63: 0.17 | B63: 80.21218094 | C63: 1.399966658 | D63: 1.399966658 | E63: TRUE
A64: 0.13522339 | B64: 82.22846236 | C64: 1.435157407 | D64: 1.435157407 | E64: TRUE
A65: 0.13 | B65: 82.53040768 | C65: 1.440427347 | D65: 1.440427347 | E65: TRUE
A66: 0.10861206 | B66: 83.7646869 | C66: 1.461969583 | D66: 1.461969583 | E66: TRUE
A67: 0.09 | B67: 84.83639291 | C67: 1.480674382 | D67: 1.480674382 | E67: TRUE
A68: 0.08 | B68: 85.41143426 | C68: 1.490710747 | D68: 1.490710747 | E68: TRUE
A69: 0.07235718 | B69: 85.85061285 | C69: 1.498375859 | D69: 1.498375859 | E69: TRUE
A70: 0.05 | B70: 87.13401602 | C70: 1.52077547 | D70: 1.52077547 | E70: TRUE
A71: 0.0189 | B71: 88.91704529 | C71: 1.551895201 | D71: 1.551895201 | E71: TRUE
A72: -0.03 | B72: 91.71913132 | C72: 1.600800829 | D72: 1.600800829 | E72: TRUE
A73: -0.06240845 | B73: 93.57806601 | C73: 1.63324536 | D73: 1.63324536 | E73: TRUE
A74: -0.08 | B74: 94.58856574 | C74: 1.650881907 | D74: 1.650881907 | E74: TRUE
A75: -0.0814 | B75: 94.66904231 | C75: 1.652286488 | D75: 1.652286488 | E75: TRUE
A76: -0.1 | B76: =C76/PI()*180 -> 95.73917048 | C76: 1.670963748 | D76: 1.670963748 | E76: =IF(F76=0,IF(ISERR(C76),"Error", IF(C76=D76,TRUE,FALSE)),"NSup") -> TRUE
A77: -0.116 | B77: 96.66130687 | C77: 1.687058064 | D77: 1.687058064 | E77: TRUE
A78: -0.13 | B78: 97.46959232 | C78: 1.701165306 | D78: 1.701165306 | E78: TRUE
A79: -0.15 | B79: 98.62692656 | C79: 1.7213646 | D79: 1.7213646 | E79: TRUE
A80: -0.18 | B80: 100.3697598 | C80: 1.751782778 | D80: 1.751782778 | E80: TRUE
A81: -0.24 | B81: 103.8865404 | C81: 1.813162178 | D81: 1.813162178 | E81: TRUE
A82: -0.2604 | B82: 105.093798 | C82: 1.834232799 | D82: 1.834232799 | E82: TRUE
A83: -0.27 | B83: 105.6642669 | C83: 1.844189358 | D83: 1.844189358 | E83: TRUE
A84: -0.29064941 | B84: 106.8968392 | C84: 1.865701805 | D84: 1.865701805 | E84: TRUE
A85: -0.3 | B85: 107.4576031 | C85: 1.875488981 | D85: 1.875488981 | E85: TRUE
A86: -0.32 | B86: 108.6629249 | C86: 1.896525814 | D86: 1.896525814 | E86: TRUE
A87: -0.33 | B87: 109.2687755 | C87: 1.907099902 | D87: 1.907099902 | E87: TRUE
A88: -0.33868408 | B88: 109.7967214 | C88: 1.916314296 | D88: 1.916314296 | E88: TRUE
A89: -0.35 | B89: 110.4873151 | C89: 1.92836743 | D89: 1.92836743 | E89: TRUE
A90: -0.36651611 | B90: 111.5009165 | C90: =ACOS(A90) -> 1.946058112 | D90: 1.946058112 | E90: TRUE
A91: -0.37 | B91: 111.7156173 | C91: 1.949805347 | D91: 1.949805347 | E91: TRUE
A92: -0.37 | B92: 111.7156173 | C92: 1.949805347 | D92: 1.949805347 | E92: TRUE
A93: -0.39974976 | B93: 113.5625357 | C93: 1.982040155 | D93: 1.982040155 | E93: TRUE
A94: -0.41 | B94: 114.2048348 | C94: 1.993250389 | D94: 1.993250389 | E94: TRUE
A95: -0.4294 | B95: 115.4294887 | C95: 2.014624631 | D95: 2.014624631 | E95: TRUE
A96: -0.4359 | B96: 115.8425761 | C96: 2.021834367 | D96: 2.021834367 | E96: TRUE
A97: -0.44799805 | B97: 116.6153133 | C97: 2.035321175 | D97: 2.035321175 | E97: TRUE
A98: -0.48 | B98: 118.685402 | C98: 2.071451039 | D98: 2.071451039 | E98: TRUE
A99: -0.49609375 | B99: 119.7418993 | C99: 2.089890396 | D99: 2.089890396 | E99: TRUE
A100: -0.49963379 | B100: 119.9757747 | C100: 2.093972291 | D100: 2.093972291 | E100: TRUE
A101: -0.51 | B101: 120.6638297 | C101: 2.105981117 | D101: 2.105981117 | E101: TRUE
A102: -0.5305 | B102: 122.039244 | C102: 2.129986625 | D102: 2.129986625 | E102: TRUE
A103: -0.5384 | B103: 122.5747862 | C103: 2.139333599 | D103: 2.139333599 | E103: TRUE
A104: -0.54394531 | B104: 122.9526192 | C104: 2.14592803 | D104: 2.14592803 | E104: TRUE
A105: -0.5582 | B105: 123.9314069 | C105: 2.163011098 | D105: 2.163011098 | E105: TRUE
A106: -0.56045532 | B106: 124.087292 | C106: 2.165731805 | D106: 2.165731805 | E106: TRUE
A107: -0.5678 | B107: 124.5969551 | C107: 2.174627105 | D107: 2.174627105 | E107: TRUE
A108: -0.58 | B108: =C108/PI()*180 -> 125.4505426 | C108: 2.189525017 | D108: 2.189525017 | E108: =IF(F108=0,IF(ISERR(C108),"Error", IF(C108=D108,TRUE,FALSE)),"NSup") -> TRUE
A109: -0.58 | B109: 125.4505426 | C109: 2.189525017 | D109: 2.189525017 | E109: TRUE
A110: -0.61 | B110: 127.589503 | C110: 2.226856918 | D110: 2.226856918 | E110: TRUE
A111: -0.62 | B111: 128.3161345 | C111: 2.23953903 | D111: 2.23953903 | E111: TRUE
A112: -0.64 | B112: 129.7918195 | C112: 2.265294592 | D112: 2.265294592 | E112: TRUE
A113: -0.6575 | B113: 131.1094861 | C113: 2.288292214 | D113: 2.288292214 | E113: TRUE
A114: -0.7182 | B114: 135.9060684 | C114: 2.372008367 | D114: 2.372008367 | E114: TRUE
A115: -0.74 | B115: 137.7314156 | C115: 2.403866685 | D115: 2.403866685 | E115: TRUE
A116: -0.77203369 | B116: 140.5368653 | C116: 2.45283102 | D116: 2.45283102 | E116: TRUE
A117: -0.78 | B117: 141.2605754 | C117: 2.465462144 | D117: 2.465462144 | E117: TRUE
A118: -0.80270386 | B118: 143.3890833 | C118: 2.502611614 | D118: 2.502611614 | E118: TRUE
A119: -0.82980347 | B119: 146.0785549 | C119: 2.54955175 | D119: 2.54955175 | E119: TRUE
A120: -0.85 | B120: 148.2116694 | C120: 2.586781621 | D120: 2.586781621 | E120: TRUE
A121: -0.86 | B121: 149.3165829 | C121: 2.606065999 | D121: 2.606065999 | E121: TRUE
A122: -0.91 | B122: 155.5053515 | C122: =ACOS(A122) -> 2.714080389 | D122: 2.714080389 | E122: TRUE
A123: -0.91946411 | B123: 156.8478638 | C123: 2.737511648 | D123: 2.737511648 | E123: TRUE
A124: -0.93 | B124: 158.434815 | C124: 2.765209171 | D124: 2.765209171 | E124: TRUE
A125: -0.9576 | B125: 163.2556946 | C125: 2.849349394 | D125: 2.849349394 | E125: TRUE
A126: -0.97027588 | B126: 165.9953005 | C126: 2.897164536 | D126: 2.897164536 | E126: TRUE
A127: -0.99 | B127: 171.8903855 | C127: 3.00005318 | D127: 3.00005318 | E127: TRUE
A128: -1 | B128: 180 | C128: 3.141592654 | D128: 3.141592654 | E128: TRUE | H128: from -1 to 1
A129: -0.9990482216 | B129: 177.5 | C129: 3.097959422 | D129: 3.097959422 | E129: TRUE
A130: -0.9961946981 | B130: 175 | C130: 3.054326191 | D130: 3.054326191 | E130: TRUE
A131: -0.9914448614 | B131: 172.5 | C131: 3.01069296 | D131: 3.01069296 | E131: TRUE
A132: -0.984807753 | B132: 170 | C132: 2.967059728 | D132: 2.967059728 | E132: TRUE
A133: -0.9762960071 | B133: 167.5 | C133: 2.923426497 | D133: 2.923426497 | E133: TRUE
A134: -0.9659258263 | B134: 165 | C134: 2.879793266 | D134: 2.879793266 | E134: TRUE
A135: -0.9537169507 | B135: 162.5 | C135: 2.836160034 | D135: 2.836160034 | E135: TRUE
A136: -0.9396926208 | B136: 160 | C136: 2.792526803 | D136: 2.792526803 | E136: TRUE
A137: -0.9238795325 | B137: 157.5 | C137: 2.748893572 | D137: 2.748893572 | E137: TRUE
A138: -0.906307787 | B138: 155 | C138: 2.705260341 | D138: 2.705260341 | E138: TRUE
A139: -0.8870108332 | B139: 152.5 | C139: 2.661627109 | D139: 2.661627109 | E139: TRUE
A140: -0.8660254038 | B140: =C140/PI()*180 -> 150 | C140: 2.617993878 | D140: 2.617993878 | E140: =IF(F140=0,IF(ISERR(C140),"Error", IF(C140=D140,TRUE,FALSE)),"NSup") -> TRUE
A141: -0.8433914458 | B141: 147.5 | C141: 2.574360647 | D141: 2.574360647 | E141: TRUE
A142: -0.8191520443 | B142: 145 | C142: 2.530727415 | D142: 2.530727415 | E142: TRUE
A143: -0.7933533403 | B143: 142.5 | C143: 2.487094184 | D143: 2.487094184 | E143: TRUE
A144: -0.7660444431 | B144: 140 | C144: 2.443460953 | D144: 2.443460953 | E144: TRUE
A145: -0.7372773368 | B145: 137.5 | C145: 2.399827721 | D145: 2.399827721 | E145: TRUE
A146: -0.7071067812 | B146: 135 | C146: 2.35619449 | D146: 2.35619449 | E146: TRUE
A147: -0.6755902076 | B147: 132.5 | C147: 2.312561259 | D147: 2.312561259 | E147: TRUE
A148: -0.6427876097 | B148: 130 | C148: 2.268928028 | D148: 2.268928028 | E148: TRUE
A149: -0.608761429 | B149: 127.5 | C149: 2.225294796 | D149: 2.225294796 | E149: TRUE
A150: -0.5735764364 | B150: 125 | C150: 2.181661565 | D150: 2.181661565 | E150: TRUE
A151: -0.5372996083 | B151: 122.5 | C151: 2.138028334 | D151: 2.138028334 | E151: TRUE
A152: -0.5 | B152: 120 | C152: 2.094395102 | D152: 2.094395102 | E152: TRUE
A153: -0.4617486132 | B153: 117.5 | C153: 2.050761871 | D153: 2.050761871 | E153: TRUE
A154: -0.4226182617 | B154: 115 | C154: =ACOS(A154) -> 2.00712864 | D154: 2.00712864 | E154: TRUE
A155: -0.3826834324 | B155: 112.5 | C155: 1.963495408 | D155: 1.963495408 | E155: TRUE
A156: -0.3420201433 | B156: 110 | C156: 1.919862177 | D156: 1.919862177 | E156: TRUE
A157: -0.3007057995 | B157: 107.5 | C157: 1.876228946 | D157: 1.876228946 | E157: TRUE
A158: -0.2588190451 | B158: 105 | C158: 1.832595715 | D158: 1.832595715 | E158: TRUE
A159: -0.2164396139 | B159: 102.5 | C159: 1.788962483 | D159: 1.788962483 | E159: TRUE
A160: -0.1736481777 | B160: 100 | C160: 1.745329252 | D160: 1.745329252 | E160: TRUE
A161: -0.1305261922 | B161: 97.5 | C161: 1.701696021 | D161: 1.701696021 | E161: TRUE
A162: -0.08715574275 | B162: 95 | C162: 1.658062789 | D162: 1.658062789 | E162: TRUE
A163: -0.04361938737 | B163: 92.5 | C163: 1.614429558 | D163: 1.614429558 | E163: TRUE
A164: 6.125742275e-17 | B164: 90 | C164: 1.570796327 | D164: 1.570796327 | E164: TRUE
A165: 0.04361938737 | B165: 87.5 | C165: 1.527163095 | D165: 1.527163095 | E165: TRUE
A166: 0.08715574275 | B166: 85 | C166: 1.483529864 | D166: 1.483529864 | E166: TRUE
A167: 0.1305261922 | B167: 82.5 | C167: 1.439896633 | D167: 1.439896633 | E167: TRUE
A168: 0.1736481777 | B168: 80 | C168: 1.396263402 | D168: 1.396263402 | E168: TRUE
A169: 0.2164396139 | B169: 77.5 | C169: 1.35263017 | D169: 1.35263017 | E169: TRUE
A170: 0.2588190451 | B170: 75 | C170: 1.308996939 | D170: 1.308996939 | E170: TRUE
A171: 0.3007057995 | B171: 72.5 | C171: 1.265363708 | D171: 1.265363708 | E171: TRUE
A172: 0.3420201433 | B172: =C172/PI()*180 -> 70 | C172: 1.221730476 | D172: 1.221730476 | E172: =IF(F172=0,IF(ISERR(C172),"Error", IF(C172=D172,TRUE,FALSE)),"NSup") -> TRUE
A173: 0.3826834324 | B173: 67.5 | C173: 1.178097245 | D173: 1.178097245 | E173: TRUE
A174: 0.4226182617 | B174: 65 | C174: 1.134464014 | D174: 1.134464014 | E174: TRUE
A175: 0.4617486132 | B175: 62.5 | C175: 1.090830782 | D175: 1.090830782 | E175: TRUE
A176: 0.5 | B176: 60 | C176: 1.047197551 | D176: 1.047197551 | E176: TRUE
A177: 0.5372996083 | B177: 57.5 | C177: 1.00356432 | D177: 1.00356432 | E177: TRUE
A178: 0.5735764364 | B178: 55 | C178: 0.9599310886 | D178: 0.9599310886 | E178: TRUE
A179: 0.608761429 | B179: 52.5 | C179: 0.9162978573 | D179: 0.9162978573 | E179: TRUE
A180: 0.6427876097 | B180: 50 | C180: 0.872664626 | D180: 0.872664626 | E180: TRUE
A181: 0.6755902076 | B181: 47.5 | C181: 0.8290313947 | D181: 0.8290313947 | E181: TRUE
A182: 0.7071067812 | B182: 45 | C182: 0.7853981634 | D182: 0.7853981634 | E182: TRUE
A183: 0.7372773368 | B183: 42.5 | C183: 0.7417649321 | D183: 0.7417649321 | E183: TRUE
A184: 0.7660444431 | B184: 40 | C184: 0.6981317008 | D184: 0.6981317008 | E184: TRUE
A185: 0.7933533403 | B185: 37.5 | C185: 0.6544984695 | D185: 0.6544984695 | E185: TRUE
A186: 0.8191520443 | B186: 35 | C186: =ACOS(A186) -> 0.6108652382 | D186: 0.6108652382 | E186: TRUE
A187: 0.8433914458 | B187: 32.5 | C187: 0.5672320069 | D187: 0.5672320069 | E187: TRUE
A188: 0.8660254038 | B188: 30 | C188: 0.5235987756 | D188: 0.5235987756 | E188: TRUE
A189: 0.8870108332 | B189: 27.5 | C189: 0.4799655443 | D189: 0.4799655443 | E189: TRUE
A190: 0.906307787 | B190: 25 | C190: 0.436332313 | D190: 0.436332313 | E190: TRUE
A191: 0.9238795325 | B191: 22.5 | C191: 0.3926990817 | D191: 0.3926990817 | E191: TRUE
A192: 0.9396926208 | B192: 20 | C192: 0.3490658504 | D192: 0.3490658504 | E192: TRUE
A193: 0.9537169507 | B193: 17.5 | C193: 0.3054326191 | D193: 0.3054326191 | E193: TRUE
A194: 0.9659258263 | B194: 15 | C194: 0.2617993878 | D194: 0.2617993878 | E194: TRUE
A195: 0.9762960071 | B195: 12.5 | C195: 0.2181661565 | D195: 0.2181661565 | E195: TRUE
A196: 0.984807753 | B196: 10 | C196: 0.1745329252 | D196: 0.1745329252 | E196: TRUE
A197: 0.9914448614 | B197: 7.5 | C197: 0.1308996939 | D197: 0.1308996939 | E197: TRUE
A198: 0.9961946981 | B198: 5 | C198: 0.0872664626 | D198: 0.0872664626 | E198: TRUE
A199: 0.9990482216 | B199: 2.5 | C199: 0.0436332313 | D199: 0.0436332313 | E199: TRUE
A200: 1 | B200: 0 | C200: 0 | D200: 0 | E200: TRUE
A201: 1.1 | E201: Error | H201: Out of valid range
A202: -1.0000001 | E202: Error
A203: 100 | E203: Error

Sheet ACOSH
A1: =SUM(A3:A5) -> 0 | B1: =SUM(B3:B5) -> 7 | C1: =SUM(C3:C5) -> 0 | D1: Total
A2: Failed | B2: Error | C2: NotSupport | D2: Verification Area
A3: =COUNTIF(INDIRECT(D3),"=false") -> 0 | B3: =COUNTIF(INDIRECT(D3),"=Error") -> 7 | C3: =COUNTIF(INDIRECT(D3),"=NSup") -> 0 | D3: E12:E79
A9: ACOSH(number)
A11: Data | C11: Formula | D11: Expected | E11: Check | F11: Mask | G11: Comments | H11: Description
C12: =ACOSH(1) -> 0 | D12: 0 | E12: =IF(F12=0,IF(ISERR(C12),"Error", IF(C12=D12,TRUE,FALSE)),"NSup") -> TRUE
A13: 2 | C13: =ACOSH(A13) -> 1.316957897 | D13: 1.316957897 | E13: TRUE
A14: 3 | C14: 1.762747174 | D14: 1.762747174 | E14: TRUE
A15: 4 | C15: 2.063437069 | D15: 2.063437069 | E15: TRUE
A16: 5 | C16: 2.29243167 | D16: 2.29243167 | E16: TRUE
A17: 6 | C17: 2.47788873 | D17: 2.47788873 | E17: TRUE
A18: 7 | C18: 2.633915794 | D18: 2.633915794 | E18: TRUE
A19: 8 | C19: 2.768659383 | D19: 2.768659383 | E19: TRUE
A20: 9 | C20: 2.88727095 | D20: 2.88727095 | E20: TRUE
A21: 10 | C21: 2.993222846 | D21: 2.993222846 | E21: TRUE
A22: 11 | C22: 3.088969905 | D22: 3.088969905 | E22: TRUE
A23: 12 | C23: 3.176313181 | D23: 3.176313181 | E23: TRUE
A24: 13 | C24: 3.256613955 | D24: 3.256613955 | E24: TRUE
A25: 14 | C25: 3.330926553 | D25: 3.330926553 | E25: TRUE
A26: 15 | C26: 3.400084414 | D26: 3.400084414 | E26: TRUE
A27: 100 | C27: 5.298292366 | D27: 5.298292366 | E27: TRUE
A28: 0 | E28: Error | H28: invalid parameter
A29: -10 | E29: Error
A30: -1e-14 | E30: Error
A31: 0.1 | E31: Error
A32: 1 | E32: Error
A33: text | E33: Error
E34: Error
C35: =ACOSH("12") -> 3.176313181 | D35: 3.176313181 | E35: TRUE | H35: Numbers in Text format
A36: 10 | C36: =ACOSH(A36) -> 2.993222846 | D36: 2.993222846 | E36: TRUE
A37: 100 | C37: =ACOSH(A37:$A$38) -> 5.298292366 | D37: 5.298292366 | E37: TRUE | H37: array formula
A38: 2 | C38: 1.316957897 | D38: 1.316957897 | E38: TRUE
A39: 1.376687 | C39: =ACOSH(A39) -> 0.8428045881 | D39: 0.8428045881 | E39: TRUE | H39: Random number
A40: 2 | C40: 1.316957897 | D40: 1.316957897 | E40: TRUE
A41: 2.02621089 | C41: 1.331960252 | D41: 1.331960252 | E41: TRUE
A42: 2.3201 | C42: 1.484697272 | D42: 1.484697272 | E42: TRUE
A43: 4.8915 | C43: 2.270029971 | D43: 2.270029971 | E43: TRUE
A44: 5.3363938 | C44: 2.358800388 | D44: 2.358800388 | E44: =IF(F44=0,IF(ISERR(C44),"Error", IF(C44=D44,TRUE,FALSE)),"NSup") -> TRUE
A45: 10.38461985 | C45: 3.031146686 | D45: 3.031146686 | E45: TRUE
A46: 10.59991 | C46: 3.051760199 | D46: 3.051760199 | E46: TRUE
A47: 12.2918835 | C47: 3.200427587 | D47: 3.200427587 | E47: TRUE
A48: 20.912459 | C48: 3.732920146 | D48: 3.732920146 | E48: TRUE
A49: 26.355 | C49: 3.96444507 | D49: 3.96444507 | E49: TRUE
A50: 64.5185 | C50: 4.860039121 | D50: 4.860039121 | E50: TRUE
A51: 99.7713752 | C51: 5.296003385 | D51: 5.296003385 | E51: TRUE
A52: 21847.74151 | C52: 10.68500001 | D52: 10.68500001 | E52: TRUE
A53: 46954 | C53: 11.45007086 | D53: 11.45007086 | E53: TRUE
A54: 157282.6015 | C54: 12.65894666 | D54: 12.65894666 | E54: TRUE
A55: 47815761.94 | C55: 18.37601307 | D55: 18.37601307 | E55: TRUE
A56: 68298786.03 | C56: 18.73254973 | D56: 18.73254973 | E56: TRUE
A57: 1.0602 | C57: 0.3452694772 | D57: 0.3452694772 | E57: TRUE
A58: 1.16765 | C58: 0.5712518738 | D58: 0.5712518738 | E58: TRUE
A59: 1.1893029 | C59: 0.6059944063 | D59: 0.6059944063 | E59: TRUE
A60: 1.6 | C60: 1.046967915 | D60: 1.046967915 | E60: TRUE
A61: 1.61119631 | C61: 1.055881133 | D61: 1.055881133 | E61: TRUE
A62: 3.063 | C62: 1.784762218 | D62: 1.784762218 | E62: TRUE
A63: 6.1 | C63: 2.494648589 | D63: 2.494648589 | E63: TRUE
A64: 14.32789427 | C64: 3.354135437 | D64: 3.354135437 | E64: TRUE
A65: 19.981 | C65: 3.687302224 | D65: 3.687302224 | E65: TRUE
A66: 26.40846123 | C66: 3.966472977 | D66: 3.966472977 | E66: TRUE
A67: 33.027528 | C67: 4.190259311 | D67: 4.190259311 | E67: TRUE
A68: 36.5654299 | C68: 4.292063402 | D68: 4.292063402 | E68: TRUE
A69: 68.71695169 | C69: 4.923090151 | D69: 4.923090151 | E69: TRUE
A70: 142.379647 | C70: 5.651631908 | D70: 5.651631908 | E70: TRUE
A71: 160.516251 | C71: 5.771532667 | D71: 5.771532667 | E71: TRUE
A72: 444.211 | C72: 6.789445588 | D72: 6.789445588 | E72: TRUE
A73: 506 | C73: 6.919682873 | D73: 6.919682873 | E73: TRUE
A74: 714 | C74: 7.264029653 | D74: 7.264029653 | E74: TRUE
A75: 1580 | C75: 8.058327206 | D75: 8.058327206 | E75: TRUE
A76: 2605.72963 | C76: 8.558615147 | D76: 8.558615147 | E76: =IF(F76=0,IF(ISERR(C76),"Error", IF(C76=D76,TRUE,FALSE)),"NSup") -> TRUE
A77: 127396.0489 | C77: 12.44820319 | D77: 12.44820319 | E77: TRUE
A78: 242666367.4 | C78: 20.00034527 | D78: 20.00034527 | E78: TRUE
A79: 790275371.7 | C79: 21.1810392 | D79: 21.1810392 | E79: TRUE

Sheet AGGREGATE
A1: =SUM(A3:A5) -> 0 | B1: =SUM(B3:B5) -> 0 | C1: =SUM(C3:C5) -> 0 | D1: Total | G1: Hide row 8 | H1: Sample A | I1: Sample B | J1: Sample C | K1: Sample D
A2: Failed | B2: Error | C2: NotSupport | D2: Verification Area | H2: -1 | I2: -6 | J2: -97 | K2: 1
A3: =COUNTIF(INDIRECT(D3),"=false") -> 0 | B3: =COUNTIF(INDIRECT(D3),"=Error") -> 0 | C3: =COUNTIF(INDIRECT(D3),"=NSup") -> 0 | D3: E12:E50 | H3: 15 | I3: 16 | J3: 3001 | K3: 2
H4: =SUBTOTAL(9,H2:H3) -> 14 | I4: =9/0 ->  | J4: =_xlfn.AGGREGATE(1,0,J2:J3) -> 1452 | K4: 3
H5: 139910165 | I5: 0 | J5: =SUBTOTAL(4,J2:J4) -> 3001
H6: -106 | I6: -9 | J6: -1834 | K6: 4
H7: 678.4 | I7: 92 | J7: =reference ->  | K7: 5
H8: -10 | I8: 134.32 | J8: -1774
H9: 1345 | I9: 158 | J9: 6 | K9: 6
A11: Data | C11: Formula | D11: Expected | E11: Check | F11: Mask | G11: Comments | H11: Description | J11: 1 | L11: 10 | N11: 选项 | O11: 行为
C12: =_xlfn.AGGREGATE(1,0,J11:J18,L11:L18) -> 7.25 | D12: 7.25 | E12: =IF(F12=0,IF(ISERR(C12),"Error", IF(C12=D12,TRUE,FALSE)),"NSup") -> TRUE | J12: 2 | L12: 10
C13: =_xlfn.AGGREGATE(1,0,J11:J18) -> 4.5 | D13: 4.5 | E13: TRUE | J13: 3 | L13: 10
C14: =_xlfn.AGGREGATE(1,0,$H$2:$H$9) -> 19987440.91 | D14: 19987440.91 | E14: TRUE | H14: 1 | I14: AVERAGE | J14: 4 | L14: 10
C15: =_xlfn.AGGREGATE(2,0,$H$2:$H$9) -> 7 | D15: 7 | E15: TRUE | H15: 2 | I15: COUNT | J15: 5 | L15: 10
C16: =_xlfn.AGGREGATE(3,0,$H$2:$H$9) -> 7 | D16: 7 | E16: TRUE | H16: 3 | I16: COUNTA | J16: 6 | L16: 10
C17: =_xlfn.AGGREGATE(4,0,$H$2:$H$9) -> 139910165 | D17: 139910165 | E17: TRUE | H17: 4 | I17: MAX | J17: 7 | L17: 10
C18: =_xlfn.AGGREGATE(5,0,$H$2:$H$9) -> -106 | D18: -106 | E18: TRUE | H18: 5 | I18: MIN | J18: 8 | L18: 10
C19: =_xlfn.AGGREGATE(6,0,$H$2:$H$9) -> -2.029805929e+18 | D19: -2.029805929e+18 | E19: TRUE | H19: 6 | I19: PRODUCT
C20: =_xlfn.AGGREGATE(7,0,$H$2:$H$9) -> 52880950.75 | D20: 52880950.75 | E20: TRUE | H20: 7 | I20: STDEV.S
C21: =_xlfn.AGGREGATE(8,0,$H$2:$H$9) -> 48958247.1 | D21: 48958247.1 | E21: TRUE | H21: 8 | I21: STDEV.P
C22: =_xlfn.AGGREGATE(9,0,$H$2:$H$9) -> 139912086.4 | D22: 139912086.4 | E22: TRUE | H22: 9 | I22: SUM
C23: =_xlfn.AGGREGATE(10,0,$H$2:$H$9) -> 2.796394952e+15 | D23: 2.796394952e+15 | E23: TRUE | H23: 10 | I23: VAR.S
C24: =_xlfn.AGGREGATE(11,0,$H$2:$H$9) -> 2396909958927657 | D24: 2396909958927657 | E24: TRUE | H24: 11 | I24: VAR.P
C25: =_xlfn.AGGREGATE(12,0,$H$2:$H$9) -> 15 | D25: 15 | E25: TRUE | H25: 12 | I25: MEDIAN
C26: =_xlfn.AGGREGATE(13,0,$H$2:$H$9,L11:L18) -> 10 | D26: 10 | E26: TRUE | H26: 13 | I26: MODE.SNGL
C27: =_xlfn.AGGREGATE(14,0,$H$2:$H$9,2) -> 1345 | D27: 1345 | E27: TRUE | H27: 14 | I27: LARGE
A28: 4 | C28: =_xlfn.AGGREGATE(15,0,$H$2:$H$9,A28) -> 15 | D28: 15 | E28: TRUE | H28: 15 | I28: SMALL
A29: 25% | C29: =_xlfn.AGGREGATE(16,0,$H$2:$H$9,A29) -> -5.5 | D29: -5.5 | E29: TRUE | H29: 16 | I29: PERCENTILE.INC
A30: 4 | C30: =_xlfn.AGGREGATE(17,0,$H$2:$H$9,A30) -> 139910165 | D30: 139910165 | E30: TRUE | H30: 17 | I30: QUARTILE.INC
A31: 33% | C31: =_xlfn.AGGREGATE(18,0,$H$2:$H$9,A31) -> -4.24 | D31: -4.24 | E31: TRUE | H31: 18 | I31: PERCENTILE.EXC
A32: 3 | C32: =_xlfn.AGGREGATE(19,0,$H$2:$H$9,A32) -> 1345 | D32: 1345 | E32: TRUE | H32: 19 | I32: QUARTILE.EXC
A33: 1 | C33: =_xlfn.AGGREGATE(15,0,$H$2:$H$9,A33) -> -106 | D33: -106 | E33: TRUE
A34: 78% | C34: =_xlfn.AGGREGATE(16,3,$J$2:$J$9,A34) -> 1024.3 | D34: 1024.3 | E34: TRUE | H34: 3 | I34: 忽略隐藏行、错误值、嵌套 SUBTOTAL 和 AGGREGATE 函数
A35: 1 | C35: =_xlfn.AGGREGATE(17,0,$H$2:$H$9,A35) -> -5.5 | D35: -5.5 | E35: TRUE
A36: 77% | C36: =_xlfn.AGGREGATE(18,0,$H$2:$H$9,A36) -> 22386756.2 | D36: 22386756.2 | E36: TRUE
A37: 2 | C37: =_xlfn.AGGREGATE(19,0,$H$2:$H$9,A37) -> 15 | D37: 15 | E37: TRUE | H37: 0 或省略 | I37: 忽略嵌套 SUBTOTAL 和 AGGREGATE 函数
A38: =A33 -> 1 | C38: =_xlfn.AGGREGATE(15,1,$H$2:$H$9,A38) -> -106 | D38: -106 | E38: TRUE | H38: 1 | I38: 忽略隐藏行、嵌套 SUBTOTAL 和 AGGREGATE 函数
A39: =A34 -> 78% | C39: =_xlfn.AGGREGATE(16,2,$J$2:$J$9,A39) -> 365.4 | D39: 365.4 | E39: TRUE | H39: 2 | I39: 忽略错误值、嵌套 SUBTOTAL 和 AGGREGATE 函数
A40: =A35 -> 1 | C40: =_xlfn.AGGREGATE(17,3,$H$2:$H$9,A40) -> 3 | D40: 3 | E40: TRUE | H40: 3 | I40: 忽略隐藏行、错误值、嵌套 SUBTOTAL 和 AGGREGATE 函数
A41: =A36 -> 77% | C41: =_xlfn.AGGREGATE(18,4,$H$2:$H$9,A41) -> 1298.338 | D41: 1298.338 | E41: TRUE | H41: 4 | I41: 忽略空值
A42: =A37 -> 2 | C42: =_xlfn.AGGREGATE(19,5,$H$2:$H$9,A42) -> 15 | D42: 15 | E42: TRUE | H42: 5 | I42: 忽略隐藏行
C43: =_xlfn.AGGREGATE(3,6,I2:I9) -> 7 | D43: 7 | E43: TRUE | H43: 6 | I43: 忽略错误值
C44: =_xlfn.AGGREGATE(3,7,K2:K9) -> 6 | D44: 6 | E44: TRUE | H44: 7 | I44: 忽略隐藏行和错误值

Sheet ASIN
A1: =SUM(A3:A5) -> 0 | B1: =SUM(B3:B5) -> 3 | C1: =SUM(C3:C5) -> 0 | D1: Total
A2: Failed | B2: Error | C2: NotSupport | D2: Verification Area
A3: =COUNTIF(INDIRECT(D3),"=false") -> 0 | B3: =COUNTIF(INDIRECT(D3),"=Error") -> 3 | C3: =COUNTIF(INDIRECT(D3),"=NSup") -> 0 | D3: E12:E203
A9: ASIN(number)
A11: Data | C11: Formula | D11: Expected | E11: Check | F11: Mask | G11: Comments | H11: Description
A12: -1 | B12: =C12*180/PI() -> -90 | C12: =ASIN(A12) -> -1.570796327 | D12: -1.570796327 | E12: =IF(F12=0,IF(ISERR(C12),"Error", IF(C12=D12,TRUE,FALSE)),"NSup") -> TRUE | H12: from -1 to 1
A13: -0.9990482216 | B13: -87.5 | C13: -1.527163095 | D13: -1.527163095 | E13: TRUE
A14: -0.9961946981 | B14: -85 | C14: -1.483529864 | D14: -1.483529864 | E14: TRUE
A15: -0.9914448614 | B15: -82.5 | C15: -1.439896633 | D15: -1.439896633 | E15: TRUE
A16: -0.984807753 | B16: -80 | C16: -1.396263402 | D16: -1.396263402 | E16: TRUE
A17: -0.9762960071 | B17: -77.5 | C17: -1.35263017 | D17: -1.35263017 | E17: TRUE
A18: -0.9659258263 | B18: -75 | C18: -1.308996939 | D18: -1.308996939 | E18: TRUE
A19: -0.9537169507 | B19: -72.5 | C19: -1.265363708 | D19: -1.265363708 | E19: TRUE
A20: -0.9396926208 | B20: -70 | C20: -1.221730476 | D20: -1.221730476 | E20: TRUE
A21: -0.9238795325 | B21: -67.5 | C21: -1.178097245 | D21: -1.178097245 | E21: TRUE
A22: -0.906307787 | B22: -65 | C22: -1.134464014 | D22: -1.134464014 | E22: TRUE
A23: -0.8870108332 | B23: -62.5 | C23: -1.090830782 | D23: -1.090830782 | E23: TRUE
A24: -0.8660254038 | B24: -60 | C24: -1.047197551 | D24: -1.047197551 | E24: TRUE
A25: -0.8433914458 | B25: -57.5 | C25: -1.00356432 | D25: -1.00356432 | E25: TRUE
A26: -0.8191520443 | B26: -55 | C26: -0.9599310886 | D26: -0.9599310886 | E26: TRUE
A27: -0.7933533403 | B27: -52.5 | C27: -0.9162978573 | D27: -0.9162978573 | E27: TRUE
A28: -0.7660444431 | B28: -50 | C28: -0.872664626 | D28: -0.872664626 | E28: TRUE
A29: -0.7372773368 | B29: -47.5 | C29: -0.8290313947 | D29: -0.8290313947 | E29: TRUE
A30: -0.7071067812 | B30: -45 | C30: -0.7853981634 | D30: -0.7853981634 | E30: TRUE
A31: -0.6755902076 | B31: -42.5 | C31: -0.7417649321 | D31: -0.7417649321 | E31: TRUE
A32: -0.6427876097 | B32: -40 | C32: -0.6981317008 | D32: -0.6981317008 | E32: TRUE
A33: -0.608761429 | B33: -37.5 | C33: -0.6544984695 | D33: -0.6544984695 | E33: TRUE
A34: -0.5735764364 | B34: -35 | C34: -0.6108652382 | D34: -0.6108652382 | E34: TRUE
A35: -0.5372996083 | B35: -32.5 | C35: -0.5672320069 | D35: -0.5672320069 | E35: TRUE
A36: -0.5 | B36: -30 | C36: -0.5235987756 | D36: -0.5235987756 | E36: TRUE
A37: -0.4617486132 | B37: -27.5 | C37: -0.4799655443 | D37: -0.4799655443 | E37: TRUE
A38: -0.4226182617 | B38: -25 | C38: -0.436332313 | D38: -0.436332313 | E38: TRUE
A39: -0.3826834324 | B39: -22.5 | C39: -0.3926990817 | D39: -0.3926990817 | E39: TRUE
A40: -0.3420201433 | B40: -20 | C40: -0.3490658504 | D40: -0.3490658504 | E40: TRUE
A41: -0.3007057995 | B41: -17.5 | C41: -0.3054326191 | D41: -0.3054326191 | E41: TRUE
A42: -0.2588190451 | B42: -15 | C42: -0.2617993878 | D42: -0.2617993878 | E42: TRUE
A43: -0.2164396139 | B43: -12.5 | C43: -0.2181661565 | D43: -0.2181661565 | E43: TRUE
A44: -0.1736481777 | B44: =C44*180/PI() -> -10 | C44: =ASIN(A44) -> -0.1745329252 | D44: -0.1745329252 | E44: =IF(F44=0,IF(ISERR(C44),"Error", IF(C44=D44,TRUE,FALSE)),"NSup") -> TRUE
A45: -0.1305261922 | B45: -7.5 | C45: -0.1308996939 | D45: -0.1308996939 | E45: TRUE
A46: -0.08715574275 | B46: -5 | C46: -0.0872664626 | D46: -0.0872664626 | E46: TRUE
A47: -0.04361938737 | B47: -2.5 | C47: -0.0436332313 | D47: -0.0436332313 | E47: TRUE
A48: 6.125742275e-17 | B48: 3.509791787e-15 | C48: 6.125742275e-17 | D48: 6.125742275e-17 | E48: TRUE
A49: 0.04361938737 | B49: 2.5 | C49: 0.0436332313 | D49: 0.0436332313 | E49: TRUE
A50: 0.08715574275 | B50: 5 | C50: 0.0872664626 | D50: 0.0872664626 | E50: TRUE
A51: 0.1305261922 | B51: 7.5 | C51: 0.1308996939 | D51: 0.1308996939 | E51: TRUE
A52: 0.1736481777 | B52: 10 | C52: 0.1745329252 | D52: 0.1745329252 | E52: TRUE
A53: 0.2164396139 | B53: 12.5 | C53: 0.2181661565 | D53: 0.2181661565 | E53: TRUE
A54: 0.2588190451 | B54: 15 | C54: 0.2617993878 | D54: 0.2617993878 | E54: TRUE
A55: 0.3007057995 | B55: 17.5 | C55: 0.3054326191 | D55: 0.3054326191 | E55: TRUE
A56: 0.3420201433 | B56: 20 | C56: 0.3490658504 | D56: 0.3490658504 | E56: TRUE
A57: 0.3826834324 | B57: 22.5 | C57: 0.3926990817 | D57: 0.3926990817 | E57: TRUE
A58: 0.4226182617 | B58: 25 | C58: 0.436332313 | D58: 0.436332313 | E58: TRUE
A59: 0.4617486132 | B59: 27.5 | C59: 0.4799655443 | D59: 0.4799655443 | E59: TRUE
A60: 0.5 | B60: 30 | C60: 0.5235987756 | D60: 0.5235987756 | E60: TRUE
A61: 0.5372996083 | B61: 32.5 | C61: 0.5672320069 | D61: 0.5672320069 | E61: TRUE
A62: 0.5735764364 | B62: 35 | C62: 0.6108652382 | D62: 0.6108652382 | E62: TRUE
A63: 0.608761429 | B63: 37.5 | C63: 0.6544984695 | D63: 0.6544984695 | E63: TRUE
A64: 0.6427876097 | B64: 40 | C64: 0.6981317008 | D64: 0.6981317008 | E64: TRUE
A65: 0.6755902076 | B65: 42.5 | C65: 0.7417649321 | D65: 0.7417649321 | E65: TRUE
A66: 0.7071067812 | B66: 45 | C66: 0.7853981634 | D66: 0.7853981634 | E66: TRUE
A67: 0.7372773368 | B67: 47.5 | C67: 0.8290313947 | D67: 0.8290313947 | E67: TRUE
A68: 0.7660444431 | B68: 50 | C68: 0.872664626 | D68: 0.872664626 | E68: TRUE
A69: 0.7933533403 | B69: 52.5 | C69: 0.9162978573 | D69: 0.9162978573 | E69: TRUE
A70: 0.8191520443 | B70: 55 | C70: 0.9599310886 | D70: 0.9599310886 | E70: TRUE
A71: 0.8433914458 | B71: 57.5 | C71: 1.00356432 | D71: 1.00356432 | E71: TRUE
A72: 0.8660254038 | B72: 60 | C72: 1.047197551 | D72: 1.047197551 | E72: TRUE
A73: 0.8870108332 | B73: 62.5 | C73: 1.090830782 | D73: 1.090830782 | E73: TRUE
A74: 0.906307787 | B74: 65 | C74: 1.134464014 | D74: 1.134464014 | E74: TRUE
A75: 0.9238795325 | B75: 67.5 | C75: 1.178097245 | D75: 1.178097245 | E75: TRUE
A76: 0.9396926208 | B76: =C76*180/PI() -> 70 | C76: =ASIN(A76) -> 1.221730476 | D76: 1.221730476 | E76: =IF(F76=0,IF(ISERR(C76),"Error", IF(C76=D76,TRUE,FALSE)),"NSup") -> TRUE
A77: 0.9537169507 | B77: 72.5 | C77: 1.265363708 | D77: 1.265363708 | E77: TRUE
A78: 0.9659258263 | B78: 75 | C78: 1.308996939 | D78: 1.308996939 | E78: TRUE
A79: 0.9762960071 | B79: 77.5 | C79: 1.35263017 | D79: 1.35263017 | E79: TRUE
A80: 0.984807753 | B80: 80 | C80: 1.396263402 | D80: 1.396263402 | E80: TRUE
A81: 0.9914448614 | B81: 82.5 | C81: 1.439896633 | D81: 1.439896633 | E81: TRUE
A82: 0.9961946981 | B82: 85 | C82: 1.483529864 | D82: 1.483529864 | E82: TRUE
A83: 0.9990482216 | B83: 87.5 | C83: 1.527163095 | D83: 1.527163095 | E83: TRUE
A84: 1 | B84: 90 | C84: 1.570796327 | D84: 1.570796327 | E84: TRUE
A85: 1.1 | E85: Error | H85: invalid number
A86: -1.0000001 | E86: Error
A87: 100 | E87: Error
A88: 0.00 | C88: 0 | D88: 0 | E88: TRUE
A89: 1 | C89: 1.570796327 | D89: 1.570796327 | E89: TRUE
A90: -1 | C90: -1.570796327 | D90: -1.570796327 | E90: TRUE
A91: 0.9986 | C91: 1.517875125 | D91: 1.517875125 | E91: TRUE | H91: Text
C92: =ASIN("0.98") -> 1.370461484 | D92: 1.370461484 | E92: TRUE
A93: 0.96463013 | C93: =ASIN(A93) -> 1.304036645 | D93: 1.304036645 | E93: TRUE
A94: 0.9395 | C94: =ASIN(A94:A98) -> 1.221167726 | D94: 1.221167726 | E94: TRUE
C95: =ASIN(0.918) -> 1.163007565 | D95: 1.163007565 | E95: TRUE
A96: 0.91427612 | B96: =C96*180/PI() -> 66.10313477 | C96: =ASIN(A96) -> 1.153717348 | D96: 1.153717348 | E96: TRUE
A97: 0.91 | B97: 65.50535153 | C97: =ASIN(A97) -> 1.143284062 | D97: 1.143284062 | E97: TRUE
A98: 0.86 | B98: 59.31658289 | C98: =ASIN(A98) -> 1.035269672 | D98: 1.035269672 | E98: TRUE
A99: 0.84 | B99: 57.14011962 | C99: =ASIN(A99) -> 0.9972832224 | D99: 0.9972832224 | E99: TRUE
A100: 0.82 | B100: 55.08479375 | C100: =ASIN(A100) -> 0.9614110188 | D100: 0.9614110188 | E100: TRUE
B101: 52.93003247 | C101: =ASIN(0.7979) -> 0.9238033397 | D101: 0.9238033397 | E101: TRUE
A102: 0.7734 | B102: 50.66019542 | C102: =ASIN(A102) -> 0.8841872097 | D102: 0.8841872097 | E102: TRUE
A103: 0.7649 | B103: 49.89809639 | C103: 0.8708860725 | D103: 0.8708860725 | E103: TRUE
A104: 0.74 | B104: 47.73141557 | C104: 0.8330703583 | D104: 0.8330703583 | E104: TRUE
A105: 0.7004 | B105: 44.45910487 | C105: 0.7759577625 | D105: 0.7759577625 | E105: TRUE
A106: 0.65 | B106: 40.54160187 | C106: 0.7075844367 | D106: 0.7075844367 | E106: TRUE
A107: 0.6306 | B107: 39.09440333 | C107: 0.6823260573 | D107: 0.6823260573 | E107: TRUE
A108: 0.6129 | B108: 37.79948853 | C108: 0.6597255304 | D108: 0.6597255304 | E108: =IF(F108=0,IF(ISERR(C108),"Error", IF(C108=D108,TRUE,FALSE)),"NSup") -> TRUE
A109: 0.60498047 | B109: 37.22743652 | C109: 0.6497413394 | D109: 0.6497413394 | E109: TRUE
A110: 0.58 | B110: 35.45054264 | C110: 0.6187286907 | D110: 0.6187286907 | E110: TRUE
A111: 0.57 | B111: 34.75022575 | C111: 0.6065058552 | D111: 0.6065058552 | E111: TRUE
A112: 0.561 | B112: 34.12498265 | C112: 0.5955933044 | D112: 0.5955933044 | E112: TRUE
A113: 0.56 | B113: 34.05579774 | C113: 0.5943858 | D113: 0.5943858 | E113: TRUE
A114: 0.55 | B114: 33.36701297 | C114: 0.5823642379 | D114: 0.5823642379 | E114: TRUE
A115: 0.54040527 | B115: 32.71123159 | C115: 0.5709186937 | D115: 0.5709186937 | E115: TRUE
A116: 0.53125 | B116: 32.08995126 | C116: 0.5600753062 | D116: 0.5600753062 | E116: TRUE
A117: 0.53 | B117: 32.00545483 | C117: 0.5586005653 | D117: 0.5586005653 | E117: TRUE
A118: 0.5 | B118: 30 | C118: 0.5235987756 | D118: 0.5235987756 | E118: TRUE
A119: 0.4968 | B119: 29.78851457 | C119: 0.5199076585 | D119: 0.5199076585 | E119: TRUE
A120: 0.48284912 | B120: 28.87164846 | C120: 0.5039053261 | D120: 0.5039053261 | E120: TRUE
A121: 0.47 | B121: 28.03429653 | C121: 0.489290778 | D121: 0.489290778 | E121: TRUE
A122: 0.44 | B122: 26.10388114 | C122: 0.4555986734 | D122: 0.4555986734 | E122: TRUE
A123: 0.43 | B123: 25.46756014 | C123: 0.4444927769 | D123: 0.4444927769 | E123: TRUE
A124: 0.41955566 | B124: 24.80653763 | C124: 0.4329557577 | D124: 0.4329557577 | E124: TRUE
A125: 0.40579224 | B125: 23.94078251 | C125: 0.4178454802 | D125: 0.4178454802 | E125: TRUE
A126: 0.3938 | B126: 23.19115413 | C126: 0.4047619969 | D126: 0.4047619969 | E126: TRUE
A127: 0.37 | B127: 21.71561728 | C127: 0.3790090207 | D127: 0.3790090207 | E127: TRUE
A128: 0.36895752 | B128: =C128*180/PI() -> 21.6513392 | C128: 0.3778871566 | D128: 0.3778871566 | E128: TRUE
A129: 0.36 | B129: 21.10019602 | C129: 0.3682678934 | D129: 0.3682678934 | E129: TRUE
A130: 0.3438 | B130: 20.10856051 | C130: 0.3509605888 | D130: 0.3509605888 | E130: TRUE
A131: 0.33599854 | B131: 19.63327008 | C131: 0.3426652059 | D131: 0.3426652059 | E131: TRUE
A132: 0.32 | B132: 18.66292488 | C132: 0.3257294873 | D132: 0.3257294873 | E132: TRUE
A133: 0.3048 | B133: 17.74613184 | C133: 0.30972843 | D133: 0.30972843 | E133: TRUE
A134: 0.29208374 | B134: 16.98274775 | C134: =ASIN(A134) -> 0.2964048644 | D134: 0.2964048644 | E134: TRUE
A135: 0.29 | B135: 16.85795602 | C135: 0.2942268377 | D135: 0.2942268377 | E135: TRUE
A136: 0.2613 | B136: 15.14721353 | C136: 0.2643687486 | D136: 0.2643687486 | E136: TRUE
A137: 0.25 | B137: 14.47751219 | C137: 0.2526802551 | D137: 0.2526802551 | E137: TRUE
A138: 0.2 | B138: 11.53695903 | C138: 0.2013579208 | D138: 0.2013579208 | E138: TRUE
A139: 0.17 | B139: 9.787819057 | C139: 0.1708296691 | D139: 0.1708296691 | E139: TRUE
A140: 0.13522339 | B140: 7.771537644 | C140: 0.1356389198 | D140: 0.1356389198 | E140: =IF(F140=0,IF(ISERR(C140),"Error", IF(C140=D140,TRUE,FALSE)),"NSup") -> TRUE
A141: 0.13 | B141: 7.469592316 | C141: 0.1303689797 | D141: 0.1303689797 | E141: TRUE
A142: 0.10861206 | B142: 6.235313095 | C142: 0.1088267434 | D142: 0.1088267434 | E142: TRUE
A143: 0.09 | B143: 5.163607091 | C143: 0.09012194501 | D143: 0.09012194501 | E143: TRUE
A144: 0.08 | B144: 4.588565736 | C144: 0.08008558003 | D144: 0.08008558003 | E144: TRUE
A145: 0.07235718 | B145: 4.149387146 | C145: 0.07242046763 | D145: 0.07242046763 | E145: TRUE
A146: 0.05 | B146: 2.865983983 | C146: 0.05002085681 | D146: 0.05002085681 | E146: TRUE
A147: 0.0189 | B147: 1.082954713 | C147: 0.01890112539 | D147: 0.01890112539 | E147: TRUE
A148: -0.03 | B148: -1.719131321 | C148: -0.03000450182 | D148: -0.03000450182 | E148: TRUE
A149: -0.06240845 | B149: -3.57806601 | C149: -0.06244903273 | D149: -0.06244903273 | E149: TRUE
A150: -0.08 | B150: -4.588565736 | C150: -0.08008558003 | D150: -0.08008558003 | E150: TRUE
A151: -0.0814 | B151: -4.669042313 | C151: -0.08149016128 | D151: -0.08149016128 | E151: TRUE
A152: -0.1 | B152: -5.739170477 | C152: -0.1001674212 | D152: -0.1001674212 | E152: TRUE
A153: -0.116 | B153: -6.661306867 | C153: -0.1162617373 | D153: -0.1162617373 | E153: TRUE
A154: -0.13 | B154: -7.469592316 | C154: -0.1303689797 | D154: -0.1303689797 | E154: TRUE
A155: -0.15 | B155: -8.626926559 | C155: -0.1505682728 | D155: -0.1505682728 | E155: TRUE
A156: -0.18 | B156: -10.36975981 | C156: -0.1809864512 | D156: -0.1809864512 | E156: TRUE
A157: -0.24 | B157: -13.88654036 | C157: -0.242365851 | D157: -0.242365851 | E157: TRUE
A158: -0.2604 | B158: -15.09379805 | C158: -0.2634364725 | D158: -0.2634364725 | E158: TRUE
A159: -0.27 | B159: -15.66426685 | C159: -0.2733930315 | D159: -0.2733930315 | E159: TRUE
A160: -0.29064941 | B160: =C160*180/PI() -> -16.89683925 | C160: -0.294905478 | D160: -0.294905478 | E160: TRUE
A161: -0.3 | B161: -17.45760312 | C161: -0.304692654 | D161: -0.304692654 | E161: TRUE
A162: -0.32 | B162: -18.66292488 | C162: -0.3257294873 | D162: -0.3257294873 | E162: TRUE
A163: -0.33 | B163: -19.26877549 | C163: -0.3363035752 | D163: -0.3363035752 | E163: TRUE
A164: -0.33868408 | B164: -19.79672138 | C164: -0.3455179692 | D164: -0.3455179692 | E164: TRUE
A165: -0.35 | B165: -20.48731511 | C165: -0.3575711036 | D165: -0.3575711036 | E165: TRUE
A166: -0.36651611 | B166: -21.50091653 | C166: =ASIN(A166) -> -0.3752617856 | D166: -0.3752617856 | E166: TRUE
A167: -0.37 | B167: -21.71561728 | C167: -0.3790090207 | D167: -0.3790090207 | E167: TRUE
A168: -0.37 | B168: -21.71561728 | C168: -0.3790090207 | D168: -0.3790090207 | E168: TRUE
A169: -0.39974976 | B169: -23.5625357 | C169: -0.4112438281 | D169: -0.4112438281 | E169: TRUE
A170: -0.41 | B170: -24.2048348 | C170: -0.4224540622 | D170: -0.4224540622 | E170: TRUE
A171: -0.4294 | B171: -25.42948866 | C171: -0.4438283043 | D171: -0.4438283043 | E171: TRUE
A172: -0.4359 | B172: -25.84257611 | C172: -0.4510380403 | D172: -0.4510380403 | E172: =IF(F172=0,IF(ISERR(C172),"Error", IF(C172=D172,TRUE,FALSE)),"NSup") -> TRUE
A173: -0.44799805 | B173: -26.61531329 | C173: -0.4645248483 | D173: -0.4645248483 | E173: TRUE
A174: -0.48 | B174: -28.68540201 | C174: -0.5006547124 | D174: -0.5006547124 | E174: TRUE
A175: -0.49609375 | B175: -29.74189934 | C175: -0.5190940693 | D175: -0.5190940693 | E175: TRUE
A176: -0.49963379 | B176: -29.9757747 | C176: -0.5231759643 | D176: -0.5231759643 | E176: TRUE
A177: -0.51 | B177: -30.66382974 | C177: -0.5351847903 | D177: -0.5351847903 | E177: TRUE
A178: -0.5305 | B178: -32.03924404 | C178: -0.5591902983 | D178: -0.5591902983 | E178: TRUE
A179: -0.5384 | B179: -32.5747862 | C179: -0.5685372723 | D179: -0.5685372723 | E179: TRUE
A180: -0.54394531 | B180: -32.95261924 | C180: -0.5751317029 | D180: -0.5751317029 | E180: TRUE
A181: -0.5582 | B181: -33.93140693 | C181: -0.5922147708 | D181: -0.5922147708 | E181: TRUE
A182: -0.56045532 | B182: -34.087292 | C182: -0.5949354786 | D182: -0.5949354786 | E182: TRUE
A183: -0.5678 | B183: -34.59695511 | C183: -0.6038307778 | D183: -0.6038307778 | E183: TRUE
A184: -0.58 | B184: -35.45054264 | C184: -0.6187286907 | D184: -0.6187286907 | E184: TRUE
A185: -0.58 | B185: -35.45054264 | C185: -0.6187286907 | D185: -0.6187286907 | E185: TRUE
A186: -0.61 | B186: -37.58950296 | C186: -0.6560605909 | D186: -0.6560605909 | E186: TRUE
A187: -0.62 | B187: -38.31613447 | C187: -0.6687427032 | D187: -0.6687427032 | E187: TRUE
A188: -0.64 | B188: -39.7918195 | C188: -0.6944982656 | D188: -0.6944982656 | E188: TRUE
A189: -0.6575 | B189: -41.10948614 | C189: -0.7174958869 | D189: -0.7174958869 | E189: TRUE
A190: -0.7182 | B190: -45.90606837 | C190: -0.8012120397 | D190: -0.8012120397 | E190: TRUE
A191: -0.74 | B191: -47.73141557 | C191: -0.8330703583 | D191: -0.8330703583 | E191: TRUE
A192: -0.77203369 | B192: =C192*180/PI() -> -50.53686533 | C192: -0.8820346937 | D192: -0.8820346937 | E192: TRUE
A193: -0.78 | B193: -51.2605754 | C193: -0.8946658172 | D193: -0.8946658172 | E193: TRUE
A194: -0.80270386 | B194: -53.38908325 | C194: -0.9318152874 | D194: -0.9318152874 | E194: TRUE
A195: -0.82980347 | B195: -56.07855491 | C195: -0.978755423 | D195: -0.978755423 | E195: TRUE
A196: -0.85 | B196: -58.21166938 | C196: -1.015985294 | D196: -1.015985294 | E196: TRUE
A197: -0.86 | B197: -59.31658289 | C197: -1.035269672 | D197: -1.035269672 | E197: TRUE
A198: -0.91 | B198: -65.50535153 | C198: =ASIN(A198) -> -1.143284062 | D198: -1.143284062 | E198: TRUE
A199: -0.91946411 | B199: -66.84786379 | C199: -1.166715321 | D199: -1.166715321 | E199: TRUE
A200: -0.93 | B200: -68.43481498 | C200: -1.194412844 | D200: -1.194412844 | E200: TRUE
A201: -0.9576 | B201: -73.25569465 | C201: -1.278553067 | D201: -1.278553067 | E201: TRUE
A202: -0.97027588 | B202: -75.99530046 | C202: -1.326368209 | D202: -1.326368209 | E202: TRUE
A203: -0.99 | B203: -81.89038554 | C203: -1.429256853 | D203: -1.429256853 | E203: TRUE

Sheet ASINH
A1: =SUM(A3:A5) -> 0 | B1: =SUM(B3:B5) -> 2 | C1: =SUM(C3:C5) -> 0 | D1: Total
A2: Failed | B2: Error | C2: NotSupport | D2: Verification Area
A3: =COUNTIF(INDIRECT(D3),"=false") -> 0 | B3: =COUNTIF(INDIRECT(D3),"=Error") -> 2 | C3: =COUNTIF(INDIRECT(D3),"=NSup") -> 0 | D3: E12:E128
A9: ASINH(number)
A11: Data | C11: Formula | D11: Expected | E11: Check | F11: Mask | G11: Comments | H11: Description
C12: =ASINH(1) -> 0.881373587 | D12: 0.881373587 | E12: =IF(F12=0,IF(ISERR(C12),"Error", IF(C12=D12,TRUE,FALSE)),"NSup") -> TRUE
A13: 2 | C13: =ASINH(A13) -> 1.443635475 | D13: 1.443635475 | E13: TRUE
A14: 3 | C14: 1.818446459 | D14: 1.818446459 | E14: TRUE
A15: 4 | C15: 2.094712547 | D15: 2.094712547 | E15: TRUE
A16: 5 | C16: 2.312438341 | D16: 2.312438341 | E16: TRUE
A17: 6 | C17: 2.491779853 | D17: 2.491779853 | E17: TRUE
A18: 7 | C18: 2.644120761 | D18: 2.644120761 | E18: TRUE
A19: 8 | C19: 2.776472281 | D19: 2.776472281 | E19: TRUE
A20: 9 | C20: 2.893443986 | D20: 2.893443986 | E20: TRUE
A21: 10 | C21: 2.99822295 | D21: 2.99822295 | E21: TRUE
A22: 11 | C22: 3.093102195 | D22: 3.093102195 | E22: TRUE
A23: 12 | C23: 3.179785438 | D23: 3.179785438 | E23: TRUE
A24: 13 | C24: 3.259572556 | D24: 3.259572556 | E24: TRUE
A25: 14 | C25: 3.333477587 | D25: 3.333477587 | E25: TRUE
A26: 15 | C26: 3.402306645 | D26: 3.402306645 | E26: TRUE
A27: 100 | C27: 5.298342366 | D27: 5.298342366 | E27: TRUE
A28: 0 | C28: 0 | D28: 0 | E28: TRUE
A29: -10 | C29: -2.99822295 | D29: -2.99822295 | E29: TRUE
A30: -1e-14 | C30: -9.992007222e-15 | D30: -9.992007222e-15 | E30: TRUE
A31: 0.1 | C31: 0.0998340789 | D31: 0.0998340789 | E31: TRUE
A32: 1 | C32: 0.881373587 | D32: 0.881373587 | E32: TRUE
A33: text | E33: Error | H33: invalid parameter
E34: Error | H34: space
C35: =ASINH("12") -> 3.179785438 | D35: 3.179785438 | E35: TRUE | H35: Numbers in Text format
A36: 10 | C36: =ASINH(A36) -> 2.99822295 | D36: 2.99822295 | E36: TRUE
A37: 100 | C37: =ASINH(A37:$A$38) -> 5.298342366 | D37: 5.298342366 | E37: TRUE | H37: array formula
A38: 2 | C38: 1.443635475 | D38: 1.443635475 | E38: TRUE
A39: 1.376687 | C39: =ASINH(A39) -> 1.124356524 | D39: 1.124356524 | E39: TRUE | H39: Random number
A40: 2 | C40: 1.443635475 | D40: 1.443635475 | E40: TRUE
A41: 2.02621089 | C41: 1.455296267 | D41: 1.455296267 | E41: TRUE
A42: 2.3201 | C42: 1.578263616 | D42: 1.578263616 | E42: TRUE
A43: 4.8915 | C43: 2.290934675 | D43: 2.290934675 | E43: TRUE
A44: 5.3363938 | C44: 2.37636287 | D44: 2.37636287 | E44: =IF(F44=0,IF(ISERR(C44),"Error", IF(C44=D44,TRUE,FALSE)),"NSup") -> TRUE
A45: 10.38461985 | C45: 3.035783254 | D45: 3.035783254 | E45: TRUE
A46: 10.59991 | C46: 3.05621033 | D46: 3.05621033 | E46: TRUE
A47: 12.2918835 | C47: 3.203736894 | D47: 3.203736894 | E47: TRUE
A48: 20.912459 | C48: 3.734063446 | D48: 3.734063446 | E48: TRUE
A49: 26.355 | C49: 3.965164923 | D49: 3.965164923 | E49: TRUE
A50: 64.5185 | C50: 4.860159238 | D50: 4.860159238 | E50: TRUE
A51: 99.7713752 | C51: 5.296053615 | D51: 5.296053615 | E51: TRUE
A52: 21847.74151 | C52: 10.68500001 | D52: 10.68500001 | E52: TRUE
A53: 46954 | C53: 11.45007086 | D53: 11.45007086 | E53: TRUE
A54: 157282.6015 | C54: 12.65894666 | D54: 12.65894666 | E54: TRUE
A55: 47815761.94 | C55: 18.37601307 | D55: 18.37601307 | E55: TRUE
A56: 68298786.03 | C56: 18.73254973 | D56: 18.73254973 | E56: TRUE
A57: 1.0602 | C57: 0.9233073314 | D57: 0.9233073314 | E57: TRUE
A58: 1.16765 | C58: 0.9950972832 | D58: 0.9950972832 | E58: TRUE
A59: 1.1893029 | C59: 1.009106963 | D59: 1.009106963 | E59: TRUE
A60: 1.6 | C60: 1.248983328 | D60: 1.248983328 | E60: TRUE
A61: 1.61119631 | C61: 1.25490247 | D61: 1.25490247 | E61: TRUE
A62: 3.063 | C62: 1.838182755 | D62: 1.838182755 | E62: TRUE
A63: 6.1 | C63: 2.508087859 | D63: 2.508087859 | E63: TRUE
A64: 14.32789427 | C64: 3.356571046 | D64: 3.356571046 | E64: TRUE
A65: 19.981 | C65: 3.688554604 | D65: 3.688554604 | E65: TRUE
A66: 26.40846123 | C66: 3.967189919 | D66: 3.967189919 | E66: TRUE
A67: 33.027528 | C67: 4.190717683 | D67: 4.190717683 | E67: TRUE
A68: 36.5654299 | C68: 4.292437365 | D68: 4.292437365 | E68: TRUE
A69: 68.71695169 | C69: 4.923196038 | D69: 4.923196038 | E69: TRUE
A70: 142.379647 | C70: 5.651656573 | D70: 5.651656573 | E70: TRUE
A71: 160.516251 | C71: =ASINH(A71) -> 5.771552073 | D71: 5.771552073 | E71: TRUE
A72: 444.211 | C72: 6.789448122 | D72: 6.789448122 | E72: TRUE
A73: 506 | C73: 6.919684826 | D73: 6.919684826 | E73: TRUE
A74: 714 | C74: 7.264030633 | D74: 7.264030633 | E74: TRUE
A75: 1580 | C75: 8.058327407 | D75: 8.058327407 | E75: TRUE
A76: 2605.72963 | C76: 8.558615221 | D76: 8.558615221 | E76: =IF(F76=0,IF(ISERR(C76),"Error", IF(C76=D76,TRUE,FALSE)),"NSup") -> TRUE
A77: 127396.0489 | C77: 12.44820319 | D77: 12.44820319 | E77: TRUE
A78: 242666367.4 | C78: 20.00034527 | D78: 20.00034527 | E78: TRUE
A79: 790275371.7 | C79: 21.1810392 | D79: 21.1810392 | E79: TRUE
A80: -232833039.9 | C80: -19.95897937 | D80: -19.95897937 | E80: TRUE
A81: -5122.09854 | C81: -9.234466695 | D81: -9.234466695 | E81: TRUE
A82: -3112.6176 | C82: -8.73636653 | D82: -8.73636653 | E82: TRUE
A83: -96.9082 | C83: -5.266937939 | D83: -5.266937939 | E83: TRUE
A84: -37.20213698 | C84: -4.309693973 | D84: -4.309693973 | E84: TRUE
A85: -33 | C85: -4.189884231 | D85: -4.189884231 | E85: TRUE
A86: -28.38017972 | C86: -4.039148432 | D86: -4.039148432 | E86: TRUE
A87: -20 | C87: -3.689503869 | D87: -3.689503869 | E87: TRUE
A88: -18.461 | C88: -3.609540323 | D88: -3.609540323 | E88: TRUE
A89: -15 | C89: -3.402306645 | D89: -3.402306645 | E89: TRUE
A90: -5.5364446 | C90: -2.412557713 | D90: -2.412557713 | E90: TRUE
A91: -5.07 | C91: -2.326074875 | D91: -2.326074875 | E91: TRUE
A92: -4.394067 | C92: -2.186106039 | D92: -2.186106039 | E92: TRUE
A93: -4.318386 | C93: -2.169173017 | D93: -2.169173017 | E93: TRUE
A94: -3.7478094 | C94: -2.031660032 | D94: -2.031660032 | E94: TRUE
A95: -1.509013007 | C95: -1.199752358 | D95: -1.199752358 | E95: TRUE
A96: -1.464702 | C96: -1.175022564 | D96: -1.175022564 | E96: TRUE
A97: -1.141152336 | C97: -0.9777477647 | D97: -0.9777477647 | E97: TRUE
A98: -1.122492 | C98: -0.9653923687 | D98: -0.9653923687 | E98: TRUE
A99: -1 | C99: -0.881373587 | D99: -0.881373587 | E99: TRUE
A100: -0.4905303 | C100: -0.4727258674 | D100: -0.4727258674 | E100: TRUE
A101: -0.2472 | C101: -0.2447491705 | D101: -0.2447491705 | E101: TRUE
A102: -0.044 | C102: -0.04398581502 | D102: -0.04398581502 | E102: TRUE
A103: -49059090.08 | C103: =ASINH(A103) -> -18.40168323 | D103: -18.40168323 | E103: TRUE
A104: -393206.59 | C104: -13.57523761 | D104: -13.57523761 | E104: TRUE
A105: -64506.54452 | C105: -11.76766914 | D105: -11.76766914 | E105: TRUE
A106: -47432.601 | C106: -11.46021224 | D106: -11.46021224 | E106: TRUE
A107: -30627.14465 | C107: -11.02278916 | D107: -11.02278916 | E107: TRUE
A108: -6810 | C108: -9.519294585 | D108: -9.519294585 | E108: =IF(F108=0,IF(ISERR(C108),"Error", IF(C108=D108,TRUE,FALSE)),"NSup") -> TRUE
A109: -3578 | C109: -8.875706464 | D109: -8.875706464 | E109: TRUE
A110: -506.0514571 | C110: -6.919786515 | D110: -6.919786515 | E110: TRUE
A111: -116.281704 | C111: -5.449181399 | D111: -5.449181399 | E111: TRUE
A112: -78.310696 | C112: -5.053872141 | D112: -5.053872141 | E112: TRUE
A113: -45.5304521 | C113: -4.511649135 | D113: -4.511649135 | E113: TRUE
A114: -13.2944 | C114: -3.281901581 | D114: -3.281901581 | E114: TRUE
A115: -8.289 | C115: -2.811695427 | D115: -2.811695427 | E115: TRUE
A116: -8.042 | C116: -2.781668321 | D116: -2.781668321 | E116: TRUE
A117: -5.376 | C117: -2.383631764 | D117: -2.383631764 | E117: TRUE
A118: -4 | C118: -2.094712547 | D118: -2.094712547 | E118: TRUE
A119: -3.46967394 | C119: -1.957355721 | D119: -1.957355721 | E119: TRUE
A120: -2.499875225 | C120: -1.647184805 | D120: -1.647184805 | E120: TRUE
A121: -1.93077524 | C121: -1.412241579 | D121: -1.412241579 | E121: TRUE
A122: -1.8372 | C122: -1.368365265 | D122: -1.368365265 | E122: TRUE
A123: -1.634 | C123: -1.266866733 | D123: -1.266866733 | E123: TRUE
A124: -1.592889018 | C124: -1.245208482 | D124: -1.245208482 | E124: TRUE
A125: -0.778291 | C125: -0.7156264852 | D125: -0.7156264852 | E125: TRUE
A126: -0.580331 | C126: -0.5518858663 | D126: -0.5518858663 | E126: TRUE
A127: -0.3704 | C127: -0.3624142416 | D127: -0.3624142416 | E127: TRUE
A128: -0.19816 | C128: -0.1968855236 | D128: -0.1968855236 | E128: TRUE

Sheet ATAN
A1: =SUM(A3:A5) -> 0 | B1: =SUM(B3:B5) -> 0 | C1: =SUM(C3:C5) -> 0 | D1: Total
A2: Failed | B2: Error | C2: NotSupport | D2: Verification Area
A3: =COUNTIF(INDIRECT(D3),"=false") -> 0 | B3: =COUNTIF(INDIRECT(D3),"=Error") -> 0 | C3: =COUNTIF(INDIRECT(D3),"=NSup") -> 0 | D3: E12:E249
A9: ATAN(number)
A11: Data | C11: Formula | D11: Expected | E11: Check | F11: Mask | G11: Comments | H11: Description
B12: =C12*180/PI() -> 45 | C12: =ATAN(1) -> 0.7853981634 | D12: 0.7853981634 | E12: =IF(F12=0,IF(ISERR(C12),"Error", IF(C12=D12,TRUE,FALSE)),"NSup") -> TRUE
A13: 1e+23 | B13: 90 | C13: =ATAN(A13) -> 1.570796327 | D13: 1.570796327 | E13: TRUE
B14: 89.99999943 | C14: =ATAN(100000000) -> 1.570796317 | D14: 1.570796317 | E14: TRUE
A15: 450089765.7 | B15: 89.99999987 | C15: =ATAN(A15) -> 1.570796325 | D15: 1.570796325 | E15: TRUE
A16: 39406759.04 | B16: 89.99999855 | C16: =ATAN(A16) -> 1.570796301 | D16: 1.570796301 | E16: TRUE
A17: 1487249.333 | B17: 89.99996148 | C17: =ATAN(A17) -> 1.570795654 | D17: 1.570795654 | E17: TRUE
A18: 1407359.208 | B18: 89.99995929 | C18: =ATAN(A18) -> 1.570795616 | D18: 1.570795616 | E18: TRUE
A19: 296032 | B19: 89.99980645 | C19: =ATAN(A19) -> 1.570792949 | D19: 1.570792949 | E19: TRUE
B20: 89.99977423 | C20: =ATAN("253779") -> 1.570792386 | D20: 1.570792386 | E20: TRUE | H20: text
A21: 74893.26486 | B21: 89.99923497 | C21: =ATAN(A21) -> 1.570782974 | D21: 1.570782974 | E21: TRUE
B22: 89.9991543 | C22: =ATAN("67749.2") -> 1.570781566 | D22: 1.570781566 | E22: TRUE | H22: text
A23: 16227.24267 | B23: 89.99646916 | C23: =ATAN(A23) -> 1.570734702 | D23: 1.570734702 | E23: TRUE
A24: 8315.49952 | B24: 89.99310976 | C24: 1.570676069 | D24: 1.570676069 | E24: TRUE
A25: 7578.602 | B25: 89.9924398 | C25: 1.570664376 | D25: 1.570664376 | E25: TRUE
A26: 4249.09691 | B26: 89.98651578 | C26: 1.570560983 | D26: 1.570560983 | E26: TRUE
A27: 3967.77561 | B27: 89.98555972 | C27: 1.570544296 | D27: 1.570544296 | E27: TRUE
A28: 3938.288378 | B28: 89.9854516 | C28: 1.570542409 | D28: 1.570542409 | E28: TRUE
A29: 2814.025 | B29: 89.97963921 | C29: 1.570440964 | D29: 1.570440964 | E29: TRUE
A30: 702.930293 | B30: 89.91849015 | C30: 1.569373712 | D30: 1.569373712 | E30: TRUE
A31: 603.08 | B31: 89.90499481 | C31: 1.569138174 | D31: 1.569138174 | E31: TRUE
A32: 427.454524 | B32: 89.86596077 | C32: 1.568456901 | D32: 1.568456901 | E32: TRUE
A33: 288.022651 | B33: 89.80107277 | C33: 1.567324392 | D33: 1.567324392 | E33: TRUE
A34: 174 | B34: 89.67071754 | C34: 1.565049264 | D34: 1.565049264 | E34: TRUE
A35: 163.741697 | B35: 89.65008872 | C35: 1.564689223 | D35: 1.564689223 | E35: TRUE
A36: 163.252816 | B36: 89.64904089 | C36: 1.564670935 | D36: 1.564670935 | E36: TRUE
A37: 118.0002025 | B37: 89.514455 | C37: 1.562321968 | D37: 1.562321968 | E37: TRUE
A38: 95.73 | B38: 89.40150741 | C38: 1.560350661 | D38: 1.560350661 | E38: TRUE
A39: 84.619 | B39: 89.32292851 | C39: 1.5589792 | D39: 1.5589792 | E39: TRUE
A40: 51.775915 | B40: 88.89352691 | C40: 1.551484728 | D40: 1.551484728 | E40: TRUE
A41: 43.9 | B41: 88.69508263 | C41: 1.548021222 | D41: 1.548021222 | E41: TRUE
A42: 42.14919248 | B42: 88.64089845 | C42: 1.54707553 | D42: 1.54707553 | E42: TRUE
A43: 30.353 | B43: 88.11303453 | C43: 1.537862566 | D43: 1.537862566 | E43: TRUE
A44: 30 | B44: 88.09084757 | C44: 1.537475331 | D44: 1.537475331 | E44: TRUE
A45: 24.629 | B45: 87.67492284 | C45: 1.530216075 | D45: 1.530216075 | E45: TRUE
A46: 23.6 | B46: 87.57366417 | C46: 1.528448778 | D46: 1.528448778 | E46: TRUE
A47: 23.55 | B47: 87.56851889 | C47: 1.528358976 | D47: 1.528358976 | E47: TRUE
A48: 23.512501 | B48: 87.5646457 | C48: 1.528291376 | D48: 1.528291376 | E48: TRUE
A49: 19 | B49: 86.9872125 | C49: 1.518213265 | D49: 1.518213265 | E49: TRUE
A50: 14.729 | B50: 86.11596257 | C50: 1.503007085 | D50: 1.503007085 | E50: TRUE
A51: 11.912835 | B51: 85.20166538 | C51: 1.487049589 | D51: 1.487049589 | E51: TRUE
A52: 11.70636992 | B52: 85.11744282 | C52: 1.485579628 | D52: 1.485579628 | E52: TRUE
A53: 11.12942965 | B53: 84.86565492 | C53: 1.4811851 | D53: 1.4811851 | E53: TRUE
A54: 10.4573065 | B54: 84.53759108 | C54: 1.475459306 | D54: 1.475459306 | E54: TRUE
A55: 8.775 | B55: 83.49861393 | C55: 1.457325734 | D55: 1.457325734 | E55: TRUE
A56: 6.14606435 | B56: 80.7586289 | C56: 1.409503974 | D56: 1.409503974 | E56: TRUE
A57: 5.8 | B57: 80.21759297 | C57: 1.400061115 | D57: 1.400061115 | E57: TRUE
A58: 5.166666667 | B58: 79.04593736 | C58: 1.379611867 | D58: 1.379611867 | E58: TRUE
A59: 3.8415 | B59: 75.40888074 | C59: 1.316133254 | D59: 1.316133254 | E59: TRUE
A60: 3.30991 | B60: 73.18922475 | C60: 1.277392949 | D60: 1.277392949 | E60: TRUE
A61: 3.28459739 | B61: 73.0670602 | C61: 1.275260775 | D61: 1.275260775 | E61: TRUE
A62: 2.7 | B62: 69.67686317 | C62: 1.216090675 | D62: 1.216090675 | E62: TRUE
A63: 2.698387 | B63: 69.66570917 | C63: 1.215896001 | D63: 1.215896001 | E63: TRUE
A64: 2.596 | B64: 68.93291544 | C64: 1.203106337 | D64: 1.203106337 | E64: TRUE
A65: 2.589236029 | B65: 68.88272583 | C65: 1.202230364 | D65: 1.202230364 | E65: TRUE
A66: 2.57667 | B66: 68.7888759 | C66: 1.200592373 | D66: 1.200592373 | E66: TRUE
A67: 2.49177082 | B67: 68.13337136 | C67: 1.189151661 | D67: 1.189151661 | E67: TRUE
A68: 2.3718705 | B68: 67.13931402 | C68: 1.171802087 | D68: 1.171802087 | E68: TRUE
A69: 2.24585708 | B69: 65.99829662 | C69: 1.151887577 | D69: 1.151887577 | E69: TRUE
A70: 2 | B70: 63.43494882 | C70: 1.107148718 | D70: 1.107148718 | E70: TRUE
A71: 1.8 | B71: 60.9453959 | C71: 1.063697822 | D71: 1.063697822 | E71: TRUE
A72: 1.6576 | B72: 58.89818162 | C72: 1.027967193 | D72: 1.027967193 | E72: TRUE
A73: 1.61389 | B73: 58.21677889 | C73: 1.016074471 | D73: 1.016074471 | E73: TRUE
A74: 1.57855 | B74: 57.64603742 | C74: 1.006113154 | D74: 1.006113154 | E74: TRUE
A75: 1.51959 | B75: 56.65219511 | C75: 0.9887673332 | D75: 0.9887673332 | E75: TRUE
A76: 1.43645 | B76: =C76*180/PI() -> 55.15588194 | C76: 0.9626517417 | D76: 0.9626517417 | E76: =IF(F76=0,IF(ISERR(C76),"Error", IF(C76=D76,TRUE,FALSE)),"NSup") -> TRUE
A77: 1.423147 | B77: 54.90551041 | C77: 0.9582819342 | D77: 0.9582819342 | E77: TRUE
A78: 1.336338 | B78: 53.19198877 | C78: 0.9283753398 | D78: 0.9283753398 | E78: TRUE
A79: 1.294035015 | B79: 52.3039894 | C79: 0.9128768269 | D79: 0.9128768269 | E79: TRUE
A80: 1.23876961 | B80: 51.08770622 | C80: 0.8916486807 | D80: 0.8916486807 | E80: TRUE
A81: 1.223972044 | B81: 50.75076091 | C81: 0.8857678758 | D81: 0.8857678758 | E81: TRUE
A82: 1.13 | B82: 48.49259316 | C82: 0.8463554135 | D82: 0.8463554135 | E82: TRUE
A83: 1.1 | B83: 47.72631099 | C83: 0.8329812667 | D83: 0.8329812667 | E83: TRUE
A84: 1.1 | B84: 47.72631099 | C84: 0.8329812667 | D84: 0.8329812667 | E84: TRUE
A85: 1.0883 | B85: 47.42120648 | C85: 0.8276561883 | D85: 0.8276561883 | E85: TRUE
A86: 1.06749361 | B86: 46.8697645 | C86: 0.8180317101 | D86: 0.8180317101 | E86: TRUE
A87: 1.03 | B87: 45.84667402 | C87: =ATAN(A87) -> 0.8001754128 | D87: 0.8001754128 | E87: TRUE
A88: 1.0072273 | B88: 45.2063005 | C88: 0.7889987864 | D88: 0.7889987864 | E88: TRUE
A89: 1 | B89: 45 | C89: 0.7853981634 | D89: 0.7853981634 | E89: TRUE
A90: 0.99 | B90: 44.71208393 | C90: 0.7803730801 | D90: 0.7803730801 | E90: TRUE
A91: 0.934 | B91: 43.04547338 | C91: 0.7512852385 | D91: 0.7512852385 | E91: TRUE
A92: 0.9 | B92: 41.9872125 | C92: 0.7328151018 | D92: 0.7328151018 | E92: TRUE
A93: 0.839616073 | B93: 40.01735967 | C93: 0.6984346842 | D93: 0.6984346842 | E93: TRUE
A94: 0.83596 | B94: 39.89427429 | C94: 0.696286439 | D94: 0.696286439 | E94: TRUE
A95: 0.7908 | B95: 38.33694737 | C95: 0.6691059568 | D95: 0.6691059568 | E95: TRUE
A96: 0.639815 | B96: 32.61172277 | C96: 0.5691819372 | D96: 0.5691819372 | E96: TRUE
A97: 0.5969349 | B97: 30.83445154 | C97: 0.5381627023 | D97: 0.5381627023 | E97: TRUE
A98: 0.5 | B98: 26.56505118 | C98: 0.463647609 | D98: 0.463647609 | E98: TRUE
A99: 0.46 | B99: 24.70243023 | C99: 0.4311387407 | D99: 0.4311387407 | E99: TRUE
A100: 0.187387 | B100: 10.61340061 | C100: 0.1852387855 | D100: 0.1852387855 | E100: TRUE
A101: 0.1735 | B101: 9.842834466 | C101: 0.1717898692 | D101: 0.1717898692 | E101: TRUE
A102: 0 | B102: 0 | C102: 0 | D102: 0 | E102: TRUE
A103: -0.14 | B103: -7.969610394 | C103: -0.1390959415 | D103: -0.1390959415 | E103: TRUE
A104: -0.15609 | B104: -8.871710085 | C104: -0.1548405513 | D104: -0.1548405513 | E104: TRUE
A105: -0.16 | B105: -9.090276921 | C105: -0.1586552622 | D105: -0.1586552622 | E105: TRUE
A106: -0.183064413 | B106: -10.37395014 | C106: -0.1810595865 | D106: -0.1810595865 | E106: TRUE
A107: -0.1934 | B107: -10.94586745 | C107: -0.1910414266 | D107: -0.1910414266 | E107: TRUE
A108: -0.23702 | B108: -13.33418212 | C108: -0.232725381 | D108: -0.232725381 | E108: TRUE
A109: -0.25640273 | B109: -14.38098996 | C109: -0.2509956245 | D109: -0.2509956245 | E109: TRUE
A110: -0.342 | B110: -18.88068797 | C110: -0.32953017 | D110: -0.32953017 | E110: TRUE
A111: -0.35566554 | B111: -19.57872004 | C111: -0.341713128 | D111: -0.341713128 | E111: TRUE
A112: -0.387404334 | B112: -21.17658368 | C112: -0.3696011096 | D112: -0.3696011096 | E112: TRUE
A113: -0.409432 | B113: -22.26576298 | C113: -0.3886108744 | D113: -0.3886108744 | E113: TRUE
A114: -0.4489727 | B114: -24.17877852 | C114: -0.4219992943 | D114: -0.4219992943 | E114: TRUE
A115: -0.4884049 | B115: -26.03110989 | C115: -0.4543285755 | D115: -0.4543285755 | E115: TRUE
A116: -0.56584 | B116: -29.50291752 | C116: -0.5149230497 | D116: -0.5149230497 | E116: TRUE
A117: -0.57818 | B117: -30.03564224 | C117: -0.5242208501 | D117: -0.5242208501 | E117: TRUE
A118: -0.6 | B118: -30.96375653 | C118: -0.5404195003 | D118: -0.5404195003 | E118: TRUE
A119: -0.61558 | B119: -31.61562131 | C119: -0.5517966869 | D119: -0.5517966869 | E119: TRUE
A120: -0.6197 | B120: -31.78649514 | C120: -0.5547789978 | D120: -0.5547789978 | E120: TRUE
A121: -0.6336 | B121: -32.35834701 | C121: -0.5647596959 | D121: -0.5647596959 | E121: TRUE
A122: -0.7132 | B122: -35.49646562 | C122: -0.6195301978 | D122: -0.6195301978 | E122: TRUE
A123: -0.75 | B123: -36.86989765 | C123: -0.6435011088 | D123: -0.6435011088 | E123: TRUE
A124: -0.8 | B124: -38.65980825 | C124: -0.6747409422 | D124: -0.6747409422 | E124: TRUE
A125: -0.90307757 | B125: -42.08448442 | C125: -0.7345128171 | D125: -0.7345128171 | E125: TRUE
A126: -0.91268862 | B126: -42.38634763 | C126: -0.739781324 | D126: -0.739781324 | E126: TRUE
A127: -0.935 | B127: -43.07605902 | C127: -0.7518190586 | D127: -0.7518190586 | E127: TRUE
A128: -0.97119297 | B128: -44.16273862 | C128: -0.7707851955 | D128: -0.7707851955 | E128: TRUE
A129: -0.97268 | B129: -44.20655117 | C129: -0.7715498689 | D129: -0.7715498689 | E129: TRUE
A130: -0.977083864 | B130: -44.3359214 | C130: -0.7738078054 | D130: -0.7738078054 | E130: TRUE
A131: -0.998103032 | B131: -44.94560429 | C131: -0.7844487792 | D131: -0.7844487792 | E131: TRUE
A132: -1 | B132: -45 | C132: -0.7853981634 | D132: -0.7853981634 | E132: TRUE
A133: -1.0239 | B133: -45.67656776 | C133: -0.7972064984 | D133: -0.7972064984 | E133: TRUE
A134: -1.1026264 | B134: -47.7943133 | C134: -0.8341681309 | D134: -0.8341681309 | E134: TRUE
A135: -1.2 | B135: -50.19442891 | C135: -0.8760580506 | D135: -0.8760580506 | E135: TRUE
A136: -1.24248 | B136: -51.17143102 | C136: -0.8931099542 | D136: -0.8931099542 | E136: TRUE
A137: -1.4833764 | B137: -56.01460391 | C137: -0.9776392675 | D137: -0.9776392675 | E137: TRUE
A138: -1.502116 | B138: -56.34720003 | C138: -0.9834441648 | D138: -0.9834441648 | E138: TRUE
A139: -1.597 | B139: -57.94626865 | C139: -1.011353177 | D139: -1.011353177 | E139: TRUE
A140: -2 | B140: =C140*180/PI() -> -63.43494882 | C140: -1.107148718 | D140: -1.107148718 | E140: =IF(F140=0,IF(ISERR(C140),"Error", IF(C140=D140,TRUE,FALSE)),"NSup") -> TRUE
A141: -2 | B141: -63.43494882 | C141: -1.107148718 | D141: -1.107148718 | E141: TRUE
A142: -2 | B142: -63.43494882 | C142: -1.107148718 | D142: -1.107148718 | E142: TRUE
A143: -2 | B143: -63.43494882 | C143: -1.107148718 | D143: -1.107148718 | E143: TRUE
A144: -2.1544 | B144: -65.10085737 | C144: -1.136224307 | D144: -1.136224307 | E144: TRUE
A145: -2.3 | B145: -66.50143432 | C145: -1.160668986 | D145: -1.160668986 | E145: TRUE
A146: -2.3 | B146: -66.50143432 | C146: -1.160668986 | D146: -1.160668986 | E146: TRUE
A147: -2.39837 | B147: -67.36631165 | C147: -1.175763943 | D147: -1.175763943 | E147: TRUE
A148: -2.404026 | B148: -67.41420954 | C148: -1.176599919 | D148: -1.176599919 | E148: TRUE
A149: -2.8 | B149: -70.34617594 | C149: -1.227772386 | D149: -1.227772386 | E149: TRUE
A150: -3.292428053 | B150: -73.10503654 | C150: -1.275923587 | D150: -1.275923587 | E150: TRUE
A151: -3.3042706 | B151: -73.16215612 | C151: =ATAN(A151) -> -1.276920512 | D151: -1.276920512 | E151: TRUE
A152: -3.445 | B152: -73.81326776 | C152: -1.288284554 | D152: -1.288284554 | E152: TRUE
A153: -3.57280649 | B153: -74.3634911 | C153: -1.297887763 | D153: -1.297887763 | E153: TRUE
A154: -3.987648 | B154: -75.92200475 | C154: -1.325088958 | D154: -1.325088958 | E154: TRUE
A155: -4 | B155: -75.96375653 | C155: -1.325817664 | D155: -1.325817664 | E155: TRUE
A156: -4.6 | B156: -77.73522627 | C156: -1.356735643 | D156: -1.356735643 | E156: TRUE
A157: -4.91 | B157: -78.4882437 | C157: -1.369878277 | D157: -1.369878277 | E157: TRUE
A158: -4.9959541 | B158: -78.6811447 | C158: -1.373245034 | D158: -1.373245034 | E158: TRUE
A159: -5.229671 | B159: -79.17476964 | C159: -1.381860415 | D159: -1.381860415 | E159: TRUE
A160: -6.132288699 | B160: -80.73822833 | C160: -1.409147917 | D160: -1.409147917 | E160: TRUE
A161: -6.1964697 | B161: -80.83252152 | C161: -1.410793643 | D161: -1.410793643 | E161: TRUE
A162: -6.3 | B162: -80.98067757 | C162: -1.413379454 | D162: -1.413379454 | E162: TRUE
A163: -6.44002 | B163: -81.17365603 | C163: -1.416747564 | D163: -1.416747564 | E163: TRUE
A164: -7.998 | B164: -82.87322027 | C164: -1.446410555 | D164: -1.446410555 | E164: TRUE
A165: -9.4676066 | B165: -83.97058543 | C165: -1.465563191 | D165: -1.465563191 | E165: TRUE
A166: -12.959 | B166: -85.58743279 | C166: -1.493782501 | D166: -1.493782501 | E166: TRUE
A167: -14.9 | B167: -86.16040366 | C167: -1.503782729 | D167: -1.503782729 | E167: TRUE
A168: -26.345 | B168: -87.82621803 | C168: -1.532856674 | D168: -1.532856674 | E168: TRUE
A169: -55.15 | B169: -88.96120578 | C169: -1.552665947 | D169: -1.552665947 | E169: TRUE
A170: -79.66521622 | B170: -89.28083079 | C170: -1.558244456 | D170: -1.558244456 | E170: TRUE
A171: -113.1808366 | B171: -89.49378101 | C171: -1.561961139 | D171: -1.561961139 | E171: TRUE
A172: -266.7055288 | B172: -89.78517314 | C172: -1.567046891 | D172: -1.567046891 | E172: TRUE
A173: -562.3317 | B173: -89.89811046 | C173: -1.569018019 | D173: -1.569018019 | E173: TRUE
A174: -567.3236 | B174: -89.89900699 | C174: -1.569033666 | D174: -1.569033666 | E174: TRUE
A175: -638 | B175: -89.91019478 | C175: -1.56922893 | D175: -1.56922893 | E175: TRUE
A176: -1745.114815 | B176: -89.96716791 | C176: -1.570223299 | D176: -1.570223299 | E176: TRUE
A177: -2909.563764 | B177: -89.98030778 | C177: -1.570452633 | D177: -1.570452633 | E177: TRUE
A178: -3478 | B178: -89.98352623 | C178: -1.570508805 | D178: -1.570508805 | E178: TRUE
A179: -3706.521424 | B179: -89.9845419 | C179: -1.570526532 | D179: -1.570526532 | E179: TRUE
A180: -5264.334604 | B180: -89.98911624 | C180: -1.570606369 | D180: -1.570606369 | E180: TRUE
A181: -8321.642 | B181: -89.99311485 | C181: -1.570676158 | D181: -1.570676158 | E181: TRUE
A182: -39353.9 | B182: -89.99854409 | C182: -1.570770916 | D182: -1.570770916 | E182: TRUE
A183: -115375 | B183: -89.9995034 | C183: -1.570787659 | D183: -1.570787659 | E183: TRUE
A184: -148248.6117 | B184: -89.99961352 | C184: -1.570789581 | D184: -1.570789581 | E184: TRUE
A185: -790604.6793 | B185: -89.99992753 | C185: -1.570795062 | D185: -1.570795062 | E185: TRUE
A186: -12315612.71 | B186: -89.99999535 | C186: -1.570796246 | D186: -1.570796246 | E186: TRUE
A187: -47927267.68 | B187: -89.9999988 | C187: -1.570796306 | D187: -1.570796306 | E187: TRUE
A188: -2577876054 | B188: -89.99999998 | C188: -1.570796326 | D188: -1.570796326 | E188: TRUE
A189: -4986267462 | B189: -89.99999999 | C189: -1.570796327 | D189: -1.570796327 | E189: TRUE
A190: -5.12E+25 | B190: -90 | C190: -1.570796327 | D190: -1.570796327 | E190: TRUE
B191: 0 | C191: 0 | D191: 0 | E191: TRUE
A192: 1033 | B192: 89.9445346 | C192: 1.569828273 | D192: 1.569828273 | E192: TRUE
A193: -33 | B193: -88.26429541 | C193: -1.540502567 | D193: -1.540502567 | E193: TRUE
A194: 469.7230399 | B194: 89.87802239 | C194: 1.568667416 | D194: 1.568667416 | E194: TRUE
A195: -1.38 | B195: -54.07149758 | C195: -0.9437256642 | D195: -0.9437256642 | E195: TRUE
A196: 0.97 | B196: 44.12754288 | C196: 0.770170914 | D196: 0.770170914 | E196: TRUE
A197: -24.421 | B197: -87.65514157 | C197: -1.529870827 | D197: -1.529870827 | E197: TRUE
A198: 2039 | B198: 89.97190006 | C198: 1.57030589 | D198: 1.57030589 | E198: TRUE
A199: -1.0346 | B199: -45.97426664 | C199: -0.802402324 | D199: -0.802402324 | E199: TRUE
A200: 6.4 | B200: 81.11934085 | C200: 1.415799585 | D200: 1.415799585 | E200: TRUE
A201: -62180.78 | B201: -89.99907856 | C201: -1.570780245 | D201: -1.570780245 | E201: TRUE
A202: 0.7573 | B202: 37.1366469 | C202: 0.6481567616 | D202: 0.6481567616 | E202: TRUE
A203: -37.70858985 | B203: -88.48092029 | C203: -1.544283384 | D203: -1.544283384 | E203: TRUE
A204: 47.708556 | B204: =C204*180/PI() -> 88.79922187 | C204: 1.549838795 | D204: 1.549838795 | E204: =IF(F204=0,IF(ISERR(C204),"Error", IF(C204=D204,TRUE,FALSE)),"NSup") -> TRUE
A205: -1 | B205: -45 | C205: -0.7853981634 | D205: -0.7853981634 | E205: TRUE
A206: 0.5 | B206: 26.56505118 | C206: 0.463647609 | D206: 0.463647609 | E206: TRUE
... 43 more rows

Sheet ATAN2
A1: =SUM(A3:A5) -> 0 | B1: =SUM(B3:B5) -> 1 | C1: =SUM(C3:C5) -> 0 | D1: Total
A2: Failed | B2: Error | C2: NotSupport | D2: Verification Area
A3: =COUNTIF(INDIRECT(D3),"=false") -> 0 | B3: =COUNTIF(INDIRECT(D3),"=Error") -> 1 | C3: =COUNTIF(INDIRECT(D3),"=NSup") -> 0 | D3: E12:E137
A11: Data | C11: Formula | D11: Expected | E11: Check | F11: Mask | G11: Comments | H11: Description
C12: =ATAN2(1,0) -> 0 | D12: 0 | E12: =IF(F12=0,IF(ISERR(C12),"Error", IF(C12=D12,TRUE,FALSE)),"NSup") -> TRUE
A13: 10 | B13: 5 | C13: =ATAN2(A13,B13) -> 0.463647609 | D13: 0.463647609 | E13: TRUE
A14: 1 | B14: 1 | C14: 0.7853981634 | D14: 0.7853981634 | E14: TRUE
A15: 10 | B15: -10 | C15: -0.7853981634 | D15: -0.7853981634 | E15: TRUE
A16: 124 | B16: -12.34 | C16: -0.09918954941 | D16: -0.09918954941 | E16: TRUE
A17: -234 | B17: 45 | C17: 2.951604366 | D17: 2.951604366 | E17: TRUE
A18: -0.325 | B18: -1.4 | C18: -1.798898955 | D18: -1.798898955 | E18: TRUE
A19: 2 | B19: 0 | C19: 0 | D19: 0 | E19: TRUE | H19: 0 degree
A20: 0 | B20: 5.2 | C20: 1.570796327 | D20: 1.570796327 | E20: TRUE | H20: 90 degree
A21: -45 | B21: 0 | C21: 3.141592654 | D21: 3.141592654 | E21: TRUE | H21: 180 degree
A22: 0 | B22: -3 | C22: -1.570796327 | D22: -1.570796327 | E22: TRUE | H22: 270 degree
A23: 4.6 | B23: 2.4 | C23: 0.4808872802 | D23: 0.4808872802 | E23: TRUE | H23: Numeric Text
A24: 3E | B24: 2F | E24: Error | H24: Text
A25: 118786.2 | B25: 8.017994451e+10 | C25: 1.570794845 | D25: 1.570794845 | E25: TRUE | H25: Random number
A26: -58.28 | B26: 30279190591 | C26: 1.570796329 | D26: 1.570796329 | E26: TRUE
A27: 0.08 | B27: 166850.2 | C27: 1.570795847 | D27: 1.570795847 | E27: TRUE
A28: -0.82172 | B28: 83473 | C28: 1.570806171 | D28: 1.570806171 | E28: TRUE
A29: 1.5361 | B29: 3526.02 | C29: 1.57036068 | D29: 1.57036068 | E29: TRUE
A30: -6.6808 | B30: 3035.21 | C30: 1.572997423 | D30: 1.572997423 | E30: TRUE
A31: 8.5771 | B31: 2533.480286 | C31: 1.567410839 | D31: 1.567410839 | E31: TRUE
A32: -570.17 | B32: 302.6423038 | C32: 2.653615101 | D32: 2.653615101 | E32: TRUE
A33: 0.6266375 | B33: 138.321533 | C33: 1.566266062 | D33: 1.566266062 | E33: TRUE
A34: -357002.719 | B34: 122.679358 | C34: 3.141249017 | D34: 3.141249017 | E34: TRUE
A35: 5.061 | B35: 68.3317603 | C35: 1.496866195 | D35: 1.496866195 | E35: TRUE
A36: -6.7937014 | B36: 33.51163 | C36: 1.770812312 | D36: 1.770812312 | E36: TRUE
A37: 0.6802 | B37: 23.860067 | C37: 1.542296163 | D37: 1.542296163 | E37: TRUE
A38: -102.127417 | B38: 8.4 | C38: 3.059527186 | D38: 3.059527186 | E38: TRUE
A39: 16.82560688 | B39: 5.7 | C39: 0.32663497 | D39: 0.32663497 | E39: TRUE
A40: -6633 | B40: 4.7 | C40: 3.140884075 | D40: 3.140884075 | E40: TRUE
A41: 0.56884296 | B41: 4 | C41: 1.429532804 | D41: 1.429532804 | E41: TRUE
A42: -2.84508511 | B42: 3.9 | C42: 2.201053703 | D42: 2.201053703 | E42: TRUE
A43: 105.4371328 | B43: 2.698257 | C43: 0.02558556102 | D43: 0.02558556102 | E43: TRUE
A44: -57.29968258 | B44: 2.60842 | C44: 3.096101644 | D44: 3.096101644 | E44: =IF(F44=0,IF(ISERR(C44),"Error", IF(C44=D44,TRUE,FALSE)),"NSup") -> TRUE
A45: 9.760521499e+16 | B45: 2 | C45: =ATAN2(A45,B45) -> 2.049070841e-17 | D45: 2.049070841e-17 | E45: TRUE
A46: -0.02454 | B46: 1.4 | C46: 1.588323103 | D46: 1.588323103 | E46: TRUE
A47: 5.221115922e+12 | B47: 1 | C47: 1.915299363e-13 | D47: 1.915299363e-13 | E47: TRUE
A48: -15054704.03 | B48: 0.826 | C48: 3.141592599 | D48: 3.141592599 | E48: TRUE
A49: 3.156842424 | B49: 0.80348378 | C49: 0.2492294989 | D49: 0.2492294989 | E49: TRUE
A50: -4.88757267 | B50: 0.7 | C50: 2.999339648 | D50: 2.999339648 | E50: TRUE
A51: 7.968 | B51: 0.155280086 | C51: 0.01948549611 | D51: 0.01948549611 | E51: TRUE
A52: -29219.16916 | B52: 0 | C52: 3.141592654 | D52: 3.141592654 | E52: TRUE
A53: 1.62 | B53: -0.6 | C53: -0.354705652 | D53: -0.354705652 | E53: TRUE
A54: -30.0123 | B54: -0.86530878 | C54: -3.112768834 | D54: -3.112768834 | E54: TRUE
A55: 0.8085 | B55: -0.9026333 | C55: -0.8403550227 | D55: -0.8403550227 | E55: TRUE
A56: -0.1 | B56: -0.90790876 | C56: -1.680497365 | D56: -1.680497365 | E56: TRUE
A57: 1.906776324e+11 | B57: -0.95 | C57: -4.98223094e-12 | D57: -4.98223094e-12 | E57: TRUE
A58: -0.351 | B58: -1.0888 | C58: -1.882650593 | D58: -1.882650593 | E58: TRUE
A59: 0.865 | B59: -1.2 | C59: -0.9462246673 | D59: -0.9462246673 | E59: TRUE
A60: -1 | B60: -1.4317117 | C60: -2.180491106 | D60: -2.180491106 | E60: TRUE
A61: 4.43120504e+13 | B61: -1.654 | C61: -3.732618972e-14 | D61: -3.732618972e-14 | E61: TRUE
A62: -1.626 | B62: -3.46 | C62: -2.010109868 | D62: -2.010109868 | E62: TRUE
A63: 394793.747 | B63: -3.78 | C63: -9.574619731e-06 | D63: -9.574619731e-06 | E63: TRUE
A64: -37.4 | B64: -4.671197897 | C64: -3.017337757 | D64: -3.017337757 | E64: TRUE
A65: 1 | B65: -5.101612 | C65: -1.377233997 | D65: -1.377233997 | E65: TRUE
A66: -2.039407 | B66: -6.1 | C66: -1.893442728 | D66: -1.893442728 | E66: TRUE
A67: 0.497 | B67: -11.736 | C67: -1.528473285 | D67: -1.528473285 | E67: TRUE
A68: -12.98 | B68: -36.1067 | C68: -1.915900406 | D68: -1.915900406 | E68: TRUE
A69: 0.49 | B69: -50.23420024 | C69: -1.561042325 | D69: -1.561042325 | E69: TRUE
A70: -598.59 | B70: -111.24 | C70: -2.957851981 | D70: -2.957851981 | E70: TRUE
A71: 15035623.91 | B71: -156.7912577 | C71: -1.042798481e-05 | D71: -1.042798481e-05 | E71: TRUE
A72: -73583.313 | B72: -3291 | C72: -3.096897625 | D72: -3.096897625 | E72: TRUE
A73: 0 | B73: -10911.3073 | C73: -1.570796327 | D73: -1.570796327 | E73: TRUE
A74: -862.5209502 | B74: -12630.04 | C74: -1.638981688 | D74: -1.638981688 | E74: TRUE
A75: 2.775231 | B75: -16091.22327 | C75: -1.570623858 | D75: -1.570623858 | E75: TRUE
A76: -6.58107211 | B76: -288142.9222 | C76: -1.570819166 | D76: -1.570819166 | E76: =IF(F76=0,IF(ISERR(C76),"Error", IF(C76=D76,TRUE,FALSE)),"NSup") -> TRUE
A77: 3363.7468 | B77: -833877.3 | C77: =ATAN2(A77,B77) -> -1.566762486 | D77: -1.566762486 | E77: TRUE
A78: -46734877.39 | B78: -1220118227 | C78: -1.609081175 | D78: -1.609081175 | E78: TRUE
A79: 0.60324 | B79: -9.077962834e+11 | C79: -1.570796327 | D79: -1.570796327 | E79: TRUE
A80: 72622874.72 | B80: 1.193408527e+11 | C80: 1.570187794 | D80: 1.570187794 | E80: TRUE
A81: -1.582253 | B81: 1.35120623e+10 | C81: 1.570796327 | D81: 1.570796327 | E81: TRUE
A82: 0.68 | B82: 9667524.14 | C82: 1.570796256 | D82: 1.570796256 | E82: TRUE
A83: -26.6 | B83: 439399.0394 | C83: 1.570856864 | D83: 1.570856864 | E83: TRUE
A84: 69027.99257 | B84: 255705.4576 | C84: 1.307129986 | D84: 1.307129986 | E84: TRUE
A85: -16.16940725 | B85: 57947.92177 | C85: 1.57107536 | D85: 1.57107536 | E85: TRUE
A86: 110354.809 | B86: 15325.00724 | C86: 0.1379878026 | D86: 0.1379878026 | E86: TRUE
A87: -7942 | B87: 8806.384055 | C87: 2.304630242 | D87: 2.304630242 | E87: TRUE
A88: 0.29 | B88: 235.831007 | C88: 1.569566633 | D88: 1.569566633 | E88: TRUE
A89: -9.33163 | B89: 213.4343829 | C89: 1.614489806 | D89: 1.614489806 | E89: TRUE
A90: 0.2859589 | B90: 155.692645 | C90: 1.56895964 | D90: 1.56895964 | E90: TRUE
A91: -19.3350948 | B91: 60.03272996 | C91: 1.882381197 | D91: 1.882381197 | E91: TRUE
A92: 10.51182 | B92: 59.5608 | C92: 1.39610637 | D92: 1.39610637 | E92: TRUE
A93: -0.34152 | B93: 45 | C93: 1.578385514 | D93: 1.578385514 | E93: TRUE
A94: 1.69877 | B94: 29.34539 | C94: 1.512972041 | D94: 1.512972041 | E94: TRUE
A95: -480.130849 | B95: 22 | C95: 3.095803838 | D95: 3.095803838 | E95: TRUE
A96: 0.7357 | B96: 16.23503084 | C96: 1.525511717 | D96: 1.525511717 | E96: TRUE
A97: -1.11 | B97: 3.906013205 | C97: 1.847674355 | D97: 1.847674355 | E97: TRUE
A98: 5369.186343 | B98: 3.6845124 | C98: 0.0006862328081 | D98: 0.0006862328081 | E98: TRUE
A99: -34.787 | B99: 3.37767218 | C99: 3.044800249 | D99: 3.044800249 | E99: TRUE
A100: 1.0414 | B100: 1.896697383 | C100: 1.068675361 | D100: 1.068675361 | E100: TRUE
A101: -1.987781543 | B101: 1.82 | C101: 2.400228814 | D101: 2.400228814 | E101: TRUE
A102: 22.69877 | B102: 1.79997 | C102: 0.07913253969 | D102: 0.07913253969 | E102: TRUE
A103: -0.6885 | B103: 1.352 | C103: 2.041812999 | D103: 2.041812999 | E103: TRUE
A104: 0.03407954 | B104: 0.296832421 | C104: 1.456486127 | D104: 1.456486127 | E104: TRUE
A105: -206682.3961 | B105: 0.15467239 | C105: 3.141591905 | D105: 3.141591905 | E105: TRUE
A106: 1.73854 | B106: 0.1235564 | C106: 0.07094976712 | D106: 0.07094976712 | E106: TRUE
A107: -23.5979 | B107: 0.0999 | C107: 3.137359251 | D107: 3.137359251 | E107: TRUE
A108: 0.79427 | B108: 0 | C108: 0 | D108: 0 | E108: =IF(F108=0,IF(ISERR(C108),"Error", IF(C108=D108,TRUE,FALSE)),"NSup") -> TRUE
A109: -518633 | B109: 0 | C109: =ATAN2(A109,B109) -> 3.141592654 | D109: 3.141592654 | E109: TRUE
A110: 1148738286 | B110: -0.0464 | C110: -4.039214201e-11 | D110: -4.039214201e-11 | E110: TRUE
A111: -257 | B111: -0.5 | C111: -3.139647131 | D111: -3.139647131 | E111: TRUE
A112: 1480.227 | B112: -0.60838949 | C112: -0.0004110109164 | D112: -0.0004110109164 | E112: TRUE
A113: -16.73731201 | B113: -0.6355983 | C113: -3.103635959 | D113: -3.103635959 | E113: TRUE
A114: 0.148808606 | B114: -0.64267447 | C114: -1.343260253 | D114: -1.343260253 | E114: TRUE
A115: -66745939.85 | B115: -0.792990156 | C115: -3.141592642 | D115: -3.141592642 | E115: TRUE
A116: 5.046781364e+11 | B116: -1 | C116: -1.981460911e-12 | D116: -1.981460911e-12 | E116: TRUE
A117: -1.444 | B117: -1.02188 | C117: -2.52573548 | D117: -2.52573548 | E117: TRUE
A118: 30.2 | B118: -1.0412 | C118: -0.03446317062 | D118: -0.03446317062 | E118: TRUE
A119: -0.9205 | B119: -1.438581033 | C119: -2.140014898 | D119: -2.140014898 | E119: TRUE
A120: 2069.404456 | B120: -1.5421676 | C120: -0.0007452227671 | D120: -0.0007452227671 | E120: TRUE
A121: 0 | B121: -3.1471337 | C121: -1.570796327 | D121: -1.570796327 | E121: TRUE
A122: 1.503 | B122: -3.67 | C122: -1.182095715 | D122: -1.182095715 | E122: TRUE
A123: -0.15 | B123: -6.432275527 | C123: -1.594111997 | D123: -1.594111997 | E123: TRUE
A124: 1.49006 | B124: -15.913 | C124: -1.477430664 | D124: -1.477430664 | E124: TRUE
A125: -0.22643947 | B125: -19.49406538 | C125: -1.58241162 | D125: -1.58241162 | E125: TRUE
A126: 52.36 | B126: -29.84302842 | C126: -0.5180372244 | D126: -0.5180372244 | E126: TRUE
A127: -0.864497269 | B127: -111.91 | C127: -1.578521106 | D127: -1.578521106 | E127: TRUE
A128: 1.19 | B128: -242.825 | C128: -1.565895717 | D128: -1.565895717 | E128: TRUE
A129: -715.1766338 | B129: -287.31333 | C129: -2.759589261 | D129: -2.759589261 | E129: TRUE
A130: 15471234021752 | B130: -597.39938 | C130: -3.861355721e-11 | D130: -3.861355721e-11 | E130: TRUE
A131: -1.23158745 | B131: -923.67241 | C131: -1.572129686 | D131: -1.572129686 | E131: TRUE
A132: 0.0501263 | B132: -3296.963636 | C132: -1.570781123 | D132: -1.570781123 | E132: TRUE
A133: -2.582211948e+10 | B133: -33237 | C133: -3.141591366 | D133: -3.141591366 | E133: TRUE
A134: 3.179927185 | B134: -192986.202 | C134: -1.570779849 | D134: -1.570779849 | E134: TRUE
A135: -16 | B135: -4891960.379 | C135: -1.570799597 | D135: -1.570799597 | E135: TRUE
A136: 0.1 | B136: -11328597 | C136: -1.570796318 | D136: -1.570796318 | E136: TRUE
A137: -9.240275452 | B137: -2.398066246e+16 | C137: -1.570796327 | D137: -1.570796327 | E137: TRUE

Sheet ATANH
A1: =SUM(A3:A5) -> 0 | B1: =SUM(B3:B5) -> 19 | C1: =SUM(C3:C5) -> 0 | D1: Total
A2: Failed | B2: Error | C2: NotSupport | D2: Verification Area
A3: =COUNTIF(INDIRECT(D3),"=false") -> 0 | B3: =COUNTIF(INDIRECT(D3),"=Error") -> 19 | C3: =COUNTIF(INDIRECT(D3),"=NSup") -> 0 | D3: E12:E135
A11: Data | C11: Formula | D11: Expected | E11: Check | F11: Mask | G11: Comments | H11: Description
A12: 1.00 | C12: =ATANH(A12) -> 17.61636159 | D12: 17.61636159 | E12: =IF(F12=0,IF(ISERR(C12),"Error", IF(C12=D12,TRUE,FALSE)),"NSup") -> TRUE
A13: 0.9607049 | C13: 1.954979751 | D13: 1.954979751 | E13: TRUE
A14: 0.94836426 | C14: 1.815265695 | D14: 1.815265695 | E14: TRUE
A15: 0.941 | C15: 1.74671057 | D15: 1.74671057 | E15: TRUE
A16: 0.93363 | C16: 1.685954599 | D16: 1.685954599 | E16: TRUE
A17: 0.92614 | C17: 1.630550935 | D17: 1.630550935 | E17: TRUE
A18: 0.8809 | C18: 1.379771094 | D18: 1.379771094 | E18: TRUE
A19: 0.85495622 | C19: 1.274290373 | D19: 1.274290373 | E19: TRUE
A20: 0.84119 | C20: 1.225229431 | D20: 1.225229431 | E20: TRUE
A21: 0.8264712 | C21: 1.176898749 | D21: 1.176898749 | E21: TRUE
A22: 0.8079806 | C22: 1.121184701 | D22: 1.121184701 | E22: TRUE
A23: 0.802 | C23: 1.104192704 | D23: 1.104192704 | E23: TRUE
A24: 0.8 | C24: 1.098612289 | D24: 1.098612289 | E24: TRUE
A25: 0.796 | C25: 1.087598628 | D25: 1.087598628 | E25: TRUE
A26: 0.75352481 | C26: 0.9810609395 | D26: 0.9810609395 | E26: TRUE
A27: 0.7 | C27: 0.8673005277 | D27: 0.8673005277 | E27: TRUE
A28: 0.66686 | C28: 0.805067037 | D28: 0.805067037 | E28: TRUE
A29: 0.6523637 | C29: 0.7794026345 | D29: 0.7794026345 | E29: TRUE
A30: 0.625 | C30: 0.7331685344 | D30: 0.7331685344 | E30: TRUE
A31: 0.616 | C31: 0.7185333432 | D31: 0.7185333432 | E31: TRUE
A32: 0.6 | C32: 0.6931471806 | D32: 0.6931471806 | E32: TRUE
A33: 0.586 | C33: 0.6715522142 | D33: 0.6715522142 | E33: TRUE
A34: 0.573 | C34: 0.6519779449 | D34: 0.6519779449 | E34: TRUE
A35: 0.553 | C35: 0.6226926143 | D35: 0.6226926143 | E35: TRUE
A36: 0.48 | C36: 0.5229842776 | D36: 0.5229842776 | E36: TRUE
A37: 0.44 | C37: 0.4722308044 | D37: 0.4722308044 | E37: TRUE
A38: 0.43901 | C38: 0.471003788 | D38: 0.471003788 | E38: TRUE
A39: 0.4038 | C39: 0.4281809715 | D39: 0.4281809715 | E39: TRUE
C40: =ATANH(0.4) -> 0.4236489302 | D40: 0.4236489302 | E40: TRUE
A41: 0.39235171 | C41: =ATANH(A41) -> 0.414576615 | D41: 0.414576615 | E41: TRUE
A42: 0.3913328 | C42: 0.4133728835 | D42: 0.4133728835 | E42: TRUE
A43: 0.323339 | C43: 0.3353714791 | D43: 0.3353714791 | E43: TRUE
A44: 0.3 | C44: 0.3095196042 | D44: 0.3095196042 | E44: =IF(F44=0,IF(ISERR(C44),"Error", IF(C44=D44,TRUE,FALSE)),"NSup") -> TRUE
A45: 0.29708869 | C45: 0.3063234192 | D45: 0.3063234192 | E45: TRUE
A46: 0.26386982 | C46: 0.2702633004 | D46: 0.2702633004 | E46: TRUE
A47: 0.259 | C47: 0.2650362044 | D47: 0.2650362044 | E47: TRUE
A48: 0.245 | C48: 0.2500865298 | D48: 0.2500865298 | E48: TRUE
A49: 0.221 | C49: 0.2247072141 | D49: 0.2247072141 | E49: TRUE
A50: 0.2 | C50: 0.2027325541 | D50: 0.2027325541 | E50: TRUE
A51: 0.19256473 | C51: 0.1949993057 | D51: 0.1949993057 | E51: TRUE
A52: 0.1906591 | C52: 0.1930210428 | D52: 0.1930210428 | E52: TRUE
A53: 0.12561484 | C53: 0.1262818624 | D53: 0.1262818624 | E53: TRUE
A54: 0.1146015 | C54: 0.1151071974 | D54: 0.1151071974 | E54: TRUE
A55: 0.103 | C55: 0.1033665786 | D55: 0.1033665786 | E55: TRUE
A56: 0.09085 | C56: 0.09110119539 | D56: 0.09110119539 | E56: TRUE
A57: 0.06 | C57: 0.06007215592 | D57: 0.06007215592 | E57: TRUE
A58: 0.058569 | C58: 0.05863610847 | D58: 0.05863610847 | E58: TRUE
A59: 0.03 | C59: 0.03000900486 | D59: 0.03000900486 | E59: TRUE
A60: 0.02098 | C60: 0.020983079 | D60: 0.020983079 | E60: TRUE
A61: 0.01 | C61: 0.01000033335 | D61: 0.01000033335 | E61: TRUE
A62: 0.005 | C62: 0.005000041667 | D62: 0.005000041667 | E62: TRUE
A63: 0.00184 | C63: 0.001840002077 | D63: 0.001840002077 | E63: TRUE
A64: 0 | C64: 0 | D64: 0 | E64: TRUE
A65: -0.0042 | C65: -0.004200024696 | D65: -0.004200024696 | E65: TRUE
A66: -0.0046601 | C66: -0.004660133734 | D66: -0.004660133734 | E66: TRUE
A67: -0.02358246 | C67: -0.02358683312 | D67: -0.02358683312 | E67: TRUE
A68: -0.0576705 | C68: -0.05773456307 | D68: -0.05773456307 | E68: TRUE
A69: -0.0877 | C69: -0.08792588537 | D69: -0.08792588537 | E69: TRUE
A70: -0.0934167 | C70: -0.09368987097 | D70: -0.09368987097 | E70: TRUE
A71: -0.1 | C71: -0.1003353477 | D71: -0.1003353477 | E71: TRUE
A72: -0.1229795 | C72: -0.1236051663 | D72: -0.1236051663 | E72: TRUE
A73: -0.2 | C73: =ATANH(A73) -> -0.2027325541 | D73: -0.2027325541 | E73: TRUE
A74: -0.23586264 | C74: -0.2403884678 | D74: -0.2403884678 | E74: TRUE
A75: -0.23963183 | C75: -0.2443834765 | D75: -0.2443834765 | E75: TRUE
A76: -0.249 | C76: -0.2543464292 | D76: -0.2543464292 | E76: =IF(F76=0,IF(ISERR(C76),"Error", IF(C76=D76,TRUE,FALSE)),"NSup") -> TRUE
A77: -0.26204 | C77: -0.2682975579 | D77: -0.2682975579 | E77: TRUE
A78: -0.3 | C78: -0.3095196042 | D78: -0.3095196042 | E78: TRUE
A79: -0.34812 | C79: -0.3633029062 | D79: -0.3633029062 | E79: TRUE
A80: -0.348816 | C80: -0.3640951026 | D80: -0.3640951026 | E80: TRUE
A81: -0.355825 | C81: -0.3720974879 | D81: -0.3720974879 | E81: TRUE
A82: -0.37618121 | C82: -0.3956038888 | D82: -0.3956038888 | E82: TRUE
A83: -0.4 | C83: -0.4236489302 | D83: -0.4236489302 | E83: TRUE
A84: -0.4176006 | C84: -0.4447822682 | D84: -0.4447822682 | E84: TRUE
A85: -0.45069718 | C85: -0.4855748298 | D85: -0.4855748298 | E85: TRUE
A86: -0.47208523 | C86: -0.5127501741 | D86: -0.5127501741 | E86: TRUE
A87: -0.4767 | C87: -0.5187051171 | D87: -0.5187051171 | E87: TRUE
A88: -0.5024 | C88: -0.5525112835 | D88: -0.5525112835 | E88: TRUE
A89: -0.524352 | C89: -0.5823232979 | D89: -0.5823232979 | E89: TRUE
A90: -0.533 | C90: -0.5943263106 | D90: -0.5943263106 | E90: TRUE
A91: -0.54336512 | C91: -0.6089181662 | D91: -0.6089181662 | E91: TRUE
A92: -0.55 | C92: -0.6183813136 | D92: -0.6183813136 | E92: TRUE
A93: -0.5588 | C93: -0.631086643 | D93: -0.631086643 | E93: TRUE
A94: -0.5676731 | C94: -0.644082841 | D94: -0.644082841 | E94: TRUE
A95: -0.57356867 | C95: -0.6528250057 | D95: -0.6528250057 | E95: TRUE
A96: -0.62875 | C96: -0.7393462192 | D96: -0.7393462192 | E96: TRUE
A97: -0.63848 | C97: -0.7556034483 | D97: -0.7556034483 | E97: TRUE
A98: -0.67236 | C98: -0.8150378184 | D98: -0.8150378184 | E98: TRUE
A99: -0.67731841 | C99: -0.8241427825 | D99: -0.8241427825 | E99: TRUE
C100: =ATANH(-70%) -> -0.8673005277 | D100: -0.8673005277 | E100: TRUE
C101: =ATANH(-0.704) -> -0.8751871265 | D101: -0.8751871265 | E101: TRUE
A102: -0.73 | C102: =ATANH(A102) -> -0.9287273642 | D102: -0.9287273642 | E102: TRUE
A103: -0.73252754 | C103: -0.9341600096 | D103: -0.9341600096 | E103: TRUE
A104: -0.8070303 | C104: -1.118453438 | D104: -1.118453438 | E104: TRUE
A105: -0.81747353 | C105: -1.149153721 | D105: -1.149153721 | E105: TRUE
A106: -0.86834666 | C106: -1.326318462 | D106: -1.326318462 | E106: TRUE
A107: -0.87143 | C107: -1.33899231 | D107: -1.33899231 | E107: TRUE
A108: -0.8716151 | C108: -1.339762122 | D108: -1.339762122 | E108: =IF(F108=0,IF(ISERR(C108),"Error", IF(C108=D108,TRUE,FALSE)),"NSup") -> TRUE
A109: -0.8789 | C109: -1.370912564 | D109: -1.370912564 | E109: TRUE
A110: -0.9206559 | C110: -1.593313966 | D110: -1.593313966 | E110: TRUE
A111: -0.92508198 | C111: -1.623164692 | D111: -1.623164692 | E111: TRUE
A112: -0.95401958 | C112: -1.8747141 | D112: -1.8747141 | E112: TRUE
A113: -0.9642 | C113: -2.002446212 | D113: -2.002446212 | E113: TRUE
A114: -0.98573 | C114: -2.467791226 | D114: -2.467791226 | E114: TRUE
A115: -0.9936 | C115: -2.870699669 | D115: -2.870699669 | E115: TRUE
A116: -1 | C116: -14.16209521 | D116: -14.16209521 | E116: TRUE
A117: -1 | E117: Error
A118: 1 | E118: Error
A119: "0.35" | E119: Error
E120: Error
A121: text | E121: Error
A122: 12215909757199 | E122: Error
A123: 956637580 | E123: Error
A124: 181 | E124: Error
A125: 155 | E125: Error
A126: 9 | E126: Error
A127: 8 | E127: Error
A128: 5 | E128: Error
A129: -36 | E129: Error
A130: -49 | E130: Error
A131: -51 | E131: Error
A132: -838 | E132: Error
A133: -1240 | E133: Error
A134: -88252251 | E134: Error
A135: -3294286760754750 | E135: Error

Sheet CEILING
A1: =SUM(A3:A5) -> 0 | B1: =SUM(B3:B5) -> 3 | C1: =SUM(C3:C5) -> 0 | D1: Total
A2: Failed | B2: Error | C2: NotSupport | D2: Verification Area
A3: =COUNTIF(INDIRECT(D3),"=false") -> 0 | B3: =COUNTIF(INDIRECT(D3),"=Error") -> 3 | C3: =COUNTIF(INDIRECT(D3),"=NSup") -> 0 | D3: E12:E209
A11: Data | C11: Formula | D11: Expected | E11: Check | F11: Mask | G11: Comments | H11: Description
C12: =CEILING(0.5,0.2) -> 0.6 | D12: 0.6 | E12: =IF(F12=0,IF(ISERR(C12),"Error", IF(C12=D12,TRUE,FALSE)),"NSup") -> TRUE
A13: 3.3 | B13: 0 | C13: =CEILING($A$13,B13) -> 0 | D13: 0 | E13: TRUE
B14: 1 | C14: =CEILING($A$13,B14) -> 4 | D14: 4 | E14: TRUE
B15: 2 | C15: =CEILING(3.3,2) -> 4 | D15: 4 | E15: TRUE
B16: 3 | C16: =CEILING($A$13,B16) -> 6 | D16: 6 | E16: TRUE
B17: 4 | C17: 4 | D17: 4 | E17: TRUE
B18: 5 | C18: 5 | D18: 5 | E18: TRUE
B19: 11 | C19: 11 | D19: 11 | E19: TRUE
B20: 100 | C20: 100 | D20: 100 | E20: TRUE
B21: 0.01 | C21: 3.3 | D21: 3.3 | E21: TRUE
B22: -0.1 | E22: Error
B23: 0.2 | C23: 3.4 | D23: 3.4 | E23: TRUE
B24: 0.3 | C24: 3.3 | D24: 3.3 | E24: TRUE
B25: 0.4 | C25: 3.6 | D25: 3.6 | E25: TRUE
B26: 0.5 | C26: 3.5 | D26: 3.5 | E26: TRUE
B27: 0.6 | C27: 3.6 | D27: 3.6 | E27: TRUE
B28: 0.725 | C28: 3.625 | D28: 3.625 | E28: TRUE
B29: 0.8 | C29: 4 | D29: 4 | E29: TRUE
B30: 0.95 | C30: 3.8 | D30: 3.8 | E30: TRUE
A31: 0.125 | B31: 0.001 | C31: =CEILING($A$31,B31) -> 0.125 | D31: 0.125 | E31: TRUE
B32: 0.002 | C32: 0.126 | D32: 0.126 | E32: TRUE
B33: 0.003 | C33: 0.126 | D33: 0.126 | E33: TRUE
B34: 0.005 | C34: 0.125 | D34: 0.125 | E34: TRUE
B35: 0.007 | C35: 0.126 | D35: 0.126 | E35: TRUE
B36: 0.009 | C36: 0.126 | D36: 0.126 | E36: TRUE
B37: 0.011 | C37: 0.132 | D37: 0.132 | E37: TRUE
B38: 0.012 | C38: 0.132 | D38: 0.132 | E38: TRUE
B39: 0.013 | C39: 0.13 | D39: 0.13 | E39: TRUE
B40: 0.014 | C40: 0.126 | D40: 0.126 | E40: TRUE
B41: 0.015 | C41: 0.135 | D41: 0.135 | E41: TRUE
B42: 0.016 | C42: 0.128 | D42: 0.128 | E42: TRUE
B43: 0.017 | C43: 0.136 | D43: 0.136 | E43: TRUE
B44: 0.018 | C44: 0.126 | D44: 0.126 | E44: =IF(F44=0,IF(ISERR(C44),"Error", IF(C44=D44,TRUE,FALSE)),"NSup") -> TRUE
B45: 0.019 | C45: 0.133 | D45: 0.133 | E45: TRUE
B46: 0.02 | C46: 0.14 | D46: 0.14 | E46: TRUE
B47: 0.021 | C47: 0.126 | D47: 0.126 | E47: TRUE
B48: 0.022 | C48: 0.132 | D48: 0.132 | E48: TRUE
B49: 0.023 | C49: 0.138 | D49: 0.138 | E49: TRUE
B50: 0.024 | C50: 0.144 | D50: 0.144 | E50: TRUE
B51: 0.025 | C51: 0.125 | D51: 0.125 | E51: TRUE
B52: 0.026 | C52: 0.13 | D52: 0.13 | E52: TRUE
B53: 0.027 | C53: 0.135 | D53: 0.135 | E53: TRUE
B54: 0.028 | C54: 0.14 | D54: 0.14 | E54: TRUE
B55: 0.029 | C55: 0.145 | D55: 0.145 | E55: TRUE
B56: 0.01 | C56: 0.13 | D56: 0.13 | E56: TRUE
B57: 0.02 | C57: 0.14 | D57: 0.14 | E57: TRUE
B58: 0.03 | C58: 0.15 | D58: 0.15 | E58: TRUE
B59: 0.04 | C59: 0.16 | D59: 0.16 | E59: TRUE
B60: 0.05 | C60: 0.15 | D60: 0.15 | E60: TRUE
B61: 0.06 | C61: 0.18 | D61: 0.18 | E61: TRUE
B62: 0.07 | C62: 0.14 | D62: 0.14 | E62: TRUE
B63: 0.08 | C63: 0.16 | D63: 0.16 | E63: TRUE
B64: 0.09 | C64: 0.18 | D64: 0.18 | E64: TRUE
B65: 0.1 | C65: 0.2 | D65: 0.2 | E65: TRUE
B66: 0.11 | C66: 0.22 | D66: 0.22 | E66: TRUE
B67: 0.12 | C67: 0.24 | D67: 0.24 | E67: TRUE
B68: 0.13 | C68: 0.13 | D68: 0.13 | E68: TRUE
B69: 0.14 | C69: 0.14 | D69: 0.14 | E69: TRUE
B70: 1 | C70: 1 | D70: 1 | E70: TRUE
B71: 1.4 | C71: 1.4 | D71: 1.4 | E71: TRUE
B72: 1.125 | C72: 1.125 | D72: 1.125 | E72: TRUE
B73: -0.01 | E73: Error
A74: -1243 | B74: -0.0013 | C74: =CEILING($A$74,B74) -> -1243.0002 | D74: -1243.0002 | E74: TRUE
B75: -0.07 | C75: -1243.06 | D75: -1243.06 | E75: TRUE
B76: -0.05 | C76: -1243 | D76: -1243 | E76: =IF(F76=0,IF(ISERR(C76),"Error", IF(C76=D76,TRUE,FALSE)),"NSup") -> TRUE
B77: -0.04 | C77: -1243 | D77: -1243 | E77: TRUE
B78: -0.13 | C78: -1243.06 | D78: -1243.06 | E78: TRUE
B79: -0.12 | C79: -1243.08 | D79: -1243.08 | E79: TRUE
B80: -0.11 | C80: -1243 | D80: -1243 | E80: TRUE
B81: 0 | C81: 0 | D81: 0 | E81: TRUE
B82: -0.1 | C82: -1243 | D82: -1243 | E82: TRUE
B83: -0.2 | C83: -1243 | D83: -1243 | E83: TRUE
B84: -0.3 | C84: -1243.2 | D84: -1243.2 | E84: TRUE
B85: -0.4 | C85: -1243.2 | D85: -1243.2 | E85: TRUE
B86: -0.5 | C86: -1243 | D86: -1243 | E86: TRUE
B87: -0.6 | C87: -1243.2 | D87: -1243.2 | E87: TRUE
B88: -0.7 | C88: -1243.2 | D88: -1243.2 | E88: TRUE
B89: -0.8 | C89: -1243.2 | D89: -1243.2 | E89: TRUE
B90: -0.9 | C90: -1243.8 | D90: -1243.8 | E90: TRUE
B91: -1 | C91: -1243 | D91: -1243 | E91: TRUE
B92: -2 | C92: -1244 | D92: -1244 | E92: TRUE
B93: -3 | C93: -1245 | D93: -1245 | E93: TRUE
B94: -3.3 | C94: -1244.1 | D94: -1244.1 | E94: TRUE
B95: -5 | C95: -1245 | D95: -1245 | E95: TRUE
B96: -6 | C96: -1248 | D96: -1248 | E96: TRUE
B97: -7 | C97: -1246 | D97: -1246 | E97: TRUE
B98: =-B74 -> 0.0013 | C98: -1242.9989 | D98: -1242.9989 | E98: TRUE
B99: 0.07 | C99: -1242.99 | D99: -1242.99 | E99: TRUE
B100: 0.05 | C100: -1243 | D100: -1243 | E100: TRUE
B101: 0.04 | C101: -1243 | D101: -1243 | E101: TRUE
B102: 0.13 | C102: -1242.93 | D102: -1242.93 | E102: TRUE
B103: 0.12 | C103: -1242.96 | D103: -1242.96 | E103: TRUE
B104: 0.11 | C104: -1243 | D104: -1243 | E104: TRUE
B105: 0 | C105: 0 | D105: 0 | E105: TRUE
B106: 0.1 | C106: -1243 | D106: -1243 | E106: TRUE
B107: 0.2 | C107: -1243 | D107: -1243 | E107: TRUE
B108: 0.3 | C108: -1242.9 | D108: -1242.9 | E108: =IF(F108=0,IF(ISERR(C108),"Error", IF(C108=D108,TRUE,FALSE)),"NSup") -> TRUE
B109: 0.4 | C109: -1242.8 | D109: -1242.8 | E109: TRUE
B110: 0.5 | C110: -1243 | D110: -1243 | E110: TRUE
B111: 0.6 | C111: -1242.6 | D111: -1242.6 | E111: TRUE
B112: 0.7 | C112: -1242.5 | D112: -1242.5 | E112: TRUE
B113: 0.8 | C113: -1242.4 | D113: -1242.4 | E113: TRUE
B114: 0.9 | C114: -1242.9 | D114: -1242.9 | E114: TRUE
B115: 1 | C115: -1243 | D115: -1243 | E115: TRUE
B116: 2 | C116: -1242 | D116: -1242 | E116: TRUE
B117: 3 | C117: -1242 | D117: -1242 | E117: TRUE
B118: 3.3 | C118: -1240.8 | D118: -1240.8 | E118: TRUE
B119: 5 | C119: -1240 | D119: -1240 | E119: TRUE
B120: 6 | C120: -1242 | D120: -1242 | E120: TRUE
B121: 7 | C121: -1239 | D121: -1239 | E121: TRUE
A122: 1243 | B122: -0.0013 | C122: =CEILING($A$122,B122) ->  | E122: Error
B123: 0.07 | C123: 1243.06 | D123: 1243.06 | E123: TRUE
B124: 0.05 | C124: 1243 | D124: 1243 | E124: TRUE
B125: 0.04 | C125: 1243 | D125: 1243 | E125: TRUE
B126: 0.13 | C126: 1243.06 | D126: 1243.06 | E126: TRUE
B127: 0.12 | C127: 1243.08 | D127: 1243.08 | E127: TRUE
B128: 0.11 | C128: 1243 | D128: 1243 | E128: TRUE
B129: 0 | C129: 0 | D129: 0 | E129: TRUE
B130: 0.1 | C130: 1243 | D130: 1243 | E130: TRUE
B131: 0.2 | C131: 1243 | D131: 1243 | E131: TRUE
B132: 0.3 | C132: 1243.2 | D132: 1243.2 | E132: TRUE
B133: 0.4 | C133: 1243.2 | D133: 1243.2 | E133: TRUE
B134: 0.5 | C134: 1243 | D134: 1243 | E134: TRUE
B135: 0.6 | C135: 1243.2 | D135: 1243.2 | E135: TRUE
B136: 0.7 | C136: 1243.2 | D136: 1243.2 | E136: TRUE
B137: 0.8 | C137: 1243.2 | D137: 1243.2 | E137: TRUE
B138: 0.9 | C138: 1243.8 | D138: 1243.8 | E138: TRUE
B139: 1 | C139: 1243 | D139: 1243 | E139: TRUE
B140: 2 | C140: 1244 | D140: 1244 | E140: =IF(F140=0,IF(ISERR(C140),"Error", IF(C140=D140,TRUE,FALSE)),"NSup") -> TRUE
B141: 3 | C141: 1245 | D141: 1245 | E141: TRUE
B142: 3.3 | C142: 1244.1 | D142: 1244.1 | E142: TRUE
B143: 5 | C143: 1245 | D143: 1245 | E143: TRUE
B144: 6 | C144: 1248 | D144: 1248 | E144: TRUE
B145: 7 | C145: 1246 | D145: 1246 | E145: TRUE
C146: =CEILING("123","4") -> 124 | D146: 124 | E146: TRUE | H146: Numeric text
C147: =CEILING("123","0.7") -> 123.2 | D147: 123.2 | E147: TRUE
C148: =CEILING("123","20") -> 140 | D148: 140 | E148: TRUE
C149: =CEILING("123%","0.4") -> 1.6 | D149: 1.6 | E149: TRUE
C150: =CEILING("-1.234234567567E+15","17") -> -1234234567566998 | D150: -1234234567566998 | E150: TRUE
A152: 70.15670992 | B152: 56 | C152: =CEILING(A152,B152) -> 112 | D152: 112 | E152: =IF(F152=0,IF(ISERR(C152),"Error", IF(C152=D152,TRUE,FALSE)),"NSup") -> TRUE | H152: Random data
A153: -0.2129 | B153: -75 | C153: -75 | D153: -75 | E153: TRUE
A154: 2031.8 | B154: 3 | C154: 2034 | D154: 2034 | E154: TRUE
A155: -1.3192 | B155: -146 | C155: -146 | D155: -146 | E155: TRUE
A156: 3.072321 | B156: 212 | C156: 212 | D156: 212 | E156: TRUE
A157: -829.8600947 | B157: -7 | C157: -833 | D157: -833 | E157: TRUE
A158: 0.202 | B158: 0.14 | C158: 0.28 | D158: 0.28 | E158: TRUE
A159: -143.77315 | B159: -5 | C159: -145 | D159: -145 | E159: TRUE
A160: 0.523133 | B160: 11 | C160: 11 | D160: 11 | E160: TRUE
A161: -15.62 | B161: -8 | C161: -16 | D161: -16 | E161: TRUE
A162: 2.5012662 | B162: 111 | C162: 111 | D162: 111 | E162: TRUE
A163: -0.865204 | B163: -50515240 | C163: -50515240 | D163: -50515240 | E163: TRUE
A164: 2.68 | B164: 393982 | C164: 393982 | D164: 393982 | E164: TRUE
A165: -4.139 | B165: -239 | C165: -239 | D165: -239 | E165: TRUE
A166: 0.82 | B166: 9 | C166: 9 | D166: 9 | E166: TRUE
A167: -0.819 | B167: -2 | C167: -2 | D167: -2 | E167: TRUE
A168: 156.8673695 | B168: 531 | C168: 531 | D168: 531 | E168: TRUE
A169: -3.686 | B169: -51 | C169: -51 | D169: -51 | E169: TRUE
A170: 1.10067941 | B170: 404012 | C170: 404012 | D170: 404012 | E170: TRUE
A171: -1.8 | B171: -12 | C171: -12 | D171: -12 | E171: TRUE
A172: 32 | B172: 5 | C172: 35 | D172: 35 | E172: TRUE
A173: -1.38736 | B173: -13 | C173: -13 | D173: -13 | E173: TRUE
A174: 1.97059574 | B174: 8 | C174: 8 | D174: 8 | E174: TRUE
A175: -607300.9 | B175: -450760096545 | C175: -450760096545 | D175: -450760096545 | E175: TRUE
A176: 0.259733362 | B176: 4 | C176: 4 | D176: 4 | E176: TRUE
A177: -8.129 | B177: -126 | C177: -126 | D177: -126 | E177: TRUE
A178: 1.616517594 | B178: 3 | C178: 3 | D178: 3 | E178: TRUE
A179: -1.12044247e+11 | B179: -1685 | C179: -112044248555 | D179: -112044248555 | E179: TRUE
A180: 13.4192965 | B180: 3 | C180: 15 | D180: 15 | E180: TRUE
A181: -1 | B181: -10 | C181: -10 | D181: -10 | E181: TRUE
A182: 0.709399 | B182: 22621 | C182: 22621 | D182: 22621 | E182: TRUE
A183: -2.262 | B183: -2 | C183: -4 | D183: -4 | E183: TRUE
A184: 1600331419 | B184: 1154 | C184: =CEILING(A184,B184) -> 1600331426 | D184: 1600331426 | E184: =IF(F184=0,IF(ISERR(C184),"Error", IF(C184=D184,TRUE,FALSE)),"NSup") -> TRUE
A185: -3 | B185: -26 | C185: -26 | D185: -26 | E185: TRUE
A186: 1.50309717 | B186: 563875595 | C186: 563875595 | D186: 563875595 | E186: TRUE
A187: -1.545911 | B187: -12 | C187: -12 | D187: -12 | E187: TRUE
A188: 18694.8 | B188: 167 | C188: 18704 | D188: 18704 | E188: TRUE
A189: -259.81458 | B189: -2575 | C189: -2575 | D189: -2575 | E189: TRUE
A190: 3.13852152 | B190: 1166 | C190: 1166 | D190: 1166 | E190: TRUE
A191: -10.461091 | B191: -28 | C191: -28 | D191: -28 | E191: TRUE
A192: 29.446 | B192: 2 | C192: 30 | D192: 30 | E192: TRUE
A193: -1838652.44 | B193: -8 | C193: -1838656 | D193: -1838656 | E193: TRUE
A194: 0.7327654 | B194: 77 | C194: 77 | D194: 77 | E194: TRUE
A195: -0.41814503 | B195: -6 | C195: -6 | D195: -6 | E195: TRUE
A196: 6.662623 | B196: 334 | C196: 334 | D196: 334 | E196: TRUE
A197: -2.900101303 | B197: -63 | C197: -63 | D197: -63 | E197: TRUE
A198: 4.237726 | B198: 5 | C198: 5 | D198: 5 | E198: TRUE
A199: -120.3271123 | B199: -36 | C199: -144 | D199: -144 | E199: TRUE
A200: 1.1171 | B200: 3 | C200: 3 | D200: 3 | E200: TRUE
A201: -9027.027259 | B201: -11 | C201: -9031 | D201: -9031 | E201: TRUE
A202: 3845.8179 | B202: 11 | C202: 3850 | D202: 3850 | E202: TRUE
A203: -0.44056585 | B203: -5656415 | C203: -5656415 | D203: -5656415 | E203: TRUE
A204: 10.4763 | B204: 1849 | C204: 1849 | D204: 1849 | E204: TRUE
A205: -1.8885717 | B205: -1020 | C205: -1020 | D205: -1020 | E205: TRUE
A206: 54.3272 | B206: 4 | C206: 56 | D206: 56 | E206: TRUE
A207: -966377.4559 | B207: -267 | C207: -966540 | D207: -966540 | E207: TRUE
A208: 0.371 | B208: 18 | C208: 18 | D208: 18 | E208: TRUE
... 1 more rows

Sheet CEILING.PRECISE
A1: =SUM(A3:A5) -> 0 | B1: =SUM(B3:B5) -> 0 | C1: =SUM(C3:C5) -> 0 | D1: Total
A2: Failed | B2: Error | C2: NotSupport | D2: Verification Area
A3: =COUNTIF(INDIRECT(D3),"=false") -> 0 | B3: =COUNTIF(INDIRECT(D3),"=Error") -> 0 | C3: =COUNTIF(INDIRECT(D3),"=NSup") -> 0 | D3: E12:E300
A11: Data | C11: Formula | D11: Expected | E11: Check | F11: Mask | G11: Comments | H11: Description
C12: =_xlfn.CEILING.PRECISE(0.5) -> 1 | D12: 1 | E12: =IF(F12=0,IF(ISERR(C12),"Error", IF(C12=D12,TRUE,FALSE)),"NSup") -> TRUE | H12: Default Significance = 1
C13: =_xlfn.CEILING.PRECISE(1000) -> 1000 | D13: 1000 | E13: TRUE
A14: 2342.000005 | C14: =_xlfn.CEILING.PRECISE(A14) -> 2343 | D14: 2343 | E14: TRUE
A15: -0.02 | C15: =_xlfn.CEILING.PRECISE(A15) -> 0 | D15: 0 | E15: TRUE
C16: =_xlfn.CEILING.PRECISE(-1.234) -> -1 | D16: -1 | E16: TRUE
C17: =_xlfn.CEILING.PRECISE(-1002) -> -1002 | D17: -1002 | E17: TRUE
C18: =_xlfn.CEILING.PRECISE(0.0000000000000000013) -> 1 | D18: 1 | E18: TRUE
A19: 10.3 | B19: 0 | C19: =_xlfn.CEILING.PRECISE($A$19,B19) -> 0 | D19: 0 | E19: TRUE | H19: Specific Significance
B20: 1 | C20: 11 | D20: 11 | E20: TRUE
B21: 2 | C21: 12 | D21: 12 | E21: TRUE
B22: 3 | C22: 12 | D22: 12 | E22: TRUE
B23: 4 | C23: 12 | D23: 12 | E23: TRUE
B24: 5 | C24: 15 | D24: 15 | E24: TRUE
B25: 11 | C25: 11 | D25: 11 | E25: TRUE
B26: 100 | C26: 100 | D26: 100 | E26: TRUE
B27: 0.01 | C27: 10.3 | D27: 10.3 | E27: TRUE
B28: -0.1 | C28: 10.3 | D28: 10.3 | E28: TRUE
B29: 0.2 | C29: 10.4 | D29: 10.4 | E29: TRUE
B30: 0.3 | C30: 10.5 | D30: 10.5 | E30: TRUE
B31: 0.4 | C31: 10.4 | D31: 10.4 | E31: TRUE
B32: 0.5 | C32: 10.5 | D32: 10.5 | E32: TRUE
B33: 0.6 | C33: 10.8 | D33: 10.8 | E33: TRUE
B34: 0.725 | C34: 10.875 | D34: 10.875 | E34: TRUE
B35: 0.8 | C35: 10.4 | D35: 10.4 | E35: TRUE
B36: 0.95 | C36: 10.45 | D36: 10.45 | E36: TRUE
A37: 0.125 | B37: 0.001 | C37: =_xlfn.CEILING.PRECISE($A$37,B37) -> 0.125 | D37: 0.125 | E37: TRUE
B38: 0.002 | C38: 0.126 | D38: 0.126 | E38: TRUE
B39: 0.003 | C39: 0.126 | D39: 0.126 | E39: TRUE
B40: 0.005 | C40: 0.125 | D40: 0.125 | E40: TRUE
B41: 0.007 | C41: 0.126 | D41: 0.126 | E41: TRUE
B42: 0.009 | C42: 0.126 | D42: 0.126 | E42: TRUE
B43: 0.011 | C43: 0.132 | D43: 0.132 | E43: TRUE
B44: 0.012 | C44: 0.132 | D44: 0.132 | E44: TRUE
B45: 0.013 | C45: 0.13 | D45: 0.13 | E45: TRUE
B46: 0.014 | C46: 0.126 | D46: 0.126 | E46: TRUE
B47: 0.015 | C47: 0.135 | D47: 0.135 | E47: TRUE
B48: 0.016 | C48: 0.128 | D48: 0.128 | E48: TRUE
B49: 0.017 | C49: 0.136 | D49: 0.136 | E49: TRUE
B50: 0.018 | C50: 0.126 | D50: 0.126 | E50: TRUE
B51: 0.019 | C51: 0.133 | D51: 0.133 | E51: TRUE
B52: 0.02 | C52: 0.14 | D52: 0.14 | E52: TRUE
B53: 0.021 | C53: 0.126 | D53: 0.126 | E53: TRUE
B54: 0.022 | C54: 0.132 | D54: 0.132 | E54: TRUE
B55: 0.023 | C55: 0.138 | D55: 0.138 | E55: TRUE
B56: 0.024 | C56: 0.144 | D56: 0.144 | E56: TRUE
B57: 0.025 | C57: 0.125 | D57: 0.125 | E57: TRUE
B58: 0.026 | C58: 0.13 | D58: 0.13 | E58: TRUE
B59: 0.027 | C59: 0.135 | D59: 0.135 | E59: TRUE
B60: 0.028 | C60: 0.14 | D60: 0.14 | E60: TRUE
B61: 0.029 | C61: 0.145 | D61: 0.145 | E61: TRUE
B62: 0.01 | C62: 0.13 | D62: 0.13 | E62: TRUE
B63: 0.02 | C63: 0.14 | D63: 0.14 | E63: TRUE
B64: 0.03 | C64: 0.15 | D64: 0.15 | E64: TRUE
B65: 0.04 | C65: 0.16 | D65: 0.16 | E65: TRUE
B66: 0.05 | C66: 0.15 | D66: 0.15 | E66: TRUE
B67: 0.06 | C67: 0.18 | D67: 0.18 | E67: TRUE
B68: 0.07 | C68: 0.14 | D68: 0.14 | E68: TRUE
B69: 0.08 | C69: =_xlfn.CEILING.PRECISE($A$37,B69) -> 0.16 | D69: 0.16 | E69: TRUE
B70: 0.09 | C70: 0.18 | D70: 0.18 | E70: TRUE
B71: 0.1 | C71: 0.2 | D71: 0.2 | E71: TRUE
B72: 0.11 | C72: 0.22 | D72: 0.22 | E72: TRUE
B73: 0.12 | C73: 0.24 | D73: 0.24 | E73: TRUE
B74: 0.13 | C74: 0.13 | D74: 0.13 | E74: TRUE
B75: 0.14 | C75: 0.14 | D75: 0.14 | E75: TRUE
B76: 1 | C76: 1 | D76: 1 | E76: =IF(F76=0,IF(ISERR(C76),"Error", IF(C76=D76,TRUE,FALSE)),"NSup") -> TRUE
B77: 1.4 | C77: 1.4 | D77: 1.4 | E77: TRUE
B78: 1.125 | C78: 1.125 | D78: 1.125 | E78: TRUE
B79: =-B37 -> -0.001 | C79: 0.125 | D79: 0.125 | E79: TRUE
B80: -0.002 | C80: 0.126 | D80: 0.126 | E80: TRUE
B81: -0.003 | C81: 0.126 | D81: 0.126 | E81: TRUE
B82: -0.005 | C82: 0.125 | D82: 0.125 | E82: TRUE
B83: -0.007 | C83: 0.126 | D83: 0.126 | E83: TRUE
B84: -0.009 | C84: 0.126 | D84: 0.126 | E84: TRUE
B85: -0.011 | C85: 0.132 | D85: 0.132 | E85: TRUE
B86: -0.012 | C86: 0.132 | D86: 0.132 | E86: TRUE
B87: -0.013 | C87: 0.13 | D87: 0.13 | E87: TRUE
B88: -0.014 | C88: 0.126 | D88: 0.126 | E88: TRUE
B89: -0.015 | C89: 0.135 | D89: 0.135 | E89: TRUE
B90: -0.016 | C90: 0.128 | D90: 0.128 | E90: TRUE
B91: -0.017 | C91: 0.136 | D91: 0.136 | E91: TRUE
B92: -0.018 | C92: 0.126 | D92: 0.126 | E92: TRUE
B93: -0.019 | C93: 0.133 | D93: 0.133 | E93: TRUE
B94: -0.02 | C94: 0.14 | D94: 0.14 | E94: TRUE
B95: -0.021 | C95: 0.126 | D95: 0.126 | E95: TRUE
B96: -0.022 | C96: 0.132 | D96: 0.132 | E96: TRUE
B97: -0.023 | C97: 0.138 | D97: 0.138 | E97: TRUE
B98: -0.024 | C98: 0.144 | D98: 0.144 | E98: TRUE
B99: -0.025 | C99: 0.125 | D99: 0.125 | E99: TRUE
B100: -0.026 | C100: 0.13 | D100: 0.13 | E100: TRUE
B101: -0.027 | C101: =_xlfn.CEILING.PRECISE($A$37,B101) -> 0.135 | D101: 0.135 | E101: TRUE
B102: -0.028 | C102: 0.14 | D102: 0.14 | E102: TRUE
B103: -0.029 | C103: 0.145 | D103: 0.145 | E103: TRUE
B104: -0.01 | C104: 0.13 | D104: 0.13 | E104: TRUE
B105: -0.02 | C105: 0.14 | D105: 0.14 | E105: TRUE
B106: -0.03 | C106: 0.15 | D106: 0.15 | E106: TRUE
B107: -0.04 | C107: 0.16 | D107: 0.16 | E107: TRUE
B108: -0.05 | C108: 0.15 | D108: 0.15 | E108: TRUE
B109: -0.06 | C109: 0.18 | D109: 0.18 | E109: TRUE
B110: -0.07 | C110: 0.14 | D110: 0.14 | E110: TRUE
B111: -0.08 | C111: 0.16 | D111: 0.16 | E111: TRUE
B112: -0.09 | C112: 0.18 | D112: 0.18 | E112: TRUE
B113: -0.1 | C113: 0.2 | D113: 0.2 | E113: TRUE
B114: -0.11 | C114: 0.22 | D114: 0.22 | E114: TRUE
B115: -0.12 | C115: 0.24 | D115: 0.24 | E115: TRUE
B116: -0.13 | C116: 0.13 | D116: 0.13 | E116: TRUE
B117: -0.14 | C117: 0.14 | D117: 0.14 | E117: TRUE
B118: -1 | C118: 1 | D118: 1 | E118: TRUE
B119: -1.4 | C119: 1.4 | D119: 1.4 | E119: TRUE
B120: -1.125 | C120: 1.125 | D120: 1.125 | E120: TRUE
A121: 2017 | B121: -0.0013 | C121: =_xlfn.CEILING.PRECISE($A$121,B121) -> 2017.0007 | D121: 2017.0007 | E121: TRUE
B122: -0.07 | C122: 2017.05 | D122: 2017.05 | E122: TRUE
B123: -0.05 | C123: 2017 | D123: 2017 | E123: TRUE
B124: -0.04 | C124: 2017 | D124: 2017 | E124: TRUE
B125: -0.13 | C125: 2017.08 | D125: 2017.08 | E125: TRUE
B126: -0.12 | C126: 2017.08 | D126: 2017.08 | E126: TRUE
B127: -0.11 | C127: 2017.07 | D127: 2017.07 | E127: TRUE
B128: 0 | C128: 0 | D128: 0 | E128: TRUE
B129: -0.1 | C129: 2017 | D129: 2017 | E129: TRUE
B130: -0.2 | C130: 2017 | D130: 2017 | E130: TRUE
B131: -0.3 | C131: 2017.2 | D131: 2017.2 | E131: TRUE
B132: -0.4 | C132: 2017.2 | D132: 2017.2 | E132: TRUE
B133: -0.5 | C133: 2017 | D133: 2017 | E133: TRUE
B134: -0.6 | C134: 2017.2 | D134: 2017.2 | E134: TRUE
B135: -0.7 | C135: 2017.4 | D135: 2017.4 | E135: TRUE
B136: -0.8 | C136: 2017.6 | D136: 2017.6 | E136: TRUE
B137: -0.9 | C137: 2017.8 | D137: 2017.8 | E137: TRUE
B138: -1 | C138: 2017 | D138: 2017 | E138: TRUE
B139: -2 | C139: 2018 | D139: 2018 | E139: TRUE
B140: -3 | C140: 2019 | D140: 2019 | E140: =IF(F140=0,IF(ISERR(C140),"Error", IF(C140=D140,TRUE,FALSE)),"NSup") -> TRUE
B141: -3.3 | C141: 2019.6 | D141: 2019.6 | E141: TRUE
B142: -5 | C142: 2020 | D142: 2020 | E142: TRUE
B143: -6 | C143: 2022 | D143: 2022 | E143: TRUE
B144: -7 | C144: 2023 | D144: 2023 | E144: TRUE
B145: 0.0013 | C145: 2017.0007 | D145: 2017.0007 | E145: TRUE
B146: 0.07 | C146: 2017.05 | D146: 2017.05 | E146: TRUE
B147: 0.05 | C147: 2017 | D147: 2017 | E147: TRUE
B148: 0.04 | C148: 2017 | D148: 2017 | E148: TRUE
B149: 0.13 | C149: 2017.08 | D149: 2017.08 | E149: TRUE
B150: 0.12 | C150: 2017.08 | D150: 2017.08 | E150: TRUE
B151: 0.11 | C151: 2017.07 | D151: 2017.07 | E151: TRUE
B152: 0 | C152: 0 | D152: 0 | E152: TRUE
B153: 0.1 | C153: 2017 | D153: 2017 | E153: TRUE
B154: 0.2 | C154: 2017 | D154: 2017 | E154: TRUE
B155: 0.3 | C155: 2017.2 | D155: 2017.2 | E155: TRUE
B156: 0.4 | C156: 2017.2 | D156: 2017.2 | E156: TRUE
B157: 0.5 | C157: 2017 | D157: 2017 | E157: TRUE
B158: 0.6 | C158: 2017.2 | D158: 2017.2 | E158: TRUE
B159: 0.7 | C159: 2017.4 | D159: 2017.4 | E159: TRUE
B160: 0.8 | C160: 2017.6 | D160: 2017.6 | E160: TRUE
B161: 0.9 | C161: 2017.8 | D161: 2017.8 | E161: TRUE
B162: 1 | C162: 2017 | D162: 2017 | E162: TRUE
B163: 2 | C163: 2018 | D163: 2018 | E163: TRUE
B164: 3 | C164: 2019 | D164: 2019 | E164: TRUE
B165: 3.3 | C165: 2019.6 | D165: 2019.6 | E165: TRUE
B166: 5 | C166: 2020 | D166: 2020 | E166: TRUE
B167: 6 | C167: 2022 | D167: 2022 | E167: TRUE
B168: 7 | C168: 2023 | D168: 2023 | E168: TRUE
C169: =_xlfn.CEILING.PRECISE(-$A$121,B121) -> -2016.9994 | D169: -2016.9994 | E169: TRUE
C170: -2016.98 | D170: -2016.98 | E170: TRUE
C171: -2017 | D171: -2017 | E171: TRUE
C172: -2017 | D172: -2017 | E172: TRUE
C173: -2016.95 | D173: -2016.95 | E173: TRUE
C174: -2016.96 | D174: -2016.96 | E174: TRUE
C175: -2016.96 | D175: -2016.96 | E175: TRUE
C176: 0 | D176: 0 | E176: TRUE
C177: -2017 | D177: -2017 | E177: TRUE
C178: -2017 | D178: -2017 | E178: TRUE
C179: -2016.9 | D179: -2016.9 | E179: TRUE
C180: -2016.8 | D180: -2016.8 | E180: TRUE
C181: -2017 | D181: -2017 | E181: TRUE
C182: -2016.6 | D182: -2016.6 | E182: TRUE
C183: -2016.7 | D183: -2016.7 | E183: TRUE
C184: -2016.8 | D184: -2016.8 | E184: TRUE
C185: -2016.9 | D185: -2016.9 | E185: TRUE
C186: -2017 | D186: -2017 | E186: TRUE
C187: -2016 | D187: -2016 | E187: TRUE
C188: -2016 | D188: -2016 | E188: TRUE
C189: -2016.3 | D189: -2016.3 | E189: TRUE
C190: -2015 | D190: -2015 | E190: TRUE
C191: -2016 | D191: -2016 | E191: TRUE
C192: -2016 | D192: -2016 | E192: TRUE
C193: -2016.9994 | D193: -2016.9994 | E193: TRUE
C194: -2016.98 | D194: -2016.98 | E194: TRUE
C195: -2017 | D195: -2017 | E195: TRUE
C196: -2017 | D196: -2017 | E196: TRUE
C197: -2016.95 | D197: -2016.95 | E197: TRUE
C198: -2016.96 | D198: -2016.96 | E198: TRUE
C199: -2016.96 | D199: -2016.96 | E199: TRUE
C200: 0 | D200: 0 | E200: TRUE
C201: -2017 | D201: -2017 | E201: TRUE
C202: -2017 | D202: -2017 | E202: TRUE
C203: -2016.9 | D203: -2016.9 | E203: TRUE
C204: -2016.8 | D204: -2016.8 | E204: =IF(F204=0,IF(ISERR(C204),"Error", IF(C204=D204,TRUE,FALSE)),"NSup") -> TRUE
C205: -2017 | D205: -2017 | E205: TRUE
C206: -2016.6 | D206: -2016.6 | E206: TRUE
C207: -2016.7 | D207: -2016.7 | E207: TRUE
... 92 more rows

Sheet COMBIN
A1: =SUM(A3:A5) -> 0 | B1: =SUM(B3:B5) -> 9 | C1: =SUM(C3:C5) -> 0 | D1: Total
A2: Failed | B2: Error | C2: NotSupport | D2: Verification Area
A3: =COUNTIF(INDIRECT(D3),"=false") -> 0 | B3: =COUNTIF(INDIRECT(D3),"=Error") -> 9 | C3: =COUNTIF(INDIRECT(D3),"=NSup") -> 0 | D3: E12:E208
A11: Data | C11: Formula | D11: Expected | E11: Check | F11: Mask | G11: Comments | H11: Description
C12: =COMBIN(10,1) -> 10 | D12: 10 | E12: =IF(F12=0,IF(ISERR(C12),"Error", IF(C12=D12,TRUE,FALSE)),"NSup") -> TRUE
C13: =COMBIN(10,2) -> 45 | D13: 45 | E13: TRUE
C14: =COMBIN(10,3) -> 120 | D14: 120 | E14: TRUE
C15: =COMBIN(10,4) -> 210 | D15: 210 | E15: TRUE
C16: =COMBIN(10,5) -> 252 | D16: 252 | E16: TRUE
C17: =COMBIN(10,6) -> 210 | D17: 210 | E17: TRUE
C18: =COMBIN(10,7) -> 120 | D18: 120 | E18: TRUE
C19: =COMBIN(10,8) -> 45 | D19: 45 | E19: TRUE
C20: =COMBIN(10,9) -> 10 | D20: 10 | E20: TRUE
C21: =COMBIN(10,10) -> 1 | D21: 1 | E21: TRUE
C22: =COMBIN(10,0) -> 1 | D22: 1 | E22: TRUE
C23: =COMBIN(10,) -> 1 | D23: 1 | E23: TRUE | H23: default number_chosen = 0
C24: =COMBIN(10,-1) ->  | E24: Error | H24: number_chosen <0
C25: =COMBIN(10,0.5) -> 1 | D25: 1 | E25: TRUE | H25: Decimal part will be ignored
C26: =COMBIN(10,2.7) -> 45 | D26: 45 | E26: TRUE
C27: =COMBIN(10,11) ->  | E27: Error | H27: number_chosen > number
A28: 123 | B28: 0 | C28: =COMBIN($A$28,B28) -> 1 | D28: 1 | E28: TRUE
B29: 1 | C29: 123 | D29: 123 | E29: TRUE
B30: 2 | C30: 7503 | D30: 7503 | E30: TRUE
B31: 3 | C31: 302621 | D31: 302621 | E31: TRUE
B32: 4 | C32: 9078630 | D32: 9078630 | E32: TRUE
B33: 5 | C33: 216071394 | D33: 216071394 | E33: TRUE
B34: 6 | C34: 4249404082 | D34: 4249404082 | E34: TRUE
B35: 7 | C35: 71025753942 | D35: 71025753942 | E35: TRUE
B36: 8 | C36: 1029873432159 | D36: 1029873432159 | E36: TRUE
B37: 9 | C37: 13159493855365 | D37: 13159493855365 | E37: TRUE
B38: 10 | C38: 150018229951161 | D38: 150018229951161 | E38: TRUE
B39: 11.124 | C39: 1541096362225563 | D39: 1541096362225563 | E39: TRUE
B40: 12.987 | C40: 1.438356605e+16 | D40: 1.438356605e+16 | E40: TRUE
B41: 13 | C41: 1.228135255e+17 | D41: 1.228135255e+17 | E41: TRUE
B42: 14 | C42: 9.649634145e+17 | D42: 9.649634145e+17 | E42: TRUE
B43: 15 | C43: 7.012067479e+18 | D43: 7.012067479e+18 | E43: TRUE
B44: 16 | C44: 4.733145548e+19 | D44: 4.733145548e+19 | E44: =IF(F44=0,IF(ISERR(C44),"Error", IF(C44=D44,TRUE,FALSE)),"NSup") -> TRUE
B45: 17 | C45: 2.979097492e+20 | D45: 2.979097492e+20 | E45: TRUE
B46: 18 | C46: 1.754357412e+21 | D46: 1.754357412e+21 | E46: TRUE
B47: 19 | C47: 9.695133066e+21 | D47: 9.695133066e+21 | E47: TRUE
B48: 20 | C48: 5.041469194e+22 | D48: 5.041469194e+22 | E48: TRUE
B49: 21 | C49: 2.472720605e+23 | D49: 2.472720605e+23 | E49: TRUE
B50: 22 | C50: 1.14644319e+24 | D50: 1.14644319e+24 | E50: TRUE
B51: 23 | C51: 5.034380963e+24 | D51: 5.034380963e+24 | E51: TRUE
B52: 24 | C52: 2.097658734e+25 | D52: 2.097658734e+25 | E52: TRUE
B53: 25 | C53: 8.306728589e+25 | D53: 8.306728589e+25 | E53: TRUE
B54: 26 | C54: 3.130997699e+26 | D54: 3.130997699e+26 | E54: TRUE
B55: 27 | C55: 1.124839914e+27 | D55: 1.124839914e+27 | E55: TRUE
B56: 28 | C56: 3.856593991e+27 | D56: 3.856593991e+27 | E56: TRUE
B57: 29 | C57: 1.263366997e+28 | D57: 1.263366997e+28 | E57: TRUE
B58: 30 | C58: 3.958549924e+28 | D58: 3.958549924e+28 | E58: TRUE
B59: 31 | C59: 1.187564977e+29 | D59: 1.187564977e+29 | E59: TRUE
B60: 32 | C60: =COMBIN($A$28,B60) -> 3.414249309e+29 | D60: 3.414249309e+29 | E60: TRUE
B61: 33 | C61: 9.415051126e+29 | D61: 9.415051126e+29 | E61: TRUE
B62: 34 | C62: 2.492219416e+30 | D62: 2.492219416e+30 | E62: TRUE
B63: 35 | C63: 6.337357943e+30 | D63: 6.337357943e+30 | E63: TRUE
B64: 36 | C64: 1.549131942e+31 | D64: 1.549131942e+31 | E64: TRUE
B65: 37 | C65: 3.642553484e+31 | D65: 3.642553484e+31 | E65: TRUE
B66: 38 | C66: 8.243673675e+31 | D66: 8.243673675e+31 | E66: TRUE
B67: 39 | C67: 1.796698109e+32 | D67: 1.796698109e+32 | E67: TRUE
B68: 40 | C68: 3.773066028e+32 | D68: 3.773066028e+32 | E68: TRUE
B69: 41 | C69: 7.638158057e+32 | D69: 7.638158057e+32 | E69: TRUE
B70: 42 | C70: 1.49125943e+33 | D70: 1.49125943e+33 | E70: TRUE
B71: 43 | C71: 2.809116601e+33 | D71: 2.809116601e+33 | E71: TRUE
B72: 44 | C72: 5.107484729e+33 | D72: 5.107484729e+33 | E72: TRUE
B73: 45 | C73: 8.966473191e+33 | D73: 8.966473191e+33 | E73: TRUE
B74: 46 | C74: 1.520401976e+34 | D74: 1.520401976e+34 | E74: TRUE
B75: 47 | C75: 2.490871322e+34 | D75: 2.490871322e+34 | E75: TRUE
B76: 48 | C76: 3.943879593e+34 | D76: 3.943879593e+34 | E76: =IF(F76=0,IF(ISERR(C76),"Error", IF(C76=D76,TRUE,FALSE)),"NSup") -> TRUE
B77: 49 | C77: 6.036550398e+34 | D77: 6.036550398e+34 | E77: TRUE
B78: 50 | C78: 8.934094589e+34 | D78: 8.934094589e+34 | E78: TRUE
B79: 51 | C79: 1.278801775e+35 | D79: 1.278801775e+35 | E79: TRUE
B80: 52 | C80: 1.770648611e+35 | D80: 1.770648611e+35 | E80: TRUE
B81: 53 | C81: 2.372000969e+35 | D81: 2.372000969e+35 | E81: TRUE
B82: 54 | C82: 3.074816071e+35 | D82: 3.074816071e+35 | E82: TRUE
B83: 55 | C83: 3.857496526e+35 | D83: 3.857496526e+35 | E83: TRUE
B84: 56 | C84: 4.684102924e+35 | D84: 4.684102924e+35 | E84: TRUE
B85: 57 | C85: 5.505875367e+35 | D85: 5.505875367e+35 | E85: TRUE
B86: 58 | C86: 6.265306452e+35 | D86: 6.265306452e+35 | E86: TRUE
B87: 59 | C87: 6.902456261e+35 | D87: 6.902456261e+35 | E87: TRUE
B88: 60 | C88: 7.362620012e+35 | D88: 7.362620012e+35 | E88: TRUE
B89: 61 | C89: 7.604017389e+35 | D89: 7.604017389e+35 | E89: TRUE
B90: 62 | C90: 7.604017389e+35 | D90: 7.604017389e+35 | E90: TRUE
B91: 63 | C91: 7.362620012e+35 | D91: 7.362620012e+35 | E91: TRUE
B92: 64 | C92: =COMBIN($A$28,B92) -> 6.902456261e+35 | D92: 6.902456261e+35 | E92: TRUE
B93: 65 | C93: 6.265306452e+35 | D93: 6.265306452e+35 | E93: TRUE
B94: 66 | C94: 5.505875367e+35 | D94: 5.505875367e+35 | E94: TRUE
B95: 67 | C95: 4.684102924e+35 | D95: 4.684102924e+35 | E95: TRUE
B96: 68 | C96: 3.857496526e+35 | D96: 3.857496526e+35 | E96: TRUE
B97: 69 | C97: 3.074816071e+35 | D97: 3.074816071e+35 | E97: TRUE
B98: 70 | C98: 2.372000969e+35 | D98: 2.372000969e+35 | E98: TRUE
B99: 71 | C99: 1.770648611e+35 | D99: 1.770648611e+35 | E99: TRUE
B100: 72 | C100: 1.278801775e+35 | D100: 1.278801775e+35 | E100: TRUE
B101: 73 | C101: 8.934094589e+34 | D101: 8.934094589e+34 | E101: TRUE
B102: 74 | C102: 6.036550398e+34 | D102: 6.036550398e+34 | E102: TRUE
B103: 75 | C103: 3.943879593e+34 | D103: 3.943879593e+34 | E103: TRUE
B104: 76 | C104: 2.490871322e+34 | D104: 2.490871322e+34 | E104: TRUE
B105: 77 | C105: 1.520401976e+34 | D105: 1.520401976e+34 | E105: TRUE
B106: 78 | C106: 8.966473191e+33 | D106: 8.966473191e+33 | E106: TRUE
B107: 79 | C107: 5.107484729e+33 | D107: 5.107484729e+33 | E107: TRUE
B108: 80 | C108: 2.809116601e+33 | D108: 2.809116601e+33 | E108: =IF(F108=0,IF(ISERR(C108),"Error", IF(C108=D108,TRUE,FALSE)),"NSup") -> TRUE
B109: 81 | C109: 1.49125943e+33 | D109: 1.49125943e+33 | E109: TRUE
B110: 82 | C110: 7.638158057e+32 | D110: 7.638158057e+32 | E110: TRUE
B111: 83 | C111: 3.773066028e+32 | D111: 3.773066028e+32 | E111: TRUE
B112: 84 | C112: 1.796698109e+32 | D112: 1.796698109e+32 | E112: TRUE
B113: 85 | C113: 8.243673675e+31 | D113: 8.243673675e+31 | E113: TRUE
B114: 86 | C114: 3.642553484e+31 | D114: 3.642553484e+31 | E114: TRUE
B115: 87 | C115: 1.549131942e+31 | D115: 1.549131942e+31 | E115: TRUE
B116: 88 | C116: 6.337357943e+30 | D116: 6.337357943e+30 | E116: TRUE
B117: 89 | C117: 2.492219416e+30 | D117: 2.492219416e+30 | E117: TRUE
B118: 90 | C118: 9.415051126e+29 | D118: 9.415051126e+29 | E118: TRUE
B119: 91 | C119: 3.414249309e+29 | D119: 3.414249309e+29 | E119: TRUE
B120: 92 | C120: 1.187564977e+29 | D120: 1.187564977e+29 | E120: TRUE
B121: 93 | C121: 3.958549924e+28 | D121: 3.958549924e+28 | E121: TRUE
B122: 94 | C122: 1.263366997e+28 | D122: 1.263366997e+28 | E122: TRUE
B123: 95 | C123: 3.856593991e+27 | D123: 3.856593991e+27 | E123: TRUE
B124: 96 | C124: =COMBIN($A$28,B124) -> 1.124839914e+27 | D124: 1.124839914e+27 | E124: TRUE
B125: 97 | C125: 3.130997699e+26 | D125: 3.130997699e+26 | E125: TRUE
B126: 98 | C126: 8.306728589e+25 | D126: 8.306728589e+25 | E126: TRUE
B127: 99 | C127: 2.097658734e+25 | D127: 2.097658734e+25 | E127: TRUE
B128: 100 | C128: 5.034380963e+24 | D128: 5.034380963e+24 | E128: TRUE
B129: 101 | C129: 1.14644319e+24 | D129: 1.14644319e+24 | E129: TRUE
B130: 102 | C130: 2.472720605e+23 | D130: 2.472720605e+23 | E130: TRUE
B131: 103 | C131: 5.041469194e+22 | D131: 5.041469194e+22 | E131: TRUE
A132: 123 | B132: 104 | C132: =COMBIN($A$132,B132) -> 9.695133066e+21 | D132: 9.695133066e+21 | E132: TRUE
B133: 105 | C133: 1.754357412e+21 | D133: 1.754357412e+21 | E133: TRUE
B134: 106 | C134: 2.979097492e+20 | D134: 2.979097492e+20 | E134: TRUE
B135: 107 | C135: 4.733145548e+19 | D135: 4.733145548e+19 | E135: TRUE
B136: 108 | C136: 7.012067479e+18 | D136: 7.012067479e+18 | E136: TRUE
B137: 109 | C137: 9.649634145e+17 | D137: 9.649634145e+17 | E137: TRUE
B138: 110 | C138: 1.228135255e+17 | D138: 1.228135255e+17 | E138: TRUE
B139: 111 | C139: 1.438356605e+16 | D139: 1.438356605e+16 | E139: TRUE
B140: 112 | C140: 1541096362225563 | D140: 1541096362225563 | E140: =IF(F140=0,IF(ISERR(C140),"Error", IF(C140=D140,TRUE,FALSE)),"NSup") -> TRUE
B141: 113 | C141: 150018229951161 | D141: 150018229951161 | E141: TRUE
B142: 114 | C142: 13159493855365 | D142: 13159493855365 | E142: TRUE
B143: 115 | C143: 1029873432159 | D143: 1029873432159 | E143: TRUE
B144: 116 | C144: 71025753942 | D144: 71025753942 | E144: TRUE
B145: 117 | C145: 4249404082 | D145: 4249404082 | E145: TRUE
B146: 118 | C146: 216071394 | D146: 216071394 | E146: TRUE
B147: 119 | C147: 9078630 | D147: 9078630 | E147: TRUE
B148: 120 | C148: 302621 | D148: 302621 | E148: TRUE
B149: 121 | C149: 7503 | D149: 7503 | E149: TRUE
B150: 122 | C150: 123 | D150: 123 | E150: TRUE
B151: 123 | C151: 1 | D151: 1 | E151: TRUE
A152: -10 | B152: 0 | C152: =COMBIN($A$152,B152) ->  | E152: Error
B153: 3 | C153: =COMBIN($A$152,B153) ->  | E153: Error
B154: -4 | C154: =COMBIN($A$152,B154) ->  | E154: Error
B155: 10 | C155: =COMBIN($A$152,B155) ->  | E155: Error
E156: TRUE
A157: 1 | B157: 1 | C157: =COMBIN(A157,B157) -> 1 | D157: 1 | E157: TRUE | H157: Random Data
A158: 3 | B158: 2 | C158: 3 | D158: 3 | E158: TRUE
A159: 3 | B159: 3 | C159: 1 | D159: 1 | E159: TRUE
A160: 4 | B160: 3 | C160: 4 | D160: 4 | E160: TRUE
A161: 4 | B161: 4 | C161: 1 | D161: 1 | E161: TRUE
A162: 6 | B162: 4 | C162: 15 | D162: 15 | E162: TRUE
A163: 7 | B163: 4 | C163: 35 | D163: 35 | E163: TRUE
A164: 7 | B164: 5 | C164: 21 | D164: 21 | E164: TRUE
A165: 8 | B165: 5 | C165: 56 | D165: 56 | E165: TRUE
A166: 9 | B166: 5 | C166: 126 | D166: 126 | E166: TRUE
A167: 10 | B167: 5 | C167: 252 | D167: 252 | E167: TRUE
A168: 10 | B168: 6 | C168: 210 | D168: 210 | E168: TRUE
A169: 11 | B169: 7 | C169: 330 | D169: 330 | E169: TRUE
A170: 12 | B170: 7 | C170: 792 | D170: 792 | E170: TRUE
A171: 13 | B171: 9 | C171: 715 | D171: 715 | E171: TRUE
A172: 14 | B172: 9 | C172: 2002 | D172: 2002 | E172: =IF(F172=0,IF(ISERR(C172),"Error", IF(C172=D172,TRUE,FALSE)),"NSup") -> TRUE
A173: 15 | B173: 10 | C173: 3003 | D173: 3003 | E173: TRUE
A174: 16 | B174: 10 | C174: 8008 | D174: 8008 | E174: TRUE
A175: 18 | B175: 11 | C175: 31824 | D175: 31824 | E175: TRUE
A176: 19 | B176: 11 | C176: 75582 | D176: 75582 | E176: TRUE
A177: 20 | B177: 12 | C177: 125970 | D177: 125970 | E177: TRUE
A178: 21 | B178: 13 | C178: 203490 | D178: 203490 | E178: TRUE
A179: 23 | B179: 15 | C179: 490314 | D179: 490314 | E179: TRUE
A180: 26 | B180: 16 | C180: 5311735 | D180: 5311735 | E180: TRUE
A181: 27 | B181: 18 | C181: 4686825 | D181: 4686825 | E181: TRUE
A182: 27 | B182: 21 | C182: 296010 | D182: 296010 | E182: TRUE
A183: 30 | B183: 24 | C183: 593775 | D183: 593775 | E183: TRUE
A184: 33 | B184: 24 | C184: 38567100 | D184: 38567100 | E184: TRUE
A185: 42 | B185: 27 | C185: 98672427616 | D185: 98672427616 | E185: TRUE
A186: 46 | B186: 38 | C186: 260932815 | D186: 260932815 | E186: TRUE
A187: 49 | B187: 64 | C187: =COMBIN(B187,A187) -> 159518999862720 | D187: 159518999862720 | E187: TRUE
A188: 50 | B188: 89 | C188: 2.660929273e+25 | D188: 2.660929273e+25 | E188: TRUE
A189: 52 | B189: 97 | C189: 9.969700942e+27 | D189: 9.969700942e+27 | E189: TRUE
A190: 58 | B190: 97 | C190: 2.006253097e+27 | D190: 2.006253097e+27 | E190: TRUE
A191: 60 | B191: 145 | C191: 3.433256336e+41 | D191: 3.433256336e+41 | E191: TRUE
A192: 77 | B192: 148 | C192: 2.070315137e+43 | D192: 2.070315137e+43 | E192: TRUE
A193: 79 | B193: 149 | C193: 3.554343369e+43 | D193: 3.554343369e+43 | E193: TRUE
A194: 80 | B194: 198 | C194: 5.910336472e+56 | D194: 5.910336472e+56 | E194: TRUE
A195: 88 | B195: 270 | C195: 5.427344699e+72 | D195: 5.427344699e+72 | E195: TRUE
A196: 101 | B196: 349 | C196: 7.213301809e+89 | D196: 7.213301809e+89 | E196: TRUE
A197: 103 | B197: 415 | C197: 4.441715139e+99 | D197: 4.441715139e+99 | E197: TRUE
A198: 103 | B198: 596 | C198: 6.11409981e+117 | D198: 6.11409981e+117 | E198: TRUE
A199: 135 | B199: 607 | C199: 1.949551772e+138 | D199: 1.949551772e+138 | E199: TRUE
A200: 421 | B200: 618 | C200: 3.428370362e+166 | D200: 3.428370362e+166 | E200: TRUE
A201: 456 | B201: 802 | C201: 3.920873823e+236 | D201: 3.920873823e+236 | E201: TRUE
A202: 549 | B202: 1067 | E202: Error | H202: Boundary value
A203: 1091 | B203: 1171 | C203: 2.694007305e+125 | D203: 2.694007305e+125 | E203: TRUE
A204: 1446 | B204: 1165 | C204: =COMBIN(A204,B204) -> 4.682911349e+307 | D204: 4.682911349e+307 | E204: =IF(F204=0,IF(ISERR(C204),"Error", IF(C204=D204,TRUE,FALSE)),"NSup") -> TRUE
A205: 1446 | B205: 1164 | C205: =COMBIN(A205,B205) ->  | E205: Error
A206: 6621 | B206: 149 | C206: =COMBIN(A206,B206) -> 1.018849728e+308 | D206: 1.018849728e+308 | E206: TRUE
A207: 6621 | B207: 150 | C207: =COMBIN(A207,B207) ->  | E207: Error
... 1 more rows

Sheet COS
A1: =SUM(A3:A5) -> 0 | B1: =SUM(B3:B5) -> 2 | C1: =SUM(C3:C5) -> 0 | D1: Total
A2: Failed | B2: Error | C2: NotSupport | D2: Verification Area
A3: =COUNTIF(INDIRECT(D3),"=false") -> 0 | B3: =COUNTIF(INDIRECT(D3),"=Error") -> 2 | C3: =COUNTIF(INDIRECT(D3),"=NSup") -> 0 | D3: E12:E435
A11: Data | C11: Formula | D11: Expected | E11: Check | F11: Mask | G11: Comments | H11: Description
C12: =COS(PI()) -> -1 | D12: -1 | E12: =IF(F12=0,IF(ISERR(C12),"Error", IF(C12=D12,TRUE,FALSE)),"NSup") -> TRUE
C13: =COS(0) -> 1 | D13: 1 | E13: TRUE
C14: =COS(-PI()) -> -1 | D14: -1 | E14: TRUE
A15: 0 | C15: =COS(A15) -> 1 | D15: 1 | E15: TRUE | H15: From PI to 2PI
A16: 0.01745329252 | B16: 1 | C16: 0.9998476952 | D16: 0.9998476952 | E16: TRUE
A17: 0.03490658504 | B17: 2 | C17: 0.999390827 | D17: 0.999390827 | E17: TRUE
A18: 0.0523598775598299 | B18: 3 | C18: 0.9986295348 | D18: 0.9986295348 | E18: TRUE
A19: 0.0698131700797732 | B19: 4 | C19: 0.9975640503 | D19: 0.9975640503 | E19: TRUE
A20: 0.0872664626 | B20: 5 | C20: 0.9961946981 | D20: 0.9961946981 | E20: TRUE
A21: 0.1047197551 | B21: 6 | C21: 0.9945218954 | D21: 0.9945218954 | E21: TRUE
A22: 0.1221730476 | B22: 7 | C22: 0.9925461516 | D22: 0.9925461516 | E22: TRUE
A23: 0.1396263402 | B23: 8 | C23: 0.9902680687 | D23: 0.9902680687 | E23: TRUE
A24: 0.1570796327 | B24: 9 | C24: 0.9876883406 | D24: 0.9876883406 | E24: TRUE
A25: 0.1745329252 | B25: 10 | C25: 0.984807753 | D25: 0.984807753 | E25: TRUE
A26: 0.1919862177 | B26: 11 | C26: 0.9816271834 | D26: 0.9816271834 | E26: TRUE
A27: 0.2094395102 | B27: 12 | C27: 0.9781476007 | D27: 0.9781476007 | E27: TRUE
A28: 0.2268928028 | B28: 13 | C28: 0.9743700648 | D28: 0.9743700648 | E28: TRUE
A29: 0.2443460953 | B29: 14 | C29: 0.9702957263 | D29: 0.9702957263 | E29: TRUE
A30: 0.2617993878 | B30: 15 | C30: 0.9659258263 | D30: 0.9659258263 | E30: TRUE
A31: 0.2792526803 | B31: 16 | C31: 0.9612616959 | D31: 0.9612616959 | E31: TRUE
A32: 0.2967059728 | B32: 17 | C32: 0.956304756 | D32: 0.956304756 | E32: TRUE
A33: 0.3141592654 | B33: 18 | C33: 0.9510565163 | D33: 0.9510565163 | E33: TRUE
A34: 0.3316125579 | B34: 19 | C34: 0.9455185756 | D34: 0.9455185756 | E34: TRUE
A35: 0.3490658504 | B35: 20 | C35: 0.9396926208 | D35: 0.9396926208 | E35: TRUE
A36: 0.3665191429 | B36: 21 | C36: 0.9335804265 | D36: 0.9335804265 | E36: TRUE
A37: 0.3839724354 | B37: 22 | C37: 0.9271838546 | D37: 0.9271838546 | E37: TRUE
A38: 0.401425728 | B38: 23 | C38: 0.9205048535 | D38: 0.9205048535 | E38: TRUE
A39: 0.4188790205 | B39: 24 | C39: 0.9135454576 | D39: 0.9135454576 | E39: TRUE
A40: 0.436332313 | B40: 25 | C40: 0.906307787 | D40: 0.906307787 | E40: TRUE
A41: 0.4537856055 | B41: 26 | C41: 0.8987940463 | D41: 0.8987940463 | E41: TRUE
A42: 0.471238898 | B42: 27 | C42: 0.8910065242 | D42: 0.8910065242 | E42: TRUE
A43: 0.4886921906 | B43: 28 | C43: 0.8829475929 | D43: 0.8829475929 | E43: TRUE
A44: 0.5061454831 | B44: 29 | C44: 0.8746197071 | D44: 0.8746197071 | E44: TRUE
A45: 0.5235987756 | B45: 30 | C45: 0.8660254038 | D45: 0.8660254038 | E45: TRUE
A46: 0.5410520681 | B46: 31 | C46: 0.8571673007 | D46: 0.8571673007 | E46: TRUE
A47: 0.5585053606 | B47: 32 | C47: 0.8480480962 | D47: 0.8480480962 | E47: TRUE
A48: 0.5759586532 | B48: 33 | C48: 0.8386705679 | D48: 0.8386705679 | E48: TRUE
A49: 0.5934119457 | B49: 34 | C49: 0.8290375726 | D49: 0.8290375726 | E49: TRUE
A50: 0.6108652382 | B50: 35 | C50: 0.8191520443 | D50: 0.8191520443 | E50: TRUE
A51: 0.6283185307 | B51: 36 | C51: 0.8090169944 | D51: 0.8090169944 | E51: TRUE
A52: 0.6457718232 | B52: 37 | C52: 0.79863551 | D52: 0.79863551 | E52: TRUE
A53: 0.6632251158 | B53: 38 | C53: 0.7880107536 | D53: 0.7880107536 | E53: TRUE
A54: 0.6806784083 | B54: 39 | C54: 0.7771459615 | D54: 0.7771459615 | E54: TRUE
A55: 0.6981317008 | B55: 40 | C55: 0.7660444431 | D55: 0.7660444431 | E55: TRUE
A56: 0.7155849933 | B56: 41 | C56: 0.7547095802 | D56: 0.7547095802 | E56: TRUE
A57: 0.7330382858 | B57: 42 | C57: 0.7431448255 | D57: 0.7431448255 | E57: TRUE
A58: 0.7504915784 | B58: 43 | C58: 0.7313537016 | D58: 0.7313537016 | E58: TRUE
A59: 0.7679448709 | B59: 44 | C59: 0.7193398003 | D59: 0.7193398003 | E59: TRUE
A60: 0.7853981634 | B60: 45 | C60: 0.7071067812 | D60: 0.7071067812 | E60: TRUE
A61: 0.8028514559 | B61: 46 | C61: 0.6946583705 | D61: 0.6946583705 | E61: TRUE
A62: 0.8203047484 | B62: 47 | C62: 0.6819983601 | D62: 0.6819983601 | E62: TRUE
A63: 0.837758041 | B63: 48 | C63: 0.6691306064 | D63: 0.6691306064 | E63: TRUE
A64: 0.8552113335 | B64: 49 | C64: 0.656059029 | D64: 0.656059029 | E64: TRUE
A65: 0.872664626 | B65: 50 | C65: 0.6427876097 | D65: 0.6427876097 | E65: TRUE
A66: 0.8901179185 | B66: 51 | C66: 0.629320391 | D66: 0.629320391 | E66: TRUE
A67: 0.907571211 | B67: 52 | C67: 0.6156614753 | D67: 0.6156614753 | E67: TRUE
A68: 0.9250245036 | B68: 53 | C68: 0.6018150232 | D68: 0.6018150232 | E68: TRUE
A69: 0.9424777961 | B69: 54 | C69: 0.5877852523 | D69: 0.5877852523 | E69: TRUE
A70: 0.9599310886 | B70: 55 | C70: 0.5735764364 | D70: 0.5735764364 | E70: TRUE
A71: 0.9773843811 | B71: 56 | C71: 0.5591929035 | D71: 0.5591929035 | E71: TRUE
A72: 0.9948376736 | B72: 57 | C72: 0.544639035 | D72: 0.544639035 | E72: TRUE
A73: 1.012290966 | B73: 58 | C73: 0.5299192642 | D73: 0.5299192642 | E73: TRUE
A74: 1.029744259 | B74: 59 | C74: 0.5150380749 | D74: 0.5150380749 | E74: TRUE
A75: 1.047197551 | B75: 60 | C75: 0.5 | D75: 0.5 | E75: TRUE
A76: 1.064650844 | B76: 61 | C76: 0.4848096202 | D76: 0.4848096202 | E76: =IF(F76=0,IF(ISERR(C76),"Error", IF(C76=D76,TRUE,FALSE)),"NSup") -> TRUE
A77: 1.082104136 | B77: 62 | C77: 0.4694715628 | D77: 0.4694715628 | E77: TRUE
A78: 1.099557429 | B78: 63 | C78: 0.4539904997 | D78: 0.4539904997 | E78: TRUE
A79: 1.117010721 | B79: 64 | C79: =COS(A79) -> 0.4383711468 | D79: 0.4383711468 | E79: TRUE
A80: 1.134464014 | B80: 65 | C80: 0.4226182617 | D80: 0.4226182617 | E80: TRUE
A81: 1.151917306 | B81: 66 | C81: 0.4067366431 | D81: 0.4067366431 | E81: TRUE
A82: 1.169370599 | B82: 67 | C82: 0.3907311285 | D82: 0.3907311285 | E82: TRUE
A83: 1.186823891 | B83: 68 | C83: 0.3746065934 | D83: 0.3746065934 | E83: TRUE
A84: 1.204277184 | B84: 69 | C84: 0.3583679495 | D84: 0.3583679495 | E84: TRUE
A85: 1.221730476 | B85: 70 | C85: 0.3420201433 | D85: 0.3420201433 | E85: TRUE
A86: 1.239183769 | B86: 71 | C86: 0.3255681545 | D86: 0.3255681545 | E86: TRUE
A87: 1.256637061 | B87: 72 | C87: 0.3090169944 | D87: 0.3090169944 | E87: TRUE
A88: 1.274090354 | B88: 73 | C88: 0.2923717047 | D88: 0.2923717047 | E88: TRUE
A89: 1.291543646 | B89: 74 | C89: 0.2756373558 | D89: 0.2756373558 | E89: TRUE
A90: 1.308996939 | B90: 75 | C90: 0.2588190451 | D90: 0.2588190451 | E90: TRUE
A91: 1.326450232 | B91: 76 | C91: 0.2419218956 | D91: 0.2419218956 | E91: TRUE
A92: 1.343903524 | B92: 77 | C92: 0.2249510543 | D92: 0.2249510543 | E92: TRUE
A93: 1.361356817 | B93: 78 | C93: 0.2079116908 | D93: 0.2079116908 | E93: TRUE
A94: 1.378810109 | B94: 79 | C94: 0.1908089954 | D94: 0.1908089954 | E94: TRUE
A95: 1.396263402 | B95: 80 | C95: 0.1736481777 | D95: 0.1736481777 | E95: TRUE
A96: 1.413716694 | B96: 81 | C96: 0.156434465 | D96: 0.156434465 | E96: TRUE
A97: 1.431169987 | B97: 82 | C97: 0.139173101 | D97: 0.139173101 | E97: TRUE
A98: 1.448623279 | B98: 83 | C98: 0.1218693434 | D98: 0.1218693434 | E98: TRUE
A99: 1.466076572 | B99: 84 | C99: 0.1045284633 | D99: 0.1045284633 | E99: TRUE
A100: 1.483529864 | B100: 85 | C100: 0.08715574275 | D100: 0.08715574275 | E100: TRUE
A101: 1.500983157 | B101: 86 | C101: 0.06975647374 | D101: 0.06975647374 | E101: TRUE
A102: 1.518436449 | B102: 87 | C102: 0.05233595624 | D102: 0.05233595624 | E102: TRUE
A103: 1.535889742 | B103: 88 | C103: 0.0348994967 | D103: 0.0348994967 | E103: TRUE
A104: 1.553343034 | B104: 89 | C104: 0.01745240644 | D104: 0.01745240644 | E104: TRUE
A105: 1.570796327 | B105: 90 | C105: 6.125742275e-17 | D105: 6.125742275e-17 | E105: TRUE
A106: 1.588249619 | B106: 91 | C106: -0.01745240644 | D106: -0.01745240644 | E106: TRUE
A107: 1.605702912 | B107: 92 | C107: -0.0348994967 | D107: -0.0348994967 | E107: TRUE
A108: 1.623156204 | B108: 93 | C108: -0.05233595624 | D108: -0.05233595624 | E108: TRUE
A109: 1.640609497 | B109: 94 | C109: -0.06975647374 | D109: -0.06975647374 | E109: TRUE
A110: 1.658062789 | B110: 95 | C110: -0.08715574275 | D110: -0.08715574275 | E110: TRUE
A111: 1.675516082 | B111: 96 | C111: -0.1045284633 | D111: -0.1045284633 | E111: TRUE
A112: 1.692969374 | B112: 97 | C112: -0.1218693434 | D112: -0.1218693434 | E112: TRUE
A113: 1.710422667 | B113: 98 | C113: -0.139173101 | D113: -0.139173101 | E113: TRUE
A114: 1.727875959 | B114: 99 | C114: -0.156434465 | D114: -0.156434465 | E114: TRUE
A115: 1.745329252 | B115: 100 | C115: -0.1736481777 | D115: -0.1736481777 | E115: TRUE
A116: 1.762782545 | B116: 101 | C116: -0.1908089954 | D116: -0.1908089954 | E116: TRUE
A117: 1.780235837 | B117: 102 | C117: -0.2079116908 | D117: -0.2079116908 | E117: TRUE
A118: 1.79768913 | B118: 103 | C118: -0.2249510543 | D118: -0.2249510543 | E118: TRUE
A119: 1.815142422 | B119: 104 | C119: -0.2419218956 | D119: -0.2419218956 | E119: TRUE
A120: 1.832595715 | B120: 105 | C120: -0.2588190451 | D120: -0.2588190451 | E120: TRUE
A121: 1.850049007 | B121: 106 | C121: -0.2756373558 | D121: -0.2756373558 | E121: TRUE
A122: 1.8675023 | B122: 107 | C122: -0.2923717047 | D122: -0.2923717047 | E122: TRUE
A123: 1.884955592 | B123: 108 | C123: -0.3090169944 | D123: -0.3090169944 | E123: TRUE
A124: 1.902408885 | B124: 109 | C124: -0.3255681545 | D124: -0.3255681545 | E124: TRUE
A125: 1.919862177 | B125: 110 | C125: -0.3420201433 | D125: -0.3420201433 | E125: TRUE
A126: 1.93731547 | B126: 111 | C126: -0.3583679495 | D126: -0.3583679495 | E126: TRUE
A127: 1.954768762 | B127: 112 | C127: -0.3746065934 | D127: -0.3746065934 | E127: TRUE
A128: 1.972222055 | B128: 113 | C128: -0.3907311285 | D128: -0.3907311285 | E128: TRUE
A129: 1.989675347 | B129: 114 | C129: -0.4067366431 | D129: -0.4067366431 | E129: TRUE
A130: 2.00712864 | B130: 115 | C130: -0.4226182617 | D130: -0.4226182617 | E130: TRUE
A131: 2.024581932 | B131: 116 | C131: -0.4383711468 | D131: -0.4383711468 | E131: TRUE
A132: 2.042035225 | B132: 117 | C132: -0.4539904997 | D132: -0.4539904997 | E132: TRUE
A133: 2.059488517 | B133: 118 | C133: -0.4694715628 | D133: -0.4694715628 | E133: TRUE
A134: 2.07694181 | B134: 119 | C134: -0.4848096202 | D134: -0.4848096202 | E134: TRUE
A135: 2.094395102 | B135: 120 | C135: -0.5 | D135: -0.5 | E135: TRUE
A136: 2.111848395 | B136: 121 | C136: -0.5150380749 | D136: -0.5150380749 | E136: TRUE
A137: 2.129301687 | B137: 122 | C137: -0.5299192642 | D137: -0.5299192642 | E137: TRUE
A138: 2.14675498 | B138: 123 | C138: -0.544639035 | D138: -0.544639035 | E138: TRUE
A139: 2.164208272 | B139: 124 | C139: -0.5591929035 | D139: -0.5591929035 | E139: TRUE
A140: 2.181661565 | B140: 125 | C140: -0.5735764364 | D140: -0.5735764364 | E140: =IF(F140=0,IF(ISERR(C140),"Error", IF(C140=D140,TRUE,FALSE)),"NSup") -> TRUE
A141: 2.199114858 | B141: 126 | C141: -0.5877852523 | D141: -0.5877852523 | E141: TRUE
A142: 2.21656815 | B142: 127 | C142: -0.6018150232 | D142: -0.6018150232 | E142: TRUE
A143: 2.234021443 | B143: 128 | C143: =COS(A143) -> -0.6156614753 | D143: -0.6156614753 | E143: TRUE
A144: 2.251474735 | B144: 129 | C144: -0.629320391 | D144: -0.629320391 | E144: TRUE
A145: 2.268928028 | B145: 130 | C145: -0.6427876097 | D145: -0.6427876097 | E145: TRUE
A146: 2.28638132 | B146: 131 | C146: -0.656059029 | D146: -0.656059029 | E146: TRUE
A147: 2.303834613 | B147: 132 | C147: -0.6691306064 | D147: -0.6691306064 | E147: TRUE
A148: 2.321287905 | B148: 133 | C148: -0.6819983601 | D148: -0.6819983601 | E148: TRUE
A149: 2.338741198 | B149: 134 | C149: -0.6946583705 | D149: -0.6946583705 | E149: TRUE
A150: 2.35619449 | B150: 135 | C150: -0.7071067812 | D150: -0.7071067812 | E150: TRUE
A151: 2.373647783 | B151: 136 | C151: -0.7193398003 | D151: -0.7193398003 | E151: TRUE
A152: 2.391101075 | B152: 137 | C152: -0.7313537016 | D152: -0.7313537016 | E152: TRUE
A153: 2.408554368 | B153: 138 | C153: -0.7431448255 | D153: -0.7431448255 | E153: TRUE
A154: 2.42600766 | B154: 139 | C154: -0.7547095802 | D154: -0.7547095802 | E154: TRUE
A155: 2.443460953 | B155: 140 | C155: -0.7660444431 | D155: -0.7660444431 | E155: TRUE
A156: 2.460914245 | B156: 141 | C156: -0.7771459615 | D156: -0.7771459615 | E156: TRUE
A157: 2.478367538 | B157: 142 | C157: -0.7880107536 | D157: -0.7880107536 | E157: TRUE
A158: 2.49582083 | B158: 143 | C158: -0.79863551 | D158: -0.79863551 | E158: TRUE
A159: 2.513274123 | B159: 144 | C159: -0.8090169944 | D159: -0.8090169944 | E159: TRUE
A160: 2.530727415 | B160: 145 | C160: -0.8191520443 | D160: -0.8191520443 | E160: TRUE
A161: 2.548180708 | B161: 146 | C161: -0.8290375726 | D161: -0.8290375726 | E161: TRUE
A162: 2.565634 | B162: 147 | C162: -0.8386705679 | D162: -0.8386705679 | E162: TRUE
A163: 2.583087293 | B163: 148 | C163: -0.8480480962 | D163: -0.8480480962 | E163: TRUE
A164: 2.600540585 | B164: 149 | C164: -0.8571673007 | D164: -0.8571673007 | E164: TRUE
A165: 2.617993878 | B165: 150 | C165: -0.8660254038 | D165: -0.8660254038 | E165: TRUE
A166: 2.635447171 | B166: 151 | C166: -0.8746197071 | D166: -0.8746197071 | E166: TRUE
A167: 2.652900463 | B167: 152 | C167: -0.8829475929 | D167: -0.8829475929 | E167: TRUE
A168: 2.670353756 | B168: 153 | C168: -0.8910065242 | D168: -0.8910065242 | E168: TRUE
A169: 2.687807048 | B169: 154 | C169: -0.8987940463 | D169: -0.8987940463 | E169: TRUE
A170: 2.705260341 | B170: 155 | C170: -0.906307787 | D170: -0.906307787 | E170: TRUE
A171: 2.722713633 | B171: 156 | C171: -0.9135454576 | D171: -0.9135454576 | E171: TRUE
A172: 2.740166926 | B172: 157 | C172: -0.9205048535 | D172: -0.9205048535 | E172: TRUE
A173: 2.757620218 | B173: 158 | C173: -0.9271838546 | D173: -0.9271838546 | E173: TRUE
A174: 2.775073511 | B174: 159 | C174: -0.9335804265 | D174: -0.9335804265 | E174: TRUE
A175: 2.792526803 | B175: 160 | C175: -0.9396926208 | D175: -0.9396926208 | E175: TRUE
A176: 2.809980096 | B176: 161 | C176: -0.9455185756 | D176: -0.9455185756 | E176: TRUE
A177: 2.827433388 | B177: 162 | C177: -0.9510565163 | D177: -0.9510565163 | E177: TRUE
A178: 2.844886681 | B178: 163 | C178: -0.956304756 | D178: -0.956304756 | E178: TRUE
A179: 2.862339973 | B179: 164 | C179: -0.9612616959 | D179: -0.9612616959 | E179: TRUE
A180: 2.879793266 | B180: 165 | C180: -0.9659258263 | D180: -0.9659258263 | E180: TRUE
A181: 2.897246558 | B181: 166 | C181: -0.9702957263 | D181: -0.9702957263 | E181: TRUE
A182: 2.914699851 | B182: 167 | C182: -0.9743700648 | D182: -0.9743700648 | E182: TRUE
A183: 2.932153143 | B183: 168 | C183: -0.9781476007 | D183: -0.9781476007 | E183: TRUE
A184: 2.949606436 | B184: 169 | C184: -0.9816271834 | D184: -0.9816271834 | E184: TRUE
A185: 2.967059728 | B185: 170 | C185: -0.984807753 | D185: -0.984807753 | E185: TRUE
A186: 2.984513021 | B186: 171 | C186: -0.9876883406 | D186: -0.9876883406 | E186: TRUE
A187: 3.001966313 | B187: 172 | C187: -0.9902680687 | D187: -0.9902680687 | E187: TRUE
A188: 3.019419606 | B188: 173 | C188: -0.9925461516 | D188: -0.9925461516 | E188: TRUE
A189: 3.036872898 | B189: 174 | C189: -0.9945218954 | D189: -0.9945218954 | E189: TRUE
A190: 3.054326191 | B190: 175 | C190: -0.9961946981 | D190: -0.9961946981 | E190: TRUE
A191: 3.071779484 | B191: 176 | C191: -0.9975640503 | D191: -0.9975640503 | E191: TRUE
A192: 3.089232776 | B192: 177 | C192: -0.9986295348 | D192: -0.9986295348 | E192: TRUE
A193: 3.106686069 | B193: 178 | C193: -0.999390827 | D193: -0.999390827 | E193: TRUE
A194: 3.124139361 | B194: 179 | C194: -0.9998476952 | D194: -0.9998476952 | E194: TRUE
A195: 3.141592654 | B195: 180 | C195: -1 | D195: -1 | E195: TRUE
A196: 3.159045946 | B196: 181 | C196: -0.9998476952 | D196: -0.9998476952 | E196: TRUE
A197: 3.176499239 | B197: 182 | C197: -0.999390827 | D197: -0.999390827 | E197: TRUE
A198: 3.193952531 | B198: 183 | C198: -0.9986295348 | D198: -0.9986295348 | E198: TRUE
A199: 3.211405824 | B199: 184 | C199: -0.9975640503 | D199: -0.9975640503 | E199: TRUE
A200: 3.228859116 | B200: 185 | C200: -0.9961946981 | D200: -0.9961946981 | E200: TRUE
A201: 3.246312409 | B201: 186 | C201: -0.9945218954 | D201: -0.9945218954 | E201: TRUE
A202: 3.263765701 | B202: 187 | C202: -0.9925461516 | D202: -0.9925461516 | E202: TRUE
A203: 3.281218994 | B203: 188 | C203: -0.9902680687 | D203: -0.9902680687 | E203: TRUE
A204: 3.298672286 | B204: 189 | C204: -0.9876883406 | D204: -0.9876883406 | E204: =IF(F204=0,IF(ISERR(C204),"Error", IF(C204=D204,TRUE,FALSE)),"NSup") -> TRUE
A205: 3.316125579 | B205: 190 | C205: -0.984807753 | D205: -0.984807753 | E205: TRUE
A206: 3.333578871 | B206: 191 | C206: -0.9816271834 | D206: -0.9816271834 | E206: TRUE
A207: 3.351032164 | B207: 192 | C207: =COS(A207) -> -0.9781476007 | D207: -0.9781476007 | E207: TRUE
... 226 more rows

Sheet COSH
A1: =SUM(A3:A5) -> 0 | B1: =SUM(B3:B5) -> 7 | C1: =SUM(C3:C5) -> 0 | D1: Total
A2: Failed | B2: Error | C2: NotSupport | D2: Verification Area
A3: =COUNTIF(INDIRECT(D3),"=false") -> 0 | B3: =COUNTIF(INDIRECT(D3),"=Error") -> 7 | C3: =COUNTIF(INDIRECT(D3),"=NSup") -> 0 | D3: E12:E140
A9: COSH(x)=[e^x+e^(-x)]/2
A11: Data | C11: Formula | D11: Expected | E11: Check | F11: Mask | G11: Comments | H11: Description
C12: =COSH(0) -> 1 | D12: 1 | E12: =IF(F12=0,IF(ISERR(C12),"Error", IF(C12=D12,TRUE,FALSE)),"NSup") -> TRUE
C13: =COSH(PI()) -> 11.59195328 | D13: 11.59195328 | E13: TRUE
C14: =COSH(709.782712) -> 8.988457644e+307 | D14: 8.988457644e+307 | E14: TRUE
C15: =COSH(-709.782712) -> 8.988457644e+307 | D15: 8.988457644e+307 | E15: TRUE
A16: 709.782713 | C16: =COSH(A16) ->  | E16: Error
C17: =COSH(-709.782713) ->  | E17: Error
A18: 1 | C18: =COSH(A18) -> 1.543080635 | D18: 1.543080635 | E18: TRUE
A19: 2 | C19: 3.762195691 | D19: 3.762195691 | E19: TRUE
A20: 3 | C20: 10.067662 | D20: 10.067662 | E20: TRUE
A21: 4 | C21: 27.30823284 | D21: 27.30823284 | E21: TRUE
A22: 5 | C22: 74.20994852 | D22: 74.20994852 | E22: TRUE
A23: 6 | C23: 201.7156361 | D23: 201.7156361 | E23: TRUE
A24: 7 | C24: 548.3170352 | D24: 548.3170352 | E24: TRUE
A25: 8 | C25: 1490.479161 | D25: 1490.479161 | E25: TRUE
A26: 9 | C26: 4051.542025 | D26: 4051.542025 | E26: TRUE
A27: 10 | C27: 11013.23292 | D27: 11013.23292 | E27: TRUE
A28: -1 | C28: 1.543080635 | D28: 1.543080635 | E28: TRUE
A29: -2 | C29: 3.762195691 | D29: 3.762195691 | E29: TRUE
A30: -3 | C30: 10.067662 | D30: 10.067662 | E30: TRUE
A31: -4 | C31: 27.30823284 | D31: 27.30823284 | E31: TRUE
A32: -5 | C32: 74.20994852 | D32: 74.20994852 | E32: TRUE
A33: -6 | C33: 201.7156361 | D33: 201.7156361 | E33: TRUE
A34: -7 | C34: 548.3170352 | D34: 548.3170352 | E34: TRUE
A35: -8 | C35: 1490.479161 | D35: 1490.479161 | E35: TRUE
A36: -9 | C36: 4051.542025 | D36: 4051.542025 | E36: TRUE
A37: -10 | C37: 11013.23292 | D37: 11013.23292 | E37: TRUE
A38: -882718810732 | E38: Error | H38: Random Data
A39: -4005.99 | E39: Error
A40: -1305.6 | E40: Error
A41: -561.439 | C41: 3.37932242e+243 | D41: 3.37932242e+243 | E41: TRUE
A42: -191 | C42: 4.458780035e+82 | D42: 4.458780035e+82 | E42: TRUE
A43: -168 | C43: 4.575546403e+72 | D43: 4.575546403e+72 | E43: TRUE
A44: -99.8477 | C44: 1.154184254e+43 | D44: 1.154184254e+43 | E44: =IF(F44=0,IF(ISERR(C44),"Error", IF(C44=D44,TRUE,FALSE)),"NSup") -> TRUE
A45: -99.5189 | C45: 8.30766775e+42 | D45: 8.30766775e+42 | E45: TRUE
A46: -97.17427 | C46: 7.965613833e+41 | D46: 7.965613833e+41 | E46: TRUE
A47: -56.40149788 | C47: 1.562533383e+24 | D47: 1.562533383e+24 | E47: TRUE
A48: -27.4853021 | C48: 4.322002759e+11 | D48: 4.322002759e+11 | E48: TRUE
A49: -23.1492 | C49: 5656396239 | D49: 5656396239 | E49: TRUE
A50: -17.731 | C50: =COSH(A50) -> 25086811.29 | D50: 25086811.29 | E50: TRUE
A51: -16.4 | C51: 6628259.57 | D51: 6628259.57 | E51: TRUE
A52: -13.9718627 | C52: 584618.9342 | D52: 584618.9342 | E52: TRUE
A53: -13.84394526 | C53: 514421.4131 | D53: 514421.4131 | E53: TRUE
A54: -13.76 | C54: 473001.0179 | D54: 473001.0179 | E54: TRUE
A55: -9.5 | C55: 6679.863452 | D55: 6679.863452 | E55: TRUE
A56: -7.32 | C56: 755.102316 | D56: 755.102316 | E56: TRUE
A57: -6.9459 | C57: 519.4412663 | D57: 519.4412663 | E57: TRUE
A58: -6.8166884 | C58: 456.4788733 | D58: 456.4788733 | E58: TRUE
A59: -5.26 | C59: 96.2433433 | D59: 96.2433433 | E59: TRUE
A60: -5.08 | C60: 80.39013792 | D60: 80.39013792 | E60: TRUE
A61: -4.808233 | C61: 61.26155225 | D61: 61.26155225 | E61: TRUE
A62: -4.2 | C62: 33.35066331 | D62: 33.35066331 | E62: TRUE
A63: -3.6977 | C63: 20.18958146 | D63: 20.18958146 | E63: TRUE
A64: -1.9 | C64: 3.417731531 | D64: 3.417731531 | E64: TRUE
A65: -1.74 | C65: 2.936431912 | D65: 2.936431912 | E65: TRUE
A66: -1.57129085 | C66: 2.510316831 | D66: 2.510316831 | E66: TRUE
A67: -1.474153 | C67: 2.298153829 | D67: 2.298153829 | E67: TRUE
A68: -1.4 | C68: 2.150898465 | D68: 2.150898465 | E68: TRUE
A69: -1.34266987 | C69: 2.045200493 | D69: 2.045200493 | E69: TRUE
A70: -1.167826099 | C70: 1.763019168 | D70: 1.763019168 | E70: TRUE
A71: -1.1169141 | C71: 1.691349582 | D71: 1.691349582 | E71: TRUE
A72: -1.115519 | C72: 1.689448225 | D72: 1.689448225 | E72: TRUE
A73: -1 | C73: 1.543080635 | D73: 1.543080635 | E73: TRUE
A74: -0.999999999 | C74: 1.543080634 | D74: 1.543080634 | E74: TRUE
A75: -0.969 | C75: 1.507385072 | D75: 1.507385072 | E75: TRUE
A76: -0.90235 | C76: 1.435502659 | D76: 1.435502659 | E76: =IF(F76=0,IF(ISERR(C76),"Error", IF(C76=D76,TRUE,FALSE)),"NSup") -> TRUE
A77: -0.855794 | C77: 1.389093882 | D77: 1.389093882 | E77: TRUE
A78: -0.77294 | C78: 1.313889559 | D78: 1.313889559 | E78: TRUE
A79: -0.49797 | C79: 1.126570464 | D79: 1.126570464 | E79: TRUE
A80: -0.469254 | C80: 1.112134868 | D80: 1.112134868 | E80: TRUE
A81: -0.4 | C81: 1.081072372 | D81: 1.081072372 | E81: TRUE
A82: -0.31 | C82: =COSH(A82) -> 1.048436035 | D82: 1.048436035 | E82: TRUE
A83: -0.2563 | C83: 1.033025036 | D83: 1.033025036 | E83: TRUE
A84: -0.23848389 | C84: 1.028572319 | D84: 1.028572319 | E84: TRUE
A85: -0.23026437 | C85: 1.026628185 | D85: 1.026628185 | E85: TRUE
A86: -0.1326713 | C86: 1.008813754 | D86: 1.008813754 | E86: TRUE
A87: -0.1107 | C87: 1.006133505 | D87: 1.006133505 | E87: TRUE
A88: -0.07785064 | C88: 1.003031892 | D88: 1.003031892 | E88: TRUE
A89: -0.069465 | C89: 1.002413663 | D89: 1.002413663 | E89: TRUE
A90: -0.052257 | C90: 1.001365708 | D90: 1.001365708 | E90: TRUE
A91: 0.061 | C91: 1.001861077 | D91: 1.001861077 | E91: TRUE
A92: 0.191565 | C92: 1.018404755 | D92: 1.018404755 | E92: TRUE
A93: 0.2 | C93: 1.020066756 | D93: 1.020066756 | E93: TRUE
A94: 0.223 | C94: 1.024967712 | D94: 1.024967712 | E94: TRUE
A95: 0.3579223 | C95: 1.064740936 | D95: 1.064740936 | E95: TRUE
A96: 0.3872 | C96: 1.075903161 | D96: 1.075903161 | E96: TRUE
A97: 0.3912 | C97: 1.077499564 | D97: 1.077499564 | E97: TRUE
A98: 0.4288873 | C98: 1.093390644 | D98: 1.093390644 | E98: TRUE
A99: 0.50245 | C99: 1.128906034 | D99: 1.128906034 | E99: TRUE
A100: 0.61659 | C100: 1.196190926 | D100: 1.196190926 | E100: TRUE
A101: 0.65141 | C101: 1.219776929 | D101: 1.219776929 | E101: TRUE
A102: 0.786082 | C102: 1.325203428 | D102: 1.325203428 | E102: TRUE
A103: 1 | C103: 1.543080635 | D103: 1.543080635 | E103: TRUE
A104: 1 | C104: 1.543080635 | D104: 1.543080635 | E104: TRUE
A105: 1 | C105: 1.543080635 | D105: 1.543080635 | E105: TRUE
A106: 1 | C106: 1.543080635 | D106: 1.543080635 | E106: TRUE
A107: 1.2 | C107: 1.810655567 | D107: 1.810655567 | E107: TRUE
A108: 1.26895719 | C108: 1.919132917 | D108: 1.919132917 | E108: =IF(F108=0,IF(ISERR(C108),"Error", IF(C108=D108,TRUE,FALSE)),"NSup") -> TRUE
A109: 1.4 | C109: 2.150898465 | D109: 2.150898465 | E109: TRUE
A110: 1.5177993 | C110: 2.39068395 | D110: 2.39068395 | E110: TRUE
A111: 1.665601 | C111: 2.738963941 | D111: 2.738963941 | E111: TRUE
A112: 2.761387 | C112: 7.942488289 | D112: 7.942488289 | E112: TRUE
A113: 2.887584888 | C113: 9.002808387 | D113: 9.002808387 | E113: TRUE
A114: 2.9 | C114: =COSH(A114) -> 9.114584295 | D114: 9.114584295 | E114: TRUE
A115: 4.55 | C115: 47.32148776 | D115: 47.32148776 | E115: TRUE
A116: 4.7 | C116: 54.97813386 | D116: 54.97813386 | E116: TRUE
A117: 4.82 | C117: 61.98657878 | D117: 61.98657878 | E117: TRUE
A118: 6.4 | C118: 300.9233497 | D118: 300.9233497 | E118: TRUE
A119: 7.5931 | C119: 992.2281526 | D119: 992.2281526 | E119: TRUE
A120: 7.882176611 | C120: 1324.816943 | D120: 1324.816943 | E120: TRUE
A121: 9.28545333 | C121: 5390.029614 | D121: 5390.029614 | E121: TRUE
A122: 9.3741989 | C122: 5890.238255 | D122: 5890.238255 | E122: TRUE
A123: 14.113 | C123: 673237.0796 | D123: 673237.0796 | E123: TRUE
A124: 17.98083858 | C124: 32206904.06 | D124: 32206904.06 | E124: TRUE
A125: 24.51002168 | C125: 2.20565291e+10 | D125: 2.20565291e+10 | E125: TRUE
A126: 30 | C126: 5.343237291e+12 | D126: 5.343237291e+12 | E126: TRUE
A127: 45.967 | C127: 4.593930853e+19 | D127: 4.593930853e+19 | E127: TRUE
A128: 93.9368774 | C128: 3.127789421e+40 | D128: 3.127789421e+40 | E128: TRUE
A129: 140 | C129: 3.163715854e+60 | D129: 3.163715854e+60 | E129: TRUE
A130: 147.296803 | C130: 4.668299912e+63 | D130: 4.668299912e+63 | E130: TRUE
A131: 155.052119 | C131: 1.089556343e+67 | D131: 1.089556343e+67 | E131: TRUE
A132: 179.9595374 | C132: 7.151613681e+77 | D132: 7.151613681e+77 | E132: TRUE
A133: 186.129 | C133: 3.41796512e+80 | D133: 3.41796512e+80 | E133: TRUE
A134: 234.9 | C134: 5.184940815e+101 | D134: 5.184940815e+101 | E134: TRUE
A135: 237.0204571 | C135: 4.321620441e+102 | D135: 4.321620441e+102 | E135: TRUE
A136: 283.3257597 | C136: 5.569087487e+122 | D136: 5.569087487e+122 | E136: TRUE
A137: 633.1781183 | C137: 4.838746401e+274 | D137: 4.838746401e+274 | E137: TRUE
A138: 2327.306482 | E138: Error
A139: 2396443323676 | E139: Error

Sheet DEGREES
A1: =SUM(A3:A5) -> 0 | B1: =SUM(B3:B5) -> 0 | C1: =SUM(C3:C5) -> 0 | D1: Total
A2: Failed | B2: Error | C2: NotSupport | D2: Verification Area
A3: =COUNTIF(INDIRECT(D3),"=false") -> 0 | B3: =COUNTIF(INDIRECT(D3),"=Error") -> 0 | C3: =COUNTIF(INDIRECT(D3),"=NSup") -> 0 | D3: E12:E490
A11: Data | C11: Formula | D11: Expected | E11: Check | F11: Mask | G11: Comments | H11: Description
C12: =DEGREES(0) -> 0 | D12: 0 | E12: =IF(F12=0,IF(ISERR(C12),"Error", IF(C12=D12,TRUE,FALSE)),"NSup") -> TRUE
C13: =DEGREES(PI()) -> 180 | D13: 180 | E13: TRUE | H13: PI
A14: 0.01745329252 | C14: =DEGREES(A14) -> 1 | D14: 1 | E14: TRUE | H14: From 0 to 360
A15: 0.03490658504 | C15: 2 | D15: 2 | E15: TRUE
A16: 0.0523598775598299 | C16: 3 | D16: 3 | E16: TRUE
A17: 0.0698131700797732 | C17: 4 | D17: 4 | E17: TRUE
A18: 0.0872664626 | C18: 5 | D18: 5 | E18: TRUE
A19: 0.1047197551 | C19: 6 | D19: 6 | E19: TRUE
A20: 0.1221730476 | C20: 7 | D20: 7 | E20: TRUE
A21: 0.1396263402 | C21: 8 | D21: 8 | E21: TRUE
A22: 0.1570796327 | C22: 9 | D22: 9 | E22: TRUE
A23: 0.1745329252 | C23: 10 | D23: 10 | E23: TRUE
A24: 0.1919862177 | C24: 11 | D24: 11 | E24: TRUE
A25: 0.2094395102 | C25: 12 | D25: 12 | E25: TRUE
A26: 0.2268928028 | C26: 13 | D26: 13 | E26: TRUE
A27: 0.2443460953 | C27: 14 | D27: 14 | E27: TRUE
A28: 0.2617993878 | C28: 15 | D28: 15 | E28: TRUE
A29: 0.2792526803 | C29: 16 | D29: 16 | E29: TRUE
A30: 0.2967059728 | C30: 17 | D30: 17 | E30: TRUE
A31: 0.3141592654 | C31: 18 | D31: 18 | E31: TRUE
A32: 0.3316125579 | C32: 19 | D32: 19 | E32: TRUE
A33: 0.3490658504 | C33: 20 | D33: 20 | E33: TRUE
A34: 0.3665191429 | C34: 21 | D34: 21 | E34: TRUE
A35: 0.3839724354 | C35: 22 | D35: 22 | E35: TRUE
A36: 0.401425728 | C36: 23 | D36: 23 | E36: TRUE
A37: 0.4188790205 | C37: 24 | D37: 24 | E37: TRUE
A38: 0.436332313 | C38: 25 | D38: 25 | E38: TRUE
A39: 0.4537856055 | C39: 26 | D39: 26 | E39: TRUE
A40: 0.471238898 | C40: 27 | D40: 27 | E40: TRUE
A41: 0.4886921906 | C41: 28 | D41: 28 | E41: TRUE
A42: 0.5061454831 | C42: 29 | D42: 29 | E42: TRUE
A43: 0.5235987756 | C43: 30 | D43: 30 | E43: TRUE
A44: 0.5410520681 | C44: 31 | D44: 31 | E44: TRUE
A45: 0.5585053606 | C45: 32 | D45: 32 | E45: TRUE
A46: 0.5759586532 | C46: 33 | D46: 33 | E46: TRUE
A47: 0.5934119457 | C47: 34 | D47: 34 | E47: TRUE
A48: 0.6108652382 | C48: 35 | D48: 35 | E48: TRUE
A49: 0.6283185307 | C49: 36 | D49: 36 | E49: TRUE
A50: 0.6457718232 | C50: 37 | D50: 37 | E50: TRUE
A51: 0.6632251158 | C51: 38 | D51: 38 | E51: TRUE
A52: 0.6806784083 | C52: 39 | D52: 39 | E52: TRUE
A53: 0.6981317008 | C53: 40 | D53: 40 | E53: TRUE
A54: 0.7155849933 | C54: 41 | D54: 41 | E54: TRUE
A55: 0.7330382858 | C55: 42 | D55: 42 | E55: TRUE
A56: 0.7504915784 | C56: 43 | D56: 43 | E56: TRUE
A57: 0.7679448709 | C57: 44 | D57: 44 | E57: TRUE
A58: 0.7853981634 | C58: 45 | D58: 45 | E58: TRUE
A59: 0.8028514559 | C59: 46 | D59: 46 | E59: TRUE
A60: 0.8203047484 | C60: 47 | D60: 47 | E60: TRUE
A61: 0.837758041 | C61: 48 | D61: 48 | E61: TRUE
A62: 0.8552113335 | C62: 49 | D62: 49 | E62: TRUE
A63: 0.872664626 | C63: 50 | D63: 50 | E63: TRUE
A64: 0.8901179185 | C64: 51 | D64: 51 | E64: TRUE
A65: 0.907571211 | C65: 52 | D65: 52 | E65: TRUE
A66: 0.9250245036 | C66: 53 | D66: 53 | E66: TRUE
A67: 0.9424777961 | C67: 54 | D67: 54 | E67: TRUE
A68: 0.9599310886 | C68: 55 | D68: 55 | E68: TRUE
A69: 0.9773843811 | C69: 56 | D69: 56 | E69: TRUE
A70: 0.9948376736 | C70: 57 | D70: 57 | E70: TRUE
A71: 1.012290966 | C71: 58 | D71: 58 | E71: TRUE
A72: 1.029744259 | C72: 59 | D72: 59 | E72: TRUE
A73: 1.047197551 | C73: 60 | D73: 60 | E73: TRUE
A74: 1.064650844 | C74: 61 | D74: 61 | E74: TRUE
A75: 1.082104136 | C75: 62 | D75: 62 | E75: TRUE
A76: 1.099557429 | C76: 63 | D76: 63 | E76: =IF(F76=0,IF(ISERR(C76),"Error", IF(C76=D76,TRUE,FALSE)),"NSup") -> TRUE
A77: 1.117010721 | C77: 64 | D77: 64 | E77: TRUE
A78: 1.134464014 | C78: =DEGREES(A78) -> 65 | D78: 65 | E78: TRUE
A79: 1.151917306 | C79: 66 | D79: 66 | E79: TRUE
A80: 1.169370599 | C80: 67 | D80: 67 | E80: TRUE
A81: 1.186823891 | C81: 68 | D81: 68 | E81: TRUE
A82: 1.204277184 | C82: 69 | D82: 69 | E82: TRUE
A83: 1.221730476 | C83: 70 | D83: 70 | E83: TRUE
A84: 1.239183769 | C84: 71 | D84: 71 | E84: TRUE
A85: 1.256637061 | C85: 72 | D85: 72 | E85: TRUE
A86: 1.274090354 | C86: 73 | D86: 73 | E86: TRUE
A87: 1.291543646 | C87: 74 | D87: 74 | E87: TRUE
A88: 1.308996939 | C88: 75 | D88: 75 | E88: TRUE
A89: 1.326450232 | C89: 76 | D89: 76 | E89: TRUE
A90: 1.343903524 | C90: 77 | D90: 77 | E90: TRUE
A91: 1.361356817 | C91: 78 | D91: 78 | E91: TRUE
A92: 1.378810109 | C92: 79 | D92: 79 | E92: TRUE
A93: 1.396263402 | C93: 80 | D93: 80 | E93: TRUE
A94: 1.413716694 | C94: 81 | D94: 81 | E94: TRUE
A95: 1.431169987 | C95: 82 | D95: 82 | E95: TRUE
A96: 1.448623279 | C96: 83 | D96: 83 | E96: TRUE
A97: 1.466076572 | C97: 84 | D97: 84 | E97: TRUE
A98: 1.483529864 | C98: 85 | D98: 85 | E98: TRUE
A99: 1.500983157 | C99: 86 | D99: 86 | E99: TRUE
A100: 1.518436449 | C100: 87 | D100: 87 | E100: TRUE
A101: 1.535889742 | C101: 88 | D101: 88 | E101: TRUE
A102: 1.553343034 | C102: 89 | D102: 89 | E102: TRUE
A103: 1.570796327 | C103: 90 | D103: 90 | E103: TRUE
A104: 1.588249619 | C104: 91 | D104: 91 | E104: TRUE
A105: 1.605702912 | C105: 92 | D105: 92 | E105: TRUE
A106: 1.623156204 | C106: 93 | D106: 93 | E106: TRUE
A107: 1.640609497 | C107: 94 | D107: 94 | E107: TRUE
A108: 1.658062789 | C108: 95 | D108: 95 | E108: TRUE
A109: 1.675516082 | C109: 96 | D109: 96 | E109: TRUE
A110: 1.692969374 | C110: 97 | D110: 97 | E110: TRUE
A111: 1.710422667 | C111: 98 | D111: 98 | E111: TRUE
A112: 1.727875959 | C112: 99 | D112: 99 | E112: TRUE
A113: 1.745329252 | C113: 100 | D113: 100 | E113: TRUE
A114: 1.762782545 | C114: 101 | D114: 101 | E114: TRUE
A115: 1.780235837 | C115: 102 | D115: 102 | E115: TRUE
A116: 1.79768913 | C116: 103 | D116: 103 | E116: TRUE
A117: 1.815142422 | C117: 104 | D117: 104 | E117: TRUE
A118: 1.832595715 | C118: 105 | D118: 105 | E118: TRUE
A119: 1.850049007 | C119: 106 | D119: 106 | E119: TRUE
A120: 1.8675023 | C120: 107 | D120: 107 | E120: TRUE
A121: 1.884955592 | C121: 108 | D121: 108 | E121: TRUE
A122: 1.902408885 | C122: 109 | D122: 109 | E122: TRUE
A123: 1.919862177 | C123: 110 | D123: 110 | E123: TRUE
A124: 1.93731547 | C124: 111 | D124: 111 | E124: TRUE
A125: 1.954768762 | C125: 112 | D125: 112 | E125: TRUE
A126: 1.972222055 | C126: 113 | D126: 113 | E126: TRUE
A127: 1.989675347 | C127: 114 | D127: 114 | E127: TRUE
A128: 2.00712864 | C128: 115 | D128: 115 | E128: TRUE
A129: 2.024581932 | C129: 116 | D129: 116 | E129: TRUE
A130: 2.042035225 | C130: 117 | D130: 117 | E130: TRUE
A131: 2.059488517 | C131: 118 | D131: 118 | E131: TRUE
A132: 2.07694181 | C132: 119 | D132: 119 | E132: TRUE
A133: 2.094395102 | C133: 120 | D133: 120 | E133: TRUE
A134: 2.111848395 | C134: 121 | D134: 121 | E134: TRUE
A135: 2.129301687 | C135: 122 | D135: 122 | E135: TRUE
A136: 2.14675498 | C136: 123 | D136: 123 | E136: TRUE
A137: 2.164208272 | C137: 124 | D137: 124 | E137: TRUE
A138: 2.181661565 | C138: 125 | D138: 125 | E138: TRUE
A139: 2.199114858 | C139: 126 | D139: 126 | E139: TRUE
A140: 2.21656815 | C140: 127 | D140: 127 | E140: =IF(F140=0,IF(ISERR(C140),"Error", IF(C140=D140,TRUE,FALSE)),"NSup") -> TRUE
A141: 2.234021443 | C141: 128 | D141: 128 | E141: TRUE
A142: 2.251474735 | C142: =DEGREES(A142) -> 129 | D142: 129 | E142: TRUE
A143: 2.268928028 | C143: 130 | D143: 130 | E143: TRUE
A144: 2.28638132 | C144: 131 | D144: 131 | E144: TRUE
A145: 2.303834613 | C145: 132 | D145: 132 | E145: TRUE
A146: 2.321287905 | C146: 133 | D146: 133 | E146: TRUE
A147: 2.338741198 | C147: 134 | D147: 134 | E147: TRUE
A148: 2.35619449 | C148: 135 | D148: 135 | E148: TRUE
A149: 2.373647783 | C149: 136 | D149: 136 | E149: TRUE
A150: 2.391101075 | C150: 137 | D150: 137 | E150: TRUE
A151: 2.408554368 | C151: 138 | D151: 138 | E151: TRUE
A152: 2.42600766 | C152: 139 | D152: 139 | E152: TRUE
A153: 2.443460953 | C153: 140 | D153: 140 | E153: TRUE
A154: 2.460914245 | C154: 141 | D154: 141 | E154: TRUE
A155: 2.478367538 | C155: 142 | D155: 142 | E155: TRUE
A156: 2.49582083 | C156: 143 | D156: 143 | E156: TRUE
A157: 2.513274123 | C157: 144 | D157: 144 | E157: TRUE
A158: 2.530727415 | C158: 145 | D158: 145 | E158: TRUE
A159: 2.548180708 | C159: 146 | D159: 146 | E159: TRUE
A160: 2.565634 | C160: 147 | D160: 147 | E160: TRUE
A161: 2.583087293 | C161: 148 | D161: 148 | E161: TRUE
A162: 2.600540585 | C162: 149 | D162: 149 | E162: TRUE
A163: 2.617993878 | C163: 150 | D163: 150 | E163: TRUE
A164: 2.635447171 | C164: 151 | D164: 151 | E164: TRUE
A165: 2.652900463 | C165: 152 | D165: 152 | E165: TRUE
A166: 2.670353756 | C166: 153 | D166: 153 | E166: TRUE
A167: 2.687807048 | C167: 154 | D167: 154 | E167: TRUE
A168: 2.705260341 | C168: 155 | D168: 155 | E168: TRUE
A169: 2.722713633 | C169: 156 | D169: 156 | E169: TRUE
A170: 2.740166926 | C170: 157 | D170: 157 | E170: TRUE
A171: 2.757620218 | C171: 158 | D171: 158 | E171: TRUE
A172: 2.775073511 | C172: 159 | D172: 159 | E172: TRUE
A173: 2.792526803 | C173: 160 | D173: 160 | E173: TRUE
A174: 2.809980096 | C174: 161 | D174: 161 | E174: TRUE
A175: 2.827433388 | C175: 162 | D175: 162 | E175: TRUE
A176: 2.844886681 | C176: 163 | D176: 163 | E176: TRUE
A177: 2.862339973 | C177: 164 | D177: 164 | E177: TRUE
A178: 2.879793266 | C178: 165 | D178: 165 | E178: TRUE
A179: 2.897246558 | C179: 166 | D179: 166 | E179: TRUE
A180: 2.914699851 | C180: 167 | D180: 167 | E180: TRUE
A181: 2.932153143 | C181: 168 | D181: 168 | E181: TRUE
A182: 2.949606436 | C182: 169 | D182: 169 | E182: TRUE
A183: 2.967059728 | C183: 170 | D183: 170 | E183: TRUE
A184: 2.984513021 | C184: 171 | D184: 171 | E184: TRUE
A185: 3.001966313 | C185: 172 | D185: 172 | E185: TRUE
A186: 3.019419606 | C186: 173 | D186: 173 | E186: TRUE
A187: 3.036872898 | C187: 174 | D187: 174 | E187: TRUE
A188: 3.054326191 | C188: 175 | D188: 175 | E188: TRUE
A189: 3.071779484 | C189: 176 | D189: 176 | E189: TRUE
A190: 3.089232776 | C190: 177 | D190: 177 | E190: TRUE
A191: 3.106686069 | C191: 178 | D191: 178 | E191: TRUE
A192: 3.124139361 | C192: 179 | D192: 179 | E192: TRUE
A193: 3.141592654 | C193: 180 | D193: 180 | E193: TRUE
A194: 3.159045946 | C194: 181 | D194: 181 | E194: TRUE
A195: 3.176499239 | C195: 182 | D195: 182 | E195: TRUE
A196: 3.193952531 | C196: 183 | D196: 183 | E196: TRUE
A197: 3.211405824 | C197: 184 | D197: 184 | E197: TRUE
A198: 3.228859116 | C198: 185 | D198: 185 | E198: TRUE
A199: 3.246312409 | C199: 186 | D199: 186 | E199: TRUE
A200: 3.263765701 | C200: 187 | D200: 187 | E200: TRUE
A201: 3.281218994 | C201: 188 | D201: 188 | E201: TRUE
A202: 3.298672286 | C202: 189 | D202: 189 | E202: TRUE
A203: 3.316125579 | C203: 190 | D203: 190 | E203: TRUE
A204: 3.333578871 | C204: 191 | D204: 191 | E204: =IF(F204=0,IF(ISERR(C204),"Error", IF(C204=D204,TRUE,FALSE)),"NSup") -> TRUE
A205: 3.351032164 | C205: 192 | D205: 192 | E205: TRUE
A206: 3.368485456 | C206: =DEGREES(A206) -> 193 | D206: 193 | E206: TRUE
A207: 3.385938749 | C207: 194 | D207: 194 | E207: TRUE
... 282 more rows

Sheet EVEN
A1: =SUM(A3:A5) -> 0 | B1: =SUM(B3:B5) -> 0 | C1: =SUM(C3:C5) -> 0 | D1: Total
A2: Failed | B2: Error | C2: NotSupport | D2: Verification Area
A3: =COUNTIF(INDIRECT(D3),"=false") -> 0 | B3: =COUNTIF(INDIRECT(D3),"=Error") -> 0 | C3: =COUNTIF(INDIRECT(D3),"=NSup") -> 0 | D3: E12:E110
A11: Data | C11: Formula | D11: Expected | E11: Check | F11: Mask | G11: Comments | H11: Description
C12: =EVEN("0") -> 0 | D12: 0 | E12: =IF(F12=0,IF(ISERR(C12),"Error", IF(C12=D12,TRUE,FALSE)),"NSup") -> TRUE
C13: =EVEN(ROW()) -> 14 | D13: 14 | E13: TRUE
A14: 1 | C14: =EVEN(A14) -> 2 | D14: 2 | E14: TRUE
A15: 2 | C15: 2 | D15: 2 | E15: TRUE
A16: 3 | C16: 4 | D16: 4 | E16: TRUE
A17: 20.00001 | C17: 22 | D17: 22 | E17: TRUE
A18: 20 | C18: 20 | D18: 20 | E18: TRUE
A19: 20.5 | C19: 22 | D19: 22 | E19: TRUE
A20: 19.4 | C20: 20 | D20: 20 | E20: TRUE
A21: 0.1 | C21: 2 | D21: 2 | E21: TRUE
A22: 1e-13 | C22: 2 | D22: 2 | E22: TRUE
A23: -1 | C23: -2 | D23: -2 | E23: TRUE
A24: -2 | C24: -2 | D24: -2 | E24: TRUE
A25: -3 | C25: -4 | D25: -4 | E25: TRUE
A26: -197.00001 | C26: -198 | D26: -198 | E26: TRUE
A27: -20 | C27: -20 | D27: -20 | E27: TRUE
A28: -20.5 | C28: -22 | D28: -22 | E28: TRUE
A29: -19.4 | C29: -20 | D29: -20 | E29: TRUE
A30: -0.1 | C30: -2 | D30: -2 | E30: TRUE
A31: -1e-13 | C31: -2 | D31: -2 | E31: TRUE
A32: -39834280.09 | C32: -39834282 | D32: -39834282 | E32: TRUE | H32: Random data
A33: -296553.1966 | C33: -296554 | D33: -296554 | E33: TRUE
A34: -10363.05436 | C34: -10364 | D34: -10364 | E34: TRUE
A35: -9557.338 | C35: -9558 | D35: -9558 | E35: TRUE
A36: -9547.132728 | C36: -9548 | D36: -9548 | E36: TRUE
A37: -3253.749758 | C37: -3254 | D37: -3254 | E37: TRUE
A38: -2954.919345 | C38: -2956 | D38: -2956 | E38: TRUE
A39: -2565.91744 | C39: -2566 | D39: -2566 | E39: TRUE
A40: -1321.5667 | C40: -1322 | D40: -1322 | E40: TRUE
A41: -865.8867007 | C41: -866 | D41: -866 | E41: TRUE
A42: -623.1380963 | C42: -624 | D42: -624 | E42: TRUE
A43: -133.4 | C43: -134 | D43: -134 | E43: TRUE
A44: -123.7491 | C44: -124 | D44: -124 | E44: =IF(F44=0,IF(ISERR(C44),"Error", IF(C44=D44,TRUE,FALSE)),"NSup") -> TRUE
A45: -109.000077 | C45: -110 | D45: -110 | E45: TRUE
A46: -40.0287745 | C46: =EVEN(A46) -> -42 | D46: -42 | E46: TRUE
A47: -34.3 | C47: -36 | D47: -36 | E47: TRUE
A48: -29 | C48: -30 | D48: -30 | E48: TRUE
A49: -21.78 | C49: -22 | D49: -22 | E49: TRUE
A50: -18.231 | C50: -20 | D50: -20 | E50: TRUE
A51: -17.27317198 | C51: -18 | D51: -18 | E51: TRUE
A52: -11.27688 | C52: -12 | D52: -12 | E52: TRUE
A53: -8.28 | C53: -10 | D53: -10 | E53: TRUE
A54: -5.459035424 | C54: -6 | D54: -6 | E54: TRUE
A55: -4.99898821 | C55: -6 | D55: -6 | E55: TRUE
A56: -4.39017 | C56: -6 | D56: -6 | E56: TRUE
A57: -4.088919209 | C57: -6 | D57: -6 | E57: TRUE
A58: -3.05519639 | C58: -4 | D58: -4 | E58: TRUE
A59: -1.9 | C59: -2 | D59: -2 | E59: TRUE
A60: -0.05 | C60: -2 | D60: -2 | E60: TRUE
A61: 0 | C61: 0 | D61: 0 | E61: TRUE
A62: 0.084105 | C62: 2 | D62: 2 | E62: TRUE
A63: 0.29 | C63: 2 | D63: 2 | E63: TRUE
A64: 0.3753 | C64: 2 | D64: 2 | E64: TRUE
A65: 0.612 | C65: 2 | D65: 2 | E65: TRUE
A66: 0.985 | C66: 2 | D66: 2 | E66: TRUE
A67: 1 | C67: 2 | D67: 2 | E67: TRUE
A68: 1.07966 | C68: 2 | D68: 2 | E68: TRUE
A69: 1.094456372 | C69: 2 | D69: 2 | E69: TRUE
A70: 1.12029 | C70: 2 | D70: 2 | E70: TRUE
A71: 2.03 | C71: 4 | D71: 4 | E71: TRUE
A72: 2.22442 | C72: 4 | D72: 4 | E72: TRUE
A73: 3.78708 | C73: 4 | D73: 4 | E73: TRUE
A74: 3.9 | C74: 4 | D74: 4 | E74: TRUE
A75: 4.22255567 | C75: 6 | D75: 6 | E75: TRUE
A76: 4.527 | C76: 6 | D76: 6 | E76: =IF(F76=0,IF(ISERR(C76),"Error", IF(C76=D76,TRUE,FALSE)),"NSup") -> TRUE
A77: 4.7645822 | C77: 6 | D77: 6 | E77: TRUE
A78: 4.932 | C78: =EVEN(A78) -> 6 | D78: 6 | E78: TRUE
A79: 4.986 | C79: 6 | D79: 6 | E79: TRUE
A80: 5.7 | C80: 6 | D80: 6 | E80: TRUE
A81: 7 | C81: 8 | D81: 8 | E81: TRUE
A82: 7.199 | C82: 8 | D82: 8 | E82: TRUE
A83: 8 | C83: 8 | D83: 8 | E83: TRUE
A84: 10 | C84: 10 | D84: 10 | E84: TRUE
A85: 10.318884 | C85: 12 | D85: 12 | E85: TRUE
A86: 10.77685 | C86: 12 | D86: 12 | E86: TRUE
A87: 11.6019419 | C87: 12 | D87: 12 | E87: TRUE
A88: 12.8082791 | C88: 14 | D88: 14 | E88: TRUE
A89: 13 | C89: 14 | D89: 14 | E89: TRUE
A90: 13.7 | C90: 14 | D90: 14 | E90: TRUE
A91: 23.56292 | C91: 24 | D91: 24 | E91: TRUE
A92: 29.30219799 | C92: 30 | D92: 30 | E92: TRUE
A93: 32.8633419 | C93: 34 | D93: 34 | E93: TRUE
A94: 74.18352 | C94: 76 | D94: 76 | E94: TRUE
A95: 96.6 | C95: 98 | D95: 98 | E95: TRUE
A96: 157.08589 | C96: 158 | D96: 158 | E96: TRUE
A97: 215.691 | C97: 216 | D97: 216 | E97: TRUE
A98: 512.9345 | C98: 514 | D98: 514 | E98: TRUE
A99: 775.661055 | C99: 776 | D99: 776 | E99: TRUE
A100: 1296 | C100: 1296 | D100: 1296 | E100: TRUE
A101: 3960.56354 | C101: 3962 | D101: 3962 | E101: TRUE
A102: 12756.82 | C102: 12758 | D102: 12758 | E102: TRUE
A103: 16942.09 | C103: 16944 | D103: 16944 | E103: TRUE
A104: 31314.6949 | C104: 31316 | D104: 31316 | E104: TRUE
A105: 1049340.243 | C105: 1049342 | D105: 1049342 | E105: TRUE
A106: 4746842.7 | C106: 4746844 | D106: 4746844 | E106: TRUE
A107: 18622968.39 | C107: 18622970 | D107: 18622970 | E107: TRUE
A108: 34899582.35 | C108: 34899584 | D108: 34899584 | E108: =IF(F108=0,IF(ISERR(C108),"Error", IF(C108=D108,TRUE,FALSE)),"NSup") -> TRUE
A109: 154021208 | C109: 154021210 | D109: 154021210 | E109: TRUE
A110: 297495407.9 | C110: 297495408 | D110: 297495408 | E110: TRUE

Sheet EXP
A1: =SUM(A3:A5) -> 0 | B1: =SUM(B3:B5) -> 2 | C1: =SUM(C3:C5) -> 0 | D1: Total
A2: Failed | B2: Error | C2: NotSupport | D2: Verification Area
A3: =COUNTIF(INDIRECT(D3),"=false") -> 0 | B3: =COUNTIF(INDIRECT(D3),"=Error") -> 2 | C3: =COUNTIF(INDIRECT(D3),"=NSup") -> 0 | D3: E12:E120
A11: Data | C11: Formula | D11: Expected | E11: Check | F11: Mask | G11: Comments | H11: Description
C12: =EXP(0) -> 1 | D12: 1 | E12: =IF(F12=0,IF(ISERR(C12),"Error", IF(C12=D12,TRUE,FALSE)),"NSup") -> TRUE
C13: =EXP(1) -> 2.718281828 | D13: 2.718281828 | E13: TRUE
A14: 1 | C14: =EXP(A14) -> 2.718281828 | D14: 2.718281828 | E14: TRUE
C15: =EXP(C14) -> 15.15426224 | D15: 15.15426224 | E15: TRUE
C16: =EXP(A16) ->  | E16: Error
A17: 1.034845236e+17 | E17: Error
A18: 709.782712 | C18: 1.797691529e+308 | D18: 1.797691529e+308 | E18: TRUE
A19: 593.6 | C19: 6.269089323e+257 | D19: 6.269089323e+257 | E19: TRUE
A20: 337.148874 | C20: 2.64177337e+146 | D20: 2.64177337e+146 | E20: TRUE
A21: 225.505668 | C21: 8.627148036e+97 | D21: 8.627148036e+97 | E21: TRUE
A22: 195.1798611 | C22: 5.828229629e+84 | D22: 5.828229629e+84 | E22: TRUE
A23: 121.69075 | C23: 7.073286082e+52 | D23: 7.073286082e+52 | E23: TRUE
A24: 59.90119018 | C24: 1.0345616e+26 | D24: 1.0345616e+26 | E24: TRUE
A25: 47.47479354 | C25: 4.149930886e+20 | D25: 4.149930886e+20 | E25: TRUE
A26: 31.24684511 | C26: 3.718197103e+13 | D26: 3.718197103e+13 | E26: TRUE
A27: 29.506 | C27: 6.520681429e+12 | D27: 6.520681429e+12 | E27: TRUE
A28: 26.42512 | C28: 2.994220639e+11 | D28: 2.994220639e+11 | E28: TRUE
A29: 17 | C29: 24154952.75 | D29: 24154952.75 | E29: TRUE
A30: 12.565 | C30: 286358.5569 | D30: 286358.5569 | E30: TRUE
A31: 8.962625 | C31: 7805.820872 | D31: 7805.820872 | E31: TRUE
A32: 7 | C32: 1096.633158 | D32: 1096.633158 | E32: TRUE
A33: 6.0105487 | C33: 407.7069677 | D33: 407.7069677 | E33: TRUE
A34: 5.760407 | C34: 317.477516 | D34: 317.477516 | E34: TRUE
A35: 3.14 | C35: 23.10386686 | D35: 23.10386686 | E35: TRUE
A36: 3.1061 | C36: 22.33377262 | D36: 22.33377262 | E36: TRUE
A37: 2.834419493 | C37: 17.0205169 | D37: 17.0205169 | E37: TRUE
A38: 1.490313 | C38: 4.438484547 | D38: 4.438484547 | E38: TRUE
A39: 1.20307 | C39: 3.330325344 | D39: 3.330325344 | E39: TRUE
A40: 1.163 | C40: 3.199517445 | D40: 3.199517445 | E40: TRUE
A41: 1.0854494 | C41: 2.96077009 | D41: 2.96077009 | E41: TRUE
A42: 1.07 | C42: 2.9153795 | D42: 2.9153795 | E42: TRUE
A43: 1.058 | C43: 2.880604016 | D43: 2.880604016 | E43: TRUE
A44: 0.97358 | C44: 2.647405225 | D44: 2.647405225 | E44: =IF(F44=0,IF(ISERR(C44),"Error", IF(C44=D44,TRUE,FALSE)),"NSup") -> TRUE
A45: 0.9625152 | C45: 2.61827368 | D45: 2.61827368 | E45: TRUE
A46: 0.904 | C46: 2.469461227 | D46: 2.469461227 | E46: TRUE
A47: 0.9 | C47: 2.459603111 | D47: 2.459603111 | E47: TRUE
A48: 0.67596135 | C48: =EXP(A48) -> 1.965922007 | D48: 1.965922007 | E48: TRUE
A49: 0.67 | C49: 1.954237321 | D49: 1.954237321 | E49: TRUE
A50: 0.60397 | C50: 1.82936699 | D50: 1.82936699 | E50: TRUE
A51: 0.6 | C51: 1.8221188 | D51: 1.8221188 | E51: TRUE
A52: 0.471329513 | C52: 1.602122821 | D52: 1.602122821 | E52: TRUE
A53: 0.46 | C53: 1.584073985 | D53: 1.584073985 | E53: TRUE
A54: 0.3840392 | C54: 1.468202994 | D54: 1.468202994 | E54: TRUE
A55: 0.2995838 | C55: 1.349297113 | D55: 1.349297113 | E55: TRUE
A56: 0.2565 | C56: 1.292398766 | D56: 1.292398766 | E56: TRUE
A57: 0.25442224 | C57: 1.289716259 | D57: 1.289716259 | E57: TRUE
A58: 0.1529407 | C58: 1.165255877 | D58: 1.165255877 | E58: TRUE
A59: 0.1 | C59: 1.105170918 | D59: 1.105170918 | E59: TRUE
A60: 0.0159 | C60: 1.016027078 | D60: 1.016027078 | E60: TRUE
A61: 0 | C61: 1 | D61: 1 | E61: TRUE
A62: -0.00234 | C62: 0.9976627357 | D62: 0.9976627357 | E62: TRUE
A63: -0.124033042 | C63: 0.8833506527 | D63: 0.8833506527 | E63: TRUE
A64: -0.1545057 | C64: 0.8568386081 | D64: 0.8568386081 | E64: TRUE
A65: -0.173945331 | C65: 0.8403428371 | D65: 0.8403428371 | E65: TRUE
A66: -0.24 | C66: 0.7866278611 | D66: 0.7866278611 | E66: TRUE
A67: -0.36 | C67: 0.6976763261 | D67: 0.6976763261 | E67: TRUE
A68: -0.576 | C68: 0.5621424452 | D68: 0.5621424452 | E68: TRUE
A69: -0.62303 | C69: 0.5363169329 | D69: 0.5363169329 | E69: TRUE
A70: -0.68729 | C70: 0.5029371837 | D70: 0.5029371837 | E70: TRUE
A71: -0.753361 | C71: 0.4707815938 | D71: 0.4707815938 | E71: TRUE
A72: -0.7891 | C72: 0.4542534395 | D72: 0.4542534395 | E72: TRUE
A73: -0.8 | C73: 0.4493289641 | D73: 0.4493289641 | E73: TRUE
A74: -0.814450109 | C74: 0.4428827977 | D74: 0.4428827977 | E74: TRUE
A75: -0.99210281 | C75: 0.3707961568 | D75: 0.3707961568 | E75: TRUE
A76: -1 | C76: 0.3678794412 | D76: 0.3678794412 | E76: =IF(F76=0,IF(ISERR(C76),"Error", IF(C76=D76,TRUE,FALSE)),"NSup") -> TRUE
A77: -1.0531577 | C77: 0.3488344935 | D77: 0.3488344935 | E77: TRUE
A78: -1.2094 | C78: 0.2983762515 | D78: 0.2983762515 | E78: TRUE
A79: -1.365 | C79: 0.255380676 | D79: 0.255380676 | E79: TRUE
A80: -1.552 | C80: =EXP(A80) -> 0.2118239021 | D80: 0.2118239021 | E80: TRUE
A81: -1.81076616 | C81: 0.1635287996 | D81: 0.1635287996 | E81: TRUE
A82: -2.0228 | C82: 0.1322845493 | D82: 0.1322845493 | E82: TRUE
A83: -2.09896 | C83: 0.1225838492 | D83: 0.1225838492 | E83: TRUE
A84: -2.56627 | C84: 0.07682155609 | D84: 0.07682155609 | E84: TRUE
A85: -2.876187361 | C85: 0.05634919293 | D85: 0.05634919293 | E85: TRUE
A86: -3.634 | C86: 0.02641033152 | D86: 0.02641033152 | E86: TRUE
A87: -4.065662 | C87: 0.01715163113 | D87: 0.01715163113 | E87: TRUE
A88: -4.5 | C88: 0.01110899654 | D88: 0.01110899654 | E88: TRUE
A89: -4.553826445 | C89: 0.01052684682 | D89: 0.01052684682 | E89: TRUE
A90: -5.5 | C90: 0.004086771438 | D90: 0.004086771438 | E90: TRUE
A91: -10.71452 | C91: 2.221995053e-05 | D91: 2.221995053e-05 | E91: TRUE
A92: -10.90789 | C92: 1.831317155e-05 | D92: 1.831317155e-05 | E92: TRUE
A93: -12.07285771 | C93: 5.712477703e-06 | D93: 5.712477703e-06 | E93: TRUE
A94: -13 | C94: 2.260329407e-06 | D94: 2.260329407e-06 | E94: TRUE
A95: -13.38 | C95: 1.545752054e-06 | D95: 1.545752054e-06 | E95: TRUE
A96: -13.901 | C96: 9.180628359e-07 | D96: 9.180628359e-07 | E96: TRUE
A97: -19.6136224 | C97: 3.033276647e-09 | D97: 3.033276647e-09 | E97: TRUE
A98: -39.91 | C98: 4.648439974e-18 | D98: 4.648439974e-18 | E98: TRUE
A99: -42.16492268 | C99: 4.875360658e-19 | D99: 4.875360658e-19 | E99: TRUE
A100: -46 | C100: 1.053061736e-20 | D100: 1.053061736e-20 | E100: TRUE
A101: -105.00369 | C101: 2.497335286e-46 | D101: 2.497335286e-46 | E101: TRUE
A102: -118.803 | C102: 2.538123011e-52 | D102: 2.538123011e-52 | E102: TRUE
A103: -194.5 | C103: 3.386283152e-85 | D103: 3.386283152e-85 | E103: TRUE
A104: -202.69 | C104: 9.394019623e-89 | D104: 9.394019623e-89 | E104: TRUE
A105: -499.51 | C105: 1.162956163e-217 | D105: 1.162956163e-217 | E105: TRUE
A106: -913.06 | C106: 0 | D106: 0 | E106: TRUE
A107: -1070.35 | C107: 0 | D107: 0 | E107: TRUE
A108: -1564.2 | C108: 0 | D108: 0 | E108: =IF(F108=0,IF(ISERR(C108),"Error", IF(C108=D108,TRUE,FALSE)),"NSup") -> TRUE
A109: -2641 | C109: 0 | D109: 0 | E109: TRUE
A110: -18726.19203 | C110: 0 | D110: 0 | E110: TRUE
A111: -35144.347 | C111: 0 | D111: 0 | E111: TRUE
A112: -2304127 | C112: =EXP(A112) -> 0 | D112: 0 | E112: TRUE
A113: -13714818.12 | C113: 0 | D113: 0 | E113: TRUE
A114: -147955717.2 | C114: 0 | D114: 0 | E114: TRUE
A115: -437389705 | C115: 0 | D115: 0 | E115: TRUE
A116: -570153314 | C116: 0 | D116: 0 | E116: TRUE
A117: -7.069995898e+11 | C117: 0 | D117: 0 | E117: TRUE
A118: -4.712910946e+13 | C118: 0 | D118: 0 | E118: TRUE

Sheet FACT
A1: =SUM(A3:A5) -> 0 | B1: =SUM(B3:B5) -> 8 | C1: =SUM(C3:C5) -> 0 | D1: Total
A2: Failed | B2: Error | C2: NotSupport | D2: Verification Area
A3: =COUNTIF(INDIRECT(D3),"=false") -> 0 | B3: =COUNTIF(INDIRECT(D3),"=Error") -> 8 | C3: =COUNTIF(INDIRECT(D3),"=NSup") -> 0 | D3: E12:E65
A11: Data | C11: Formula | D11: Expected | E11: Check | F11: Mask | G11: Comments | H11: Description
C12: =FACT(0) -> 1 | D12: 1 | E12: =IF(F12=0,IF(ISERR(C12),"Error", IF(C12=D12,TRUE,FALSE)),"NSup") -> TRUE | H12: 0
C13: =FACT(-123) ->  | E13: Error | H13: Negative number is invalid parameter
A14: 170.9999998 | C14: =FACT(A14) ->  | E14: Error
A15: 170.9999998 | C15: 7.257415615e+306 | D15: 7.257415615e+306 | E15: TRUE
A16: 2 | C16: 2 | D16: 2 | E16: TRUE
A17: 3 | C17: 6 | D17: 6 | E17: TRUE
A18: 4 | C18: 24 | D18: 24 | E18: TRUE
A19: 5 | C19: 120 | D19: 120 | E19: TRUE
A20: 6 | C20: 720 | D20: 720 | E20: TRUE
A21: 7 | C21: 5040 | D21: 5040 | E21: TRUE
A22: 8 | C22: 40320 | D22: 40320 | E22: TRUE
A23: 9 | C23: 362880 | D23: 362880 | E23: TRUE
A24: 10 | C24: 3628800 | D24: 3628800 | E24: TRUE
A25: 11 | C25: 39916800 | D25: 39916800 | E25: TRUE
A26: 12 | C26: 479001600 | D26: 479001600 | E26: TRUE
A27: 13 | C27: 6227020800 | D27: 6227020800 | E27: TRUE
A28: 13 | C28: 6227020800 | D28: 6227020800 | E28: TRUE
A29: 74.8 | C29: 3.307885442e+107 | D29: 3.307885442e+107 | E29: TRUE | H29: Random data
A30: 61.6254182 | C30: 5.075802139e+83 | D30: 5.075802139e+83 | E30: TRUE
A31: 35.86075 | C31: 1.033314797e+40 | D31: 1.033314797e+40 | E31: TRUE
A32: 28 | C32: 3.048883446e+29 | D32: 3.048883446e+29 | E32: TRUE
A33: 22.7255948 | C33: 1.124000728e+21 | D33: 1.124000728e+21 | E33: TRUE
A34: 16.1 | C34: 20922789888000 | D34: 20922789888000 | E34: TRUE
A35: 16 | C35: 20922789888000 | D35: 20922789888000 | E35: TRUE
A36: 15.98321653 | C36: 1307674368000 | D36: 1307674368000 | E36: TRUE
A37: 15.3207 | C37: 1307674368000 | D37: 1307674368000 | E37: TRUE
A38: 13.6657 | C38: 6227020800 | D38: 6227020800 | E38: TRUE
A39: 10.520394 | C39: 3628800 | D39: 3628800 | E39: TRUE
A40: 9.409 | C40: 362880 | D40: 362880 | E40: TRUE
A41: 9.2 | C41: 362880 | D41: 362880 | E41: TRUE
A42: 8.25 | C42: 40320 | D42: 40320 | E42: TRUE
A43: 6.1954713 | C43: 720 | D43: 720 | E43: TRUE
A44: 4.91097 | C44: 24 | D44: 24 | E44: =IF(F44=0,IF(ISERR(C44),"Error", IF(C44=D44,TRUE,FALSE)),"NSup") -> TRUE
A45: 4.341 | C45: 24 | D45: 24 | E45: TRUE
A46: 4 | C46: =FACT(A46) -> 24 | D46: 24 | E46: TRUE
A47: 3.914826 | C47: 6 | D47: 6 | E47: TRUE
A48: 3.51688548 | C48: 6 | D48: 6 | E48: TRUE
A49: 2.936729 | C49: 2 | D49: 2 | E49: TRUE
A50: 2.6359096 | C50: 2 | D50: 2 | E50: TRUE
A51: 2 | C51: 2 | D51: 2 | E51: TRUE
A52: 1.84827209 | C52: 1 | D52: 1 | E52: TRUE
A53: 1.5988 | C53: 1 | D53: 1 | E53: TRUE
A54: 1.1441231 | C54: 1 | D54: 1 | E54: TRUE
A55: 1.099603175 | C55: 1 | D55: 1 | E55: TRUE
A56: 0.58755 | C56: 1 | D56: 1 | E56: TRUE
A57: 0.22 | C57: 1 | D57: 1 | E57: TRUE
A58: 0.0302 | C58: 1 | D58: 1 | E58: TRUE
A59: 0 | C59: 1 | D59: 1 | E59: TRUE
A60: -0.0369 | E60: Error
A61: -1.4032149 | E61: Error
A62: -37 | E62: Error
A63: -121.5643 | E63: Error
A64: -4013.65 | E64: Error
A65: -908717222271 | E65: Error

Sheet smartart
A1: Testcase_ID | B1: SmartArt_GraphicHierary_Win
A2: Feature name: | B2: SmartArt_GraphicHierary interoperability with MS Office
A3: TestPoint
A4: Example:

Sheet Border
B2: =HYPERLINK("#"&"Border"&"!A20","Go To Border_001") -> Go To Border_001 | E2: =HYPERLINK("#"&"Homepage"&"!A1","Back To Homepage") -> Back To Homepage
B3: =HYPERLINK("#"&"Border"&"!A80","Go To Border_002") -> Go To Border_002
B4: =HYPERLINK("#"&"Border"&"!A140","Go To Border_003") -> Go To Border_003
B5: =HYPERLINK("#"&"Border"&"!A170","Go To Border_004") -> Go To Border_004
A20: Sample ID | B20: Border_001
A21: Testcase_ID
A22: Test Object | B22: Cell-> Cell Properties-> Border
A23: Check Point | B23: Line Style
A24: Other Info | B24: Line Color is black (default), Preset is Outline/Inline.
A27: Line 1
A29: Line 2
A31: Line 3
A33: Line 4
A35: Line 5
A37: Line 6 (Default Line Style)
A39: Line 7
A41: Line 8
A43: Line 9
A45: Line 10
A47: Line 11
A49: Line 12
A51: Line 13
A54: Line 2
A55: Inline
A58: Line 8
A59: Inline
A63: Line 13
A64: Outline & Inline
F73: =HYPERLINK("#"&"Border"&"!A1","Go To Top") -> Go To Top
A80: Sample ID | B80: Border_002
A81: Testcase_ID
A82: Test Object | B82: Cell-> Cell Properties-> Border
A83: Check Point | B83: Line Color
A84: Other Info | B84: Line Color is black (default), Preset is Outline/Inline.
A87: Line 1 | B87: Dark Red
A89: Line 2 | B89: Red
A91: Line 3 | B91: Orange
A93: Line 4 | B93: Yellow
A95: Line 5 | B95: Light Green
A97: Line 6 (Default Line Style) | B97: Green
A99: Line 7 | B99: Light Blue
A101: Line 8 | B101: Blue
A103: Line 9 | B103: Dark Blue
A105: Line 10 | B105: Purple
A107: Line 11 | B107: RGB(204,153,0)
A109: Line 12 | B109: Default Black
A111: Line 13 | B111: Default Black
A114: Line 2
A115: Inline
A116: RGB(246,0,100)
A118: Line 8
A119: Inline
A120: Blue
A123: Line 13
A124: Outline(Yellow) & Inline (Red)
F136: =HYPERLINK("#"&"Border"&"!A1","Go To Top") -> Go To Top
A140: Sample ID | B140: Border_003
A141: Testcase_ID
A142: Test Object | B142: Cell-> Cell Properties-> Border
A143: Check Point | B143: Preset
A144: Other Info | B144: Line Color is black (default), Line style 6, 12.
A146: Line 6 (Default Line Style) | B146: Outline
A148: Line 6 (Default Line Style) | B148: Inline
A152: Line 12
A153: Outline&Inline
F166: =HYPERLINK("#"&"Border"&"!A1","Go To Top") -> Go To Top
A170: Sample ID | B170: Border_004
A171: Testcase_ID
A172: Test Object | B172: Cell-> Cell Properties-> Border
A173: Check Point | B173: Border
A174: Other Info | B174: Line Color: black (default), red, blue, yellow, Preset: Outline/Inline.
A176: Line 1 | B176: Top Border | D176: Line 1 Top, Line 2 Bottom
A178: Line 2 | B178: Bottom Border | D178: Line 2 Top, Line 3 Diagonal up, Line 4 Bottom
A180: Line 3 | B180: Left Border | D180: Line 5 Left, Line 6 Right, Line 7 Diagonal up/down
A182: Line 4 | B182: Right Border
A184: Line 5 | B184: Diagonal up
A186: Line 6 | B186: Diagonal down
A188: Line 7 | B188: Top and Left Border
A190: Line 8 | B190: Top and Bottom Border
A192: Line 9 | B192: Top and Right Border
A194: Line 10 | B194: Left and Bottom Border
A196: Line 11 | B196: Left and Right Border
A198: Line 12 | B198: Bottom and Right Border
A200: Line 13 | B200: Top and Diagonal up
A202: Line 2
A206: Line 5
F243: =HYPERLINK("#"&"Border"&"!A1","Go To Top") -> Go To Top

Sheet chart
B1: A | C1: B | D1: C
A2: Category 1 | B2: 4.3 | C2: 2.4 | D2: 2
A3: Category 2 | B3: 2.5 | C3: 4.4 | D3: 2
A4: Category 3 | B4: 3.5 | C4: 1.8 | D4: 3
A5: Category 4 | B5: 4.5 | C5: 2.8 | D5: 5
A8: Feature name: | B8: Charts-Column
A24: Feature name: | B24: Charts-Line
A42: Feature name: | B42: Charts-Pie
A62: Feature name: | B62: Charts-Pie
A81: Feature name: | B81: Charts-Area
A99: Feature name: | B99: Charts-Scatter
A118: Feature name: | B118: Charts-Surface
A138: Feature name: | B138: Charts-Doughnut
A157: Feature name: | B157: Charts-Radnar
A177: Feature name: | B177: Charts-Bubble
A196: Feature name: | B196: Charts-Stock(undo)

Sheet OLE

Sheet formula
A1: =SUM(A3:A5) -> 0 | B1: =SUM(B3:B5) -> 0 | C1: =SUM(C3:C5) -> 0 | D1: Total | G1: Hide row 8 | H1: Sample A | I1: Sample B | J1: Sample C | K1: Sample D
A2: Failed | B2: Error | C2: NotSupport | D2: Verification Area | H2: -1 | I2: -6 | J2: -97 | K2: 1
A3: =COUNTIF(INDIRECT(D3),"=false") -> 0 | B3: =COUNTIF(INDIRECT(D3),"=Error") -> 0 | C3: =COUNTIF(INDIRECT(D3),"=NSup") -> 0 | D3: E12:E50 | H3: 15 | I3: 16 | J3: 3001 | K3: 2
H4: =SUBTOTAL(9,H2:H3) -> 14 | I4: =9/0 ->  | J4: =_xlfn.AGGREGATE(1,0,J2:J3) -> 1452 | K4: 3
H5: 139910165 | I5: 0 | J5: =SUBTOTAL(4,J2:J4) -> 3001
H6: -106 | I6: -9 | J6: -1834 | K6: 4
H7: 678.4 | I7: 92 | J7: =reference ->  | K7: 5
H8: -10 | I8: 134.32 | J8: -1774
H9: 1345 | I9: 158 | J9: 6 | K9: 6
A11: Data | C11: Formula | D11: Expected | E11: Check | F11: Mask | G11: Comments | H11: Description | J11: 1 | L11: 10 | N11: 选项 | O11: 行为
C12: =_xlfn.AGGREGATE(1,0,J11:J18,L11:L18) -> 7.25 | D12: 7.25 | E12: =IF(F12=0,IF(ISERR(C12),"Error", IF(C12=D12,TRUE,FALSE)),"NSup") -> TRUE | J12: 2 | L12: 10
C13: =_xlfn.AGGREGATE(1,0,J11:J18) -> 4.5 | D13: 4.5 | E13: =IF(F13=0,IF(ISERR(C13),"Error", IF(C13=D13,TRUE,FALSE)),"NSup") -> TRUE | J13: 3 | L13: 10
C14: =_xlfn.AGGREGATE(1,0,$H$2:$H$9) -> 19987440.91 | D14: 19987440.91 | E14: TRUE | H14: 1 | I14: AVERAGE | J14: 4 | L14: 10
C15: =_xlfn.AGGREGATE(2,0,$H$2:$H$9) -> 7 | D15: 7 | E15: TRUE | H15: 2 | I15: COUNT | J15: 5 | L15: 10
C16: =_xlfn.AGGREGATE(3,0,$H$2:$H$9) -> 7 | D16: 7 | E16: TRUE | H16: 3 | I16: COUNTA | J16: 6 | L16: 10
C17: =_xlfn.AGGREGATE(4,0,$H$2:$H$9) -> 139910165 | D17: 139910165 | E17: TRUE | H17: 4 | I17: MAX | J17: 7 | L17: 10
C18: =_xlfn.AGGREGATE(5,0,$H$2:$H$9) -> -106 | D18: -106 | E18: TRUE | H18: 5 | I18: MIN | J18: 8 | L18: 10
C19: =_xlfn.AGGREGATE(6,0,$H$2:$H$9) -> -2.029805929e+18 | D19: -2.029805929e+18 | E19: TRUE | H19: 6 | I19: PRODUCT
C20: =_xlfn.AGGREGATE(7,0,$H$2:$H$9) -> 52880950.75 | D20: 52880950.75 | E20: TRUE | H20: 7 | I20: STDEV.S
C21: =_xlfn.AGGREGATE(8,0,$H$2:$H$9) -> 48958247.1 | D21: 48958247.1 | E21: TRUE | H21: 8 | I21: STDEV.P
C22: =_xlfn.AGGREGATE(9,0,$H$2:$H$9) -> 139912086.4 | D22: 139912086.4 | E22: TRUE | H22: 9 | I22: SUM
C23: =_xlfn.AGGREGATE(10,0,$H$2:$H$9) -> 2.796394952e+15 | D23: 2.796394952e+15 | E23: TRUE | H23: 10 | I23: VAR.S
C24: =_xlfn.AGGREGATE(11,0,$H$2:$H$9) -> 2396909958927657 | D24: 2396909958927657 | E24: TRUE | H24: 11 | I24: VAR.P
C25: =_xlfn.AGGREGATE(12,0,$H$2:$H$9) -> 15 | D25: 15 | E25: TRUE | H25: 12 | I25: MEDIAN
C26: =_xlfn.AGGREGATE(13,0,$H$2:$H$9,L11:L18) -> 10 | D26: 10 | E26: TRUE | H26: 13 | I26: MODE.SNGL
C27: =_xlfn.AGGREGATE(14,0,$H$2:$H$9,2) -> 1345 | D27: 1345 | E27: TRUE | H27: 14 | I27: LARGE
A28: 4 | C28: =_xlfn.AGGREGATE(15,0,$H$2:$H$9,A28) -> 15 | D28: 15 | E28: TRUE | H28: 15 | I28: SMALL
A29: 25% | C29: =_xlfn.AGGREGATE(16,0,$H$2:$H$9,A29) -> -5.5 | D29: -5.5 | E29: TRUE | H29: 16 | I29: PERCENTILE.INC
A30: 4 | C30: =_xlfn.AGGREGATE(17,0,$H$2:$H$9,A30) -> 139910165 | D30: 139910165 | E30: TRUE | H30: 17 | I30: QUARTILE.INC
A31: 33% | C31: =_xlfn.AGGREGATE(18,0,$H$2:$H$9,A31) -> -4.24 | D31: -4.24 | E31: TRUE | H31: 18 | I31: PERCENTILE.EXC
A32: 3 | C32: =_xlfn.AGGREGATE(19,0,$H$2:$H$9,A32) -> 1345 | D32: 1345 | E32: TRUE | H32: 19 | I32: QUARTILE.EXC
A33: 1 | C33: =_xlfn.AGGREGATE(15,0,$H$2:$H$9,A33) -> -106 | D33: -106 | E33: TRUE
A34: 78% | C34: =_xlfn.AGGREGATE(16,3,$J$2:$J$9,A34) -> 1024.3 | D34: 1024.3 | E34: TRUE | H34: 3 | I34: 忽略隐藏行、错误值、嵌套 SUBTOTAL 和 AGGREGATE 函数
A35: 1 | C35: =_xlfn.AGGREGATE(17,0,$H$2:$H$9,A35) -> -5.5 | D35: -5.5 | E35: TRUE
A36: 77% | C36: =_xlfn.AGGREGATE(18,0,$H$2:$H$9,A36) -> 22386756.2 | D36: 22386756.2 | E36: TRUE
A37: 2 | C37: =_xlfn.AGGREGATE(19,0,$H$2:$H$9,A37) -> 15 | D37: 15 | E37: TRUE | H37: 0 或省略 | I37: 忽略嵌套 SUBTOTAL 和 AGGREGATE 函数
A38: =A33 -> 1 | C38: =_xlfn.AGGREGATE(15,1,$H$2:$H$9,A38) -> -106 | D38: -106 | E38: TRUE | H38: 1 | I38: 忽略隐藏行、嵌套 SUBTOTAL 和 AGGREGATE 函数
A39: =A34 -> 78% | C39: =_xlfn.AGGREGATE(16,2,$J$2:$J$9,A39) -> 365.4 | D39: 365.4 | E39: TRUE | H39: 2 | I39: 忽略错误值、嵌套 SUBTOTAL 和 AGGREGATE 函数
A40: =A35 -> 1 | C40: =_xlfn.AGGREGATE(17,3,$H$2:$H$9,A40) -> 3 | D40: 3 | E40: TRUE | H40: 3 | I40: 忽略隐藏行、错误值、嵌套 SUBTOTAL 和 AGGREGATE 函数
A41: =A36 -> 77% | C41: =_xlfn.AGGREGATE(18,4,$H$2:$H$9,A41) -> 1298.338 | D41: 1298.338 | E41: TRUE | H41: 4 | I41: 忽略空值
A42: =A37 -> 2 | C42: =_xlfn.AGGREGATE(19,5,$H$2:$H$9,A42) -> 15 | D42: 15 | E42: TRUE | H42: 5 | I42: 忽略隐藏行
C43: =_xlfn.AGGREGATE(3,6,I2:I9) -> 7 | D43: 7 | E43: TRUE | H43: 6 | I43: 忽略错误值
C44: =_xlfn.AGGREGATE(3,7,K2:K9) -> 6 | D44: 6 | E44: TRUE | H44: 7 | I44: 忽略隐藏行和错误值

Sheet textbox
A10: Sample ID | B10: OutlineStyle_001
A11: Testcase_ID
A12: Test Object | B12: TextBox(context menu)->Format Text Effects
A13: Check Point | B13: Text Fill
A14: Other Info | B14: Font size: defult(11), 16, 20

Sheet object

Sheet wordart
A1: Testcase_ID | B1: WordArt_PredefineStyle
A2: Feature name: | B2: WordArt interoperability with MS Office
A3: TestPoint
A4: Example:

Sheet consume
B1: =IF(OR(B2="",D2=""),"",DATE(B2,D2,1)) -> 2006-01-01 | C1: =IF(B1="","",DATE(YEAR(B1),MONTH(B1)+1,DAY(B1)-1)) -> 2006-01-31
B2: 2006 | C2: 年 | D2: 1 | E2: 月家計簿 | I2: 每日的紀錄 | J2: =$B$1 -> 2006-01-01 | K2: =IF(J2="","",TEXT(J2,"aaa")) -> Sun | L2: =IF(J2="","",IF(J2>=$C$1,"",J2+1)) -> 2006-01-02 | M2: =IF(L2="","",TEXT(L2,"aaa")) -> Mon | N2: =IF(L2="","",IF(L2>=$C$1,"",L2+1)) -> 2006-01-03 | O2: =IF(N2="","",TEXT(N2,"aaa")) -> Tue | P2: =IF(N2="","",IF(N2>=$C$1,"",N2+1)) -> 2006-01-04 | Q2: =IF(P2="","",TEXT(P2,"aaa")) -> Wed | R2: =IF(P2="","",IF(P2>=$C$1,"",P2+1)) -> 2006-01-05 | S2: =IF(R2="","",TEXT(R2,"aaa")) -> Thu | T2: =IF(R2="","",IF(R2>=$C$1,"",R2+1)) -> 2006-01-06 | U2: =IF(T2="","",TEXT(T2,"aaa")) -> Fri | V2: =IF(T2="","",IF(T2>=$C$1,"",T2+1)) -> 2006-01-07 | W2: =IF(V2="","",TEXT(V2,"aaa")) -> Sat | X2: =IF(V2="","",IF(V2>=$C$1,"",V2+1)) -> 2006-01-08 | Y2: =IF(X2="","",TEXT(X2,"aaa")) -> Sun | Z2: =IF(X2="","",IF(X2>=$C$1,"",X2+1)) -> 2006-01-09 | AA2: =IF(Z2="","",TEXT(Z2,"aaa")) -> Mon | AB2: =IF(Z2="","",IF(Z2>=$C$1,"",Z2+1)) -> 2006-01-10 | AC2: =IF(AB2="","",TEXT(AB2,"aaa")) -> Tue | AD2: =IF(AB2="","",IF(AB2>=$C$1,"",AB2+1)) -> 2006-01-11 | AE2: =IF(AD2="","",TEXT(AD2,"aaa")) -> Wed | AF2: =IF(AD2="","",IF(AD2>=$C$1,"",AD2+1)) -> 2006-01-12 | AG2: =IF(AF2="","",TEXT(AF2,"aaa")) -> Thu | AH2: =IF(AF2="","",IF(AF2>=$C$1,"",AF2+1)) -> 2006-01-13 | AI2: =IF(AH2="","",TEXT(AH2,"aaa")) -> Fri | AJ2: =IF(AH2="","",IF(AH2>=$C$1,"",AH2+1)) -> 2006-01-14 | AK2: =IF(AJ2="","",TEXT(AJ2,"aaa")) -> Sat | AL2: =IF(AJ2="","",IF(AJ2>=$C$1,"",AJ2+1)) -> 2006-01-15 | AM2: =IF(AL2="","",TEXT(AL2,"aaa")) -> Sun | AN2: =IF(AL2="","",IF(AL2>=$C$1,"",AL2+1)) -> 2006-01-16 | AO2: =IF(AN2="","",TEXT(AN2,"aaa")) -> Mon | AP2: =IF(AN2="","",IF(AN2>=$C$1,"",AN2+1)) -> 2006-01-17 | AQ2: =IF(AP2="","",TEXT(AP2,"aaa")) -> Tue | AR2: =IF(AP2="","",IF(AP2>=$C$1,"",AP2+1)) -> 2006-01-18 | AS2: =IF(AR2="","",TEXT(AR2,"aaa")) -> Wed | AT2: =IF(AR2="","",IF(AR2>=$C$1,"",AR2+1)) -> 2006-01-19 | AU2: =IF(AT2="","",TEXT(AT2,"aaa")) -> Thu | AV2: =IF(AT2="","",IF(AT2>=$C$1,"",AT2+1)) -> 2006-01-20 | AW2: =IF(AV2="","",TEXT(AV2,"aaa")) -> Fri | AX2: =IF(AV2="","",IF(AV2>=$C$1,"",AV2+1)) -> 2006-01-21 | AY2: =IF(AX2="","",TEXT(AX2,"aaa")) -> Sat | AZ2: =IF(AX2="","",IF(AX2>=$C$1,"",AX2+1)) -> 2006-01-22 | BA2: =IF(AZ2="","",TEXT(AZ2,"aaa")) -> Sun | BB2: =IF(AZ2="","",IF(AZ2>=$C$1,"",AZ2+1)) -> 2006-01-23 | BC2: =IF(BB2="","",TEXT(BB2,"aaa")) -> Mon | BD2: =IF(BB2="","",IF(BB2>=$C$1,"",BB2+1)) -> 2006-01-24 | BE2: =IF(BD2="","",TEXT(BD2,"aaa")) -> Tue | BF2: =IF(BD2="","",IF(BD2>=$C$1,"",BD2+1)) -> 2006-01-25 | BG2: =IF(BF2="","",TEXT(BF2,"aaa")) -> Wed | BH2: =IF(BF2="","",IF(BF2>=$C$1,"",BF2+1)) -> 2006-01-26 | BI2: =IF(BH2="","",TEXT(BH2,"aaa")) -> Thu | BJ2: =IF(BH2="","",IF(BH2>=$C$1,"",BH2+1)) -> 2006-01-27 | BK2: =IF(BJ2="","",TEXT(BJ2,"aaa")) -> Fri | BL2: =IF(BJ2="","",IF(BJ2>=$C$1,"",BJ2+1)) -> 2006-01-28 | BM2: =IF(BL2="","",TEXT(BL2,"aaa")) -> Sat | BN2: =IF(BL2="","",IF(BL2>=$C$1,"",BL2+1)) -> 2006-01-29 | BO2: =IF(BN2="","",TEXT(BN2,"aaa")) -> Sun | BP2: =IF(BN2="","",IF(BN2>=$C$1,"",BN2+1)) -> 2006-01-30 | BQ2: =IF(BP2="","",TEXT(BP2,"aaa")) -> Mon | BR2: =IF(BP2="","",IF(BP2>=$C$1,"",BP2+1)) -> 2006-01-31 | BS2: =IF(BR2="","",TEXT(BR2,"aaa")) -> Tue
J3: 品名 | K3: 金額 | L3: 品名 | M3: 金額 | N3: 品名 | O3: 金額 | P3: 品名 | Q3: 金額 | R3: 品名 | S3: 金額 | T3: 品名 | U3: 金額 | V3: 品名 | W3: 金額 | X3: 品名 | Y3: 金額 | Z3: 品名 | AA3: 金額 | AB3: 品名 | AC3: 金額 | AD3: 品名 | AE3: 金額 | AF3: 品名 | AG3: 金額 | AH3: 品名 | AI3: 金額 | AJ3: 品名 | AK3: 金額 | AL3: 品名 | AM3: 金額 | AN3: 品名 | AO3: 金額 | AP3: 品名 | AQ3: 金額 | AR3: 品名 | AS3: 金額 | AT3: 品名 | AU3: 金額 | AV3: 品名 | AW3: 金額 | AX3: 品名 | AY3: 金額 | AZ3: 品名 | BA3: 金額 | BB3: 品名 | BC3: 金額 | BD3: 品名 | BE3: 金額 | BF3: 品名 | BG3: 金額 | BH3: 品名 | BI3: 金額 | BJ3: 品名 | BK3: 金額 | BL3: 品名 | BM3: 金額 | BN3: 品名 | BO3: 金額 | BP3: 品名 | BQ3: 金額 | BR3: 品名 | BS3: 金額
B4: 本月收入 | F4: 本月生活費 | I4: 主食
B5: 項目 | C5: 金額 | D5: 進帳日 | F5: 項目 | G5: 購買金額
B6: 薪水（實領） | F6: 伙食費 | G6: =SUM(J19:BS19) -> 0
F7: 日用雜貨合計 | G7: =SUM(J20:BS25) -> 0 | I7: 副食
F8: 教育・教養費 | G8: =SUM(J26:BS27) -> 0
B9: 獎金 | F9: 上記事項以外的合計 | G9: =SUM(J28:BS39) -> 0
B10: 收入合計 | C10: =SUM(C6:C9) -> $0 | F10: 生活費合計 | G10: =SUM(G6:G9) -> $0
B14: 本月固定支出
B15: 項目 | C15: 金額 | D15: 支出日 | F15: 本月餘額 | I15: 零食
B16: 電費 | F16: =C10-C37-G10+SUM(J41:BS41) -> $0
B17: 瓦斯費
B18: 自來水費 | I18: 外食
B19: 電話費 | F19: 累計餘額 | I19: 伙食費合計 | K19: =SUM(K4:K18) -> $0 | M19: =SUM(M4:M18) -> $0 | O19: =SUM(O4:O18) -> $0 | Q19: =SUM(Q4:Q18) -> $0 | S19: =SUM(S4:S18) -> $0 | U19: =SUM(U4:U18) -> $0 | W19: =SUM(W4:W18) -> $0 | Y19: =SUM(Y4:Y18) -> $0 | AA19: =SUM(AA4:AA18) -> $0 | AC19: =SUM(AC4:AC18) -> $0 | AE19: =SUM(AE4:AE18) -> $0 | AG19: =SUM(AG4:AG18) -> $0 | AI19: =SUM(AI4:AI18) -> $0 | AK19: =SUM(AK4:AK18) -> $0 | AM19: =SUM(AM4:AM18) -> $0 | AO19: =SUM(AO4:AO18) -> $0 | AQ19: =SUM(AQ4:AQ18) -> $0 | AS19: =SUM(AS4:AS18) -> $0 | AU19: =SUM(AU4:AU18) -> $0 | AW19: =SUM(AW4:AW18) -> $0 | AY19: =SUM(AY4:AY18) -> $0 | BA19: =SUM(BA4:BA18) -> $0 | BC19: =SUM(BC4:BC18) -> $0 | BE19: =SUM(BE4:BE18) -> $0 | BG19: =SUM(BG4:BG18) -> $0 | BI19: =SUM(BI4:BI18) -> $0 | BK19: =SUM(BK4:BK18) -> $0 | BM19: =SUM(BM4:BM18) -> $0 | BO19: =SUM(BO4:BO18) -> $0 | BQ19: =SUM(BQ4:BQ18) -> $0 | BS19: =SUM(BS4:BS18) -> $0
B20: 行動電話費 | F20: =F16 -> $0 | I20: 日用雜貨
B21: 報紙費
B22: 接收費
B23: 房租 | F23: 本月留言
B24: 上網費
B25: 保險
B26: 定期存款 | I26: 教育・教養費
B27: 貸款
B28: 信用卡 | I28: 治裝費
B29: 稅金
B30: 零用金 | I30: 醫療費
B31: 存款 | I31: 美髮費
I32: 交通費
I33: 娛樂費
I34: 喜慶・交際費
I35: 其他
B37: 固定支出合計 | C37: =SUM(C16:C36) -> $0
I40: 每日生活費支出 | K40: =SUM(K19:K39) -> $0 | M40: =SUM(M19:M39) -> $0 | O40: =SUM(O19:O39) -> $0 | Q40: =SUM(Q19:Q39) -> $0 | S40: =SUM(S19:S39) -> $0 | U40: =SUM(U19:U39) -> $0 | W40: =SUM(W19:W39) -> $0 | Y40: =SUM(Y19:Y39) -> $0 | AA40: =SUM(AA19:AA39) -> $0 | AC40: =SUM(AC19:AC39) -> $0 | AE40: =SUM(AE19:AE39) -> $0 | AG40: =SUM(AG19:AG39) -> $0 | AI40: =SUM(AI19:AI39) -> $0 | AK40: =SUM(AK19:AK39) -> $0 | AM40: =SUM(AM19:AM39) -> $0 | AO40: =SUM(AO19:AO39) -> $0 | AQ40: =SUM(AQ19:AQ39) -> $0 | AS40: =SUM(AS19:AS39) -> $0 | AU40: =SUM(AU19:AU39) -> $0 | AW40: =SUM(AW19:AW39) -> $0 | AY40: =SUM(AY19:AY39) -> $0 | BA40: =SUM(BA19:BA39) -> $0 | BC40: =SUM(BC19:BC39) -> $0 | BE40: =SUM(BE19:BE39) -> $0 | BG40: =SUM(BG19:BG39) -> $0 | BI40: =SUM(BI19:BI39) -> $0 | BK40: =SUM(BK19:BK39) -> $0 | BM40: =SUM(BM19:BM39) -> $0 | BO40: =SUM(BO19:BO39) -> $0 | BQ40: =SUM(BQ19:BQ39) -> $0 | BS40: =SUM(BS19:BS39) -> $0
F41: 每日收入總計 | G41: =SUM(J41:BS41) -> $0 | I41: 每日臨時收入
I42: 每日餘額 | K42: =K41-K40 -> $0 | M42: =M41-M40 -> $0 | O42: =O41-O40 -> $0 | Q42: =Q41-Q40 -> $0 | S42: =S41-S40 -> $0 | U42: =U41-U40 -> $0 | W42: =W41-W40 -> $0 | Y42: =Y41-Y40 -> $0 | AA42: =AA41-AA40 -> $0 | AC42: =AC41-AC40 -> $0 | AE42: =AE41-AE40 -> $0 | AG42: =AG41-AG40 -> $0 | AI42: =AI41-AI40 -> $0 | AK42: =AK41-AK40 -> $0 | AM42: =AM41-AM40 -> $0 | AO42: =AO41-AO40 -> $0 | AQ42: =AQ41-AQ40 -> $0 | AS42: =AS41-AS40 -> $0 | AU42: =AU41-AU40 -> $0 | AW42: =AW41-AW40 -> $0 | AY42: =AY41-AY40 -> $0 | BA42: =BA41-BA40 -> $0 | BC42: =BC41-BC40 -> $0 | BE42: =BE41-BE40 -> $0 | BG42: =BG41-BG40 -> $0 | BI42: =BI41-BI40 -> $0 | BK42: =BK41-BK40 -> $0 | BM42: =BM41-BM40 -> $0 | BO42: =BO41-BO40 -> $0 | BQ42: =BQ41-BQ40 -> $0 | BS42: =BS41-BS40 -> $0

Sheet Sheet1
A1: =ASIN!A1 -> 0 | B1: =ASIN!B1 -> 3 | C1: =ASIN!C1 -> 0 | D1: =ASIN!D1 -> Total | E1: =ASIN!E1 -> 0 | F1: =ASIN!F1 -> 0
A2: =ASIN!A2 -> Failed | B2: =ASIN!B2 -> Error | C2: =ASIN!C2 -> NotSupport | D2: =ASIN!D2 -> Verification Area | E2: =ASIN!E2 -> 0 | F2: =ASIN!F2 -> 0
A3: =ASIN!A3 -> 0 | B3: =ASIN!B3 -> 3 | C3: =ASIN!C3 -> 0 | D3: =ASIN!D3 -> E12:E203 | E3: =ASIN!E3 -> 0 | F3: =ASIN!F3 -> 0
A4: =ASIN!A4 -> 0 | B4: =ASIN!B4 -> 0 | C4: =ASIN!C4 -> 0 | D4: =ASIN!D4 -> 0 | E4: =ASIN!E4 -> 0 | F4: =ASIN!F4 -> 0
A5: =ASIN!A5 -> 0 | B5: =ASIN!B5 -> 0 | C5: =ASIN!C5 -> 0 | D5: =ASIN!D5 -> 0 | E5: =ASIN!E5 -> 0 | F5: =ASIN!F5 -> 0
A6: =ASIN!A6 -> 0 | B6: =ASIN!B6 -> 0 | C6: =ASIN!C6 -> 0 | D6: =ASIN!D6 -> 0 | E6: =ASIN!E6 -> 0 | F6: =ASIN!F6 -> 0
A7: =ASIN!A7 -> 0 | B7: =ASIN!B7 -> 0 | C7: =ASIN!C7 -> 0 | D7: =ASIN!D7 -> 0 | E7: =ASIN!E7 -> 0 | F7: =ASIN!F7 -> 0
A8: =ASIN!A8 -> 0 | B8: =ASIN!B8 -> 0 | C8: =ASIN!C8 -> 0 | D8: =ASIN!D8 -> 0 | E8: =ASIN!E8 -> 0 | F8: =ASIN!F8 -> 0
A9: =ASIN!A9 -> ASIN(number) | B9: =ASIN!B9 -> 0 | C9: =ASIN!C9 -> 0 | D9: =ASIN!D9 -> 0 | E9: =ASIN!E9 -> 0 | F9: =ASIN!F9 -> 0
A10: =ASIN!A10 -> 0 | B10: =ASIN!B10 -> 0 | C10: =ASIN!C10 -> 0 | D10: =ASIN!D10 -> 0 | E10: =ASIN!E10 -> 0 | F10: =ASIN!F10 -> 0
A11: =ASIN!A11 -> Data | B11: =ASIN!B11 -> 0 | C11: =ASIN!C11 -> Formula | D11: =ASIN!D11 -> Expected | E11: =ASIN!E11 -> Check | F11: =ASIN!F11 -> Mask
A12: =ASIN!A12 -> -1 | B12: =ASIN!B12 -> -90 | C12: =ASIN!C12 -> -1.570796327 | D12: =ASIN!D12 -> -1.570796327 | E12: =ASIN!E12 -> TRUE | F12: =ASIN!F12 -> 0
A13: =ASIN!A13 -> -0.9990482216 | B13: =ASIN!B13 -> -87.5 | C13: =ASIN!C13 -> -1.527163095 | D13: =ASIN!D13 -> -1.527163095 | E13: =ASIN!E13 -> TRUE | F13: =ASIN!F13 -> 0
A14: =ASIN!A14 -> -0.9961946981 | B14: =ASIN!B14 -> -85 | C14: =ASIN!C14 -> -1.483529864 | D14: =ASIN!D14 -> -1.483529864 | E14: =ASIN!E14 -> TRUE | F14: =ASIN!F14 -> 0
A15: =ASIN!A15 -> -0.9914448614 | B15: =ASIN!B15 -> -82.5 | C15: =ASIN!C15 -> -1.439896633 | D15: =ASIN!D15 -> -1.439896633 | E15: =ASIN!E15 -> TRUE | F15: =ASIN!F15 -> 0
A16: =ASIN!A16 -> -0.984807753 | B16: =ASIN!B16 -> -80 | C16: =ASIN!C16 -> -1.396263402 | D16: =ASIN!D16 -> -1.396263402 | E16: =ASIN!E16 -> TRUE | F16: =ASIN!F16 -> 0
A17: =ASIN!A17 -> -0.9762960071 | B17: =ASIN!B17 -> -77.5 | C17: =ASIN!C17 -> -1.35263017 | D17: =ASIN!D17 -> -1.35263017 | E17: =ASIN!E17 -> TRUE | F17: =ASIN!F17 -> 0
A18: =ASIN!A18 -> -0.9659258263 | B18: =ASIN!B18 -> -75 | C18: =ASIN!C18 -> -1.308996939 | D18: =ASIN!D18 -> -1.308996939 | E18: =ASIN!E18 -> TRUE | F18: =ASIN!F18 -> 0
A19: =ASIN!A19 -> -0.9537169507 | B19: =ASIN!B19 -> -72.5 | C19: =ASIN!C19 -> -1.265363708 | D19: =ASIN!D19 -> -1.265363708 | E19: =ASIN!E19 -> TRUE | F19: =ASIN!F19 -> 0
A20: =ASIN!A20 -> -0.9396926208 | B20: =ASIN!B20 -> -70 | C20: =ASIN!C20 -> -1.221730476 | D20: =ASIN!D20 -> -1.221730476 | E20: =ASIN!E20 -> TRUE | F20: =ASIN!F20 -> 0
A21: =ASIN!A21 -> -0.9238795325 | B21: =ASIN!B21 -> -67.5 | C21: =ASIN!C21 -> -1.178097245 | D21: =ASIN!D21 -> -1.178097245 | E21: =ASIN!E21 -> TRUE | F21: =ASIN!F21 -> 0
A22: =ASIN!A22 -> -0.906307787 | B22: =ASIN!B22 -> -65 | C22: =ASIN!C22 -> -1.134464014 | D22: =ASIN!D22 -> -1.134464014 | E22: =ASIN!E22 -> TRUE | F22: =ASIN!F22 -> 0
A23: =ASIN!A23 -> -0.8870108332 | B23: =ASIN!B23 -> -62.5 | C23: =ASIN!C23 -> -1.090830782 | D23: =ASIN!D23 -> -1.090830782 | E23: =ASIN!E23 -> TRUE | F23: =ASIN!F23 -> 0
A24: =ASIN!A24 -> -0.8660254038 | B24: =ASIN!B24 -> -60 | C24: =ASIN!C24 -> -1.047197551 | D24: =ASIN!D24 -> -1.047197551 | E24: =ASIN!E24 -> TRUE | F24: =ASIN!F24 -> 0
A25: =ASIN!A25 -> -0.8433914458 | B25: =ASIN!B25 -> -57.5 | C25: =ASIN!C25 -> -1.00356432 | D25: =ASIN!D25 -> -1.00356432 | E25: =ASIN!E25 -> TRUE | F25: =ASIN!F25 -> 0
A26: =ASIN!A26 -> -0.8191520443 | B26: =ASIN!B26 -> -55 | C26: =ASIN!C26 -> -0.9599310886 | D26: =ASIN!D26 -> -0.9599310886 | E26: =ASIN!E26 -> TRUE | F26: =ASIN!F26 -> 0
A27: =ASIN!A27 -> -0.7933533403 | B27: =ASIN!B27 -> -52.5 | C27: =ASIN!C27 -> -0.9162978573 | D27: =ASIN!D27 -> -0.9162978573 | E27: =ASIN!E27 -> TRUE | F27: =ASIN!F27 -> 0
A28: =ASIN!A28 -> -0.7660444431 | B28: =ASIN!B28 -> -50 | C28: =ASIN!C28 -> -0.872664626 | D28: =ASIN!D28 -> -0.872664626 | E28: =ASIN!E28 -> TRUE | F28: =ASIN!F28 -> 0
A29: =ASIN!A29 -> -0.7372773368 | B29: =ASIN!B29 -> -47.5 | C29: =ASIN!C29 -> -0.8290313947 | D29: =ASIN!D29 -> -0.8290313947 | E29: =ASIN!E29 -> TRUE | F29: =ASIN!F29 -> 0
A30: =ASIN!A30 -> -0.7071067812 | B30: =ASIN!B30 -> -45 | C30: =ASIN!C30 -> -0.7853981634 | D30: =ASIN!D30 -> -0.7853981634 | E30: =ASIN!E30 -> TRUE | F30: =ASIN!F30 -> 0
A31: =ASIN!A31 -> -0.6755902076 | B31: =ASIN!B31 -> -42.5 | C31: =ASIN!C31 -> -0.7417649321 | D31: =ASIN!D31 -> -0.7417649321 | E31: =ASIN!E31 -> TRUE | F31: =ASIN!F31 -> 0
A32: =ASIN!A32 -> -0.6427876097 | B32: =ASIN!B32 -> -40 | C32: =ASIN!C32 -> -0.6981317008 | D32: =ASIN!D32 -> -0.6981317008 | E32: =ASIN!E32 -> TRUE | F32: =ASIN!F32 -> 0
A33: =ASIN!A33 -> -0.608761429 | B33: =ASIN!B33 -> -37.5 | C33: =ASIN!C33 -> -0.6544984695 | D33: =ASIN!D33 -> -0.6544984695 | E33: =ASIN!E33 -> TRUE | F33: =ASIN!F33 -> 0
A34: =ASIN!A34 -> -0.5735764364 | B34: =ASIN!B34 -> -35 | C34: =ASIN!C34 -> -0.6108652382 | D34: =ASIN!D34 -> -0.6108652382 | E34: =ASIN!E34 -> TRUE | F34: =ASIN!F34 -> 0
A35: =ASIN!A35 -> -0.5372996083 | B35: =ASIN!B35 -> -32.5 | C35: =ASIN!C35 -> -0.5672320069 | D35: =ASIN!D35 -> -0.5672320069 | E35: =ASIN!E35 -> TRUE | F35: =ASIN!F35 -> 0
A36: =ASIN!A36 -> -0.5 | B36: =ASIN!B36 -> -30 | C36: =ASIN!C36 -> -0.5235987756 | D36: =ASIN!D36 -> -0.5235987756 | E36: =ASIN!E36 -> TRUE | F36: =ASIN!F36 -> 0
A37: =ASIN!A37 -> -0.4617486132 | B37: =ASIN!B37 -> -27.5 | C37: =ASIN!C37 -> -0.4799655443 | D37: =ASIN!D37 -> -0.4799655443 | E37: =ASIN!E37 -> TRUE | F37: =ASIN!F37 -> 0
A38: =ASIN!A38 -> -0.4226182617 | B38: =ASIN!B38 -> -25 | C38: =ASIN!C38 -> -0.436332313 | D38: =ASIN!D38 -> -0.436332313 | E38: =ASIN!E38 -> TRUE | F38: =ASIN!F38 -> 0
A39: =ASIN!A39 -> -0.3826834324 | B39: =ASIN!B39 -> -22.5 | C39: =ASIN!C39 -> -0.3926990817 | D39: =ASIN!D39 -> -0.3926990817 | E39: =ASIN!E39 -> TRUE | F39: =ASIN!F39 -> 0
A40: =ASIN!A40 -> -0.3420201433 | B40: =ASIN!B40 -> -20 | C40: =ASIN!C40 -> -0.3490658504 | D40: =ASIN!D40 -> -0.3490658504 | E40: =ASIN!E40 -> TRUE | F40: =ASIN!F40 -> 0
A41: =ASIN!A41 -> -0.3007057995 | B41: =ASIN!B41 -> -17.5 | C41: =ASIN!C41 -> -0.3054326191 | D41: =ASIN!D41 -> -0.3054326191 | E41: =ASIN!E41 -> TRUE | F41: =ASIN!F41 -> 0
A42: =ASIN!A42 -> -0.2588190451 | B42: =ASIN!B42 -> -15 | C42: =ASIN!C42 -> -0.2617993878 | D42: =ASIN!D42 -> -0.2617993878 | E42: =ASIN!E42 -> TRUE | F42: =ASIN!F42 -> 0
A43: =ASIN!A43 -> -0.2164396139 | B43: =ASIN!B43 -> -12.5 | C43: =ASIN!C43 -> -0.2181661565 | D43: =ASIN!D43 -> -0.2181661565 | E43: =ASIN!E43 -> TRUE | F43: =ASIN!F43 -> 0
A44: =ASIN!A44 -> -0.1736481777 | B44: =ASIN!B44 -> -10 | C44: =ASIN!C44 -> -0.1745329252 | D44: =ASIN!D44 -> -0.1745329252 | E44: =ASIN!E44 -> TRUE | F44: =ASIN!F44 -> 0
A45: =ASIN!A45 -> -0.1305261922 | B45: =ASIN!B45 -> -7.5 | C45: =ASIN!C45 -> -0.1308996939 | D45: =ASIN!D45 -> -0.1308996939 | E45: =ASIN!E45 -> TRUE | F45: =ASIN!F45 -> 0
A46: =ASIN!A46 -> -0.08715574275 | B46: =ASIN!B46 -> -5 | C46: =ASIN!C46 -> -0.0872664626 | D46: =ASIN!D46 -> -0.0872664626 | E46: =ASIN!E46 -> TRUE | F46: =ASIN!F46 -> 0
A47: =ASIN!A47 -> -0.04361938737 | B47: =ASIN!B47 -> -2.5 | C47: =ASIN!C47 -> -0.0436332313 | D47: =ASIN!D47 -> -0.0436332313 | E47: =ASIN!E47 -> TRUE | F47: =ASIN!F47 -> 0
A48: =ASIN!A48 -> 6.125742275e-17 | B48: =ASIN!B48 -> 3.509791787e-15 | C48: =ASIN!C48 -> 6.125742275e-17 | D48: =ASIN!D48 -> 6.125742275e-17 | E48: =ASIN!E48 -> TRUE | F48: =ASIN!F48 -> 0
A49: =ASIN!A49 -> 0.04361938737 | B49: =ASIN!B49 -> 2.5 | C49: =ASIN!C49 -> 0.0436332313 | D49: =ASIN!D49 -> 0.0436332313 | E49: =ASIN!E49 -> TRUE | F49: =ASIN!F49 -> 0
A50: =ASIN!A50 -> 0.08715574275 | B50: =ASIN!B50 -> 5 | C50: =ASIN!C50 -> 0.0872664626 | D50: =ASIN!D50 -> 0.0872664626 | E50: =ASIN!E50 -> TRUE | F50: =ASIN!F50 -> 0
A51: =ASIN!A51 -> 0.1305261922 | B51: =ASIN!B51 -> 7.5 | C51: =ASIN!C51 -> 0.1308996939 | D51: =ASIN!D51 -> 0.1308996939 | E51: =ASIN!E51 -> TRUE | F51: =ASIN!F51 -> 0
A52: =ASIN!A52 -> 0.1736481777 | B52: =ASIN!B52 -> 10 | C52: =ASIN!C52 -> 0.1745329252 | D52: =ASIN!D52 -> 0.1745329252 | E52: =ASIN!E52 -> TRUE | F52: =ASIN!F52 -> 0
A53: =ASIN!A53 -> 0.2164396139 | B53: =ASIN!B53 -> 12.5 | C53: =ASIN!C53 -> 0.2181661565 | D53: =ASIN!D53 -> 0.2181661565 | E53: =ASIN!E53 -> TRUE | F53: =ASIN!F53 -> 0
A54: =ASIN!A54 -> 0.2588190451 | B54: =ASIN!B54 -> 15 | C54: =ASIN!C54 -> 0.2617993878 | D54: =ASIN!D54 -> 0.2617993878 | E54: =ASIN!E54 -> TRUE | F54: =ASIN!F54 -> 0
A55: =ASIN!A55 -> 0.3007057995 | B55: =ASIN!B55 -> 17.5 | C55: =ASIN!C55 -> 0.3054326191 | D55: =ASIN!D55 -> 0.3054326191 | E55: =ASIN!E55 -> TRUE | F55: =ASIN!F55 -> 0
A56: =ASIN!A56 -> 0.3420201433 | B56: =ASIN!B56 -> 20 | C56: =ASIN!C56 -> 0.3490658504 | D56: =ASIN!D56 -> 0.3490658504 | E56: =ASIN!E56 -> TRUE | F56: =ASIN!F56 -> 0
A57: =ASIN!A57 -> 0.3826834324 | B57: =ASIN!B57 -> 22.5 | C57: =ASIN!C57 -> 0.3926990817 | D57: =ASIN!D57 -> 0.3926990817 | E57: =ASIN!E57 -> TRUE | F57: =ASIN!F57 -> 0
A58: =ASIN!A58 -> 0.4226182617 | B58: =ASIN!B58 -> 25 | C58: =ASIN!C58 -> 0.436332313 | D58: =ASIN!D58 -> 0.436332313 | E58: =ASIN!E58 -> TRUE | F58: =ASIN!F58 -> 0
A59: =ASIN!A59 -> 0.4617486132 | B59: =ASIN!B59 -> 27.5 | C59: =ASIN!C59 -> 0.4799655443 | D59: =ASIN!D59 -> 0.4799655443 | E59: =ASIN!E59 -> TRUE | F59: =ASIN!F59 -> 0
A60: =ASIN!A60 -> 0.5 | B60: =ASIN!B60 -> 30 | C60: =ASIN!C60 -> 0.5235987756 | D60: =ASIN!D60 -> 0.5235987756 | E60: =ASIN!E60 -> TRUE | F60: =ASIN!F60 -> 0
A61: =ASIN!A61 -> 0.5372996083 | B61: =ASIN!B61 -> 32.5 | C61: =ASIN!C61 -> 0.5672320069 | D61: =ASIN!D61 -> 0.5672320069 | E61: =ASIN!E61 -> TRUE | F61: =ASIN!F61 -> 0
A62: =ASIN!A62 -> 0.5735764364 | B62: =ASIN!B62 -> 35 | C62: =ASIN!C62 -> 0.6108652382 | D62: =ASIN!D62 -> 0.6108652382 | E62: =ASIN!E62 -> TRUE | F62: =ASIN!F62 -> 0
A63: =ASIN!A63 -> 0.608761429 | B63: =ASIN!B63 -> 37.5 | C63: =ASIN!C63 -> 0.6544984695 | D63: =ASIN!D63 -> 0.6544984695 | E63: =ASIN!E63 -> TRUE | F63: =ASIN!F63 -> 0
A64: =ASIN!A64 -> 0.6427876097 | B64: =ASIN!B64 -> 40 | C64: =ASIN!C64 -> 0.6981317008 | D64: =ASIN!D64 -> 0.6981317008 | E64: =ASIN!E64 -> TRUE | F64: =ASIN!F64 -> 0
A65: =ASIN!A65 -> 0.6755902076 | B65: =ASIN!B65 -> 42.5 | C65: =ASIN!C65 -> 0.7417649321 | D65: =ASIN!D65 -> 0.7417649321 | E65: =ASIN!E65 -> TRUE | F65: =ASIN!F65 -> 0
A66: =ASIN!A66 -> 0.7071067812 | B66: =ASIN!B66 -> 45 | C66: =ASIN!C66 -> 0.7853981634 | D66: =ASIN!D66 -> 0.7853981634 | E66: =ASIN!E66 -> TRUE | F66: =ASIN!F66 -> 0
A67: =ASIN!A67 -> 0.7372773368 | B67: =ASIN!B67 -> 47.5 | C67: =ASIN!C67 -> 0.8290313947 | D67: =ASIN!D67 -> 0.8290313947 | E67: =ASIN!E67 -> TRUE | F67: =ASIN!F67 -> 0
A68: =ASIN!A68 -> 0.7660444431 | B68: =ASIN!B68 -> 50 | C68: =ASIN!C68 -> 0.872664626 | D68: =ASIN!D68 -> 0.872664626 | E68: =ASIN!E68 -> TRUE | F68: =ASIN!F68 -> 0
A69: =ASIN!A69 -> 0.7933533403 | B69: =ASIN!B69 -> 52.5 | C69: =ASIN!C69 -> 0.9162978573 | D69: =ASIN!D69 -> 0.9162978573 | E69: =ASIN!E69 -> TRUE | F69: =ASIN!F69 -> 0
A70: =ASIN!A70 -> 0.8191520443 | B70: =ASIN!B70 -> 55 | C70: =ASIN!C70 -> 0.9599310886 | D70: =ASIN!D70 -> 0.9599310886 | E70: =ASIN!E70 -> TRUE | F70: =ASIN!F70 -> 0
A71: =ASIN!A71 -> 0.8433914458 | B71: =ASIN!B71 -> 57.5 | C71: =ASIN!C71 -> 1.00356432 | D71: =ASIN!D71 -> 1.00356432 | E71: =ASIN!E71 -> TRUE | F71: =ASIN!F71 -> 0
A72: =ASIN!A72 -> 0.8660254038 | B72: =ASIN!B72 -> 60 | C72: =ASIN!C72 -> 1.047197551 | D72: =ASIN!D72 -> 1.047197551 | E72: =ASIN!E72 -> TRUE | F72: =ASIN!F72 -> 0
A73: =ASIN!A73 -> 0.8870108332 | B73: =ASIN!B73 -> 62.5 | C73: =ASIN!C73 -> 1.090830782 | D73: =ASIN!D73 -> 1.090830782 | E73: =ASIN!E73 -> TRUE | F73: =ASIN!F73 -> 0
A74: =ASIN!A74 -> 0.906307787 | B74: =ASIN!B74 -> 65 | C74: =ASIN!C74 -> 1.134464014 | D74: =ASIN!D74 -> 1.134464014 | E74: =ASIN!E74 -> TRUE | F74: =ASIN!F74 -> 0
A75: =ASIN!A75 -> 0.9238795325 | B75: =ASIN!B75 -> 67.5 | C75: =ASIN!C75 -> 1.178097245 | D75: =ASIN!D75 -> 1.178097245 | E75: =ASIN!E75 -> TRUE | F75: =ASIN!F75 -> 0
A76: =ASIN!A76 -> 0.9396926208 | B76: =ASIN!B76 -> 70 | C76: =ASIN!C76 -> 1.221730476 | D76: =ASIN!D76 -> 1.221730476 | E76: =ASIN!E76 -> TRUE | F76: =ASIN!F76 -> 0
A77: =ASIN!A77 -> 0.9537169507 | B77: =ASIN!B77 -> 72.5 | C77: =ASIN!C77 -> 1.265363708 | D77: =ASIN!D77 -> 1.265363708 | E77: =ASIN!E77 -> TRUE | F77: =ASIN!F77 -> 0
A78: =ASIN!A78 -> 0.9659258263 | B78: =ASIN!B78 -> 75 | C78: =ASIN!C78 -> 1.308996939 | D78: =ASIN!D78 -> 1.308996939 | E78: =ASIN!E78 -> TRUE | F78: =ASIN!F78 -> 0
A79: =ASIN!A79 -> 0.9762960071 | B79: =ASIN!B79 -> 77.5 | C79: =ASIN!C79 -> 1.35263017 | D79: =ASIN!D79 -> 1.35263017 | E79: =ASIN!E79 -> TRUE | F79: =ASIN!F79 -> 0
A80: =ASIN!A80 -> 0.984807753 | B80: =ASIN!B80 -> 80 | C80: =ASIN!C80 -> 1.396263402 | D80: =ASIN!D80 -> 1.396263402 | E80: =ASIN!E80 -> TRUE | F80: =ASIN!F80 -> 0
A81: =ASIN!A81 -> 0.9914448614 | B81: =ASIN!B81 -> 82.5 | C81: =ASIN!C81 -> 1.439896633 | D81: =ASIN!D81 -> 1.439896633 | E81: =ASIN!E81 -> TRUE | F81: =ASIN!F81 -> 0
A82: =ASIN!A82 -> 0.9961946981 | B82: =ASIN!B82 -> 85 | C82: =ASIN!C82 -> 1.483529864 | D82: =ASIN!D82 -> 1.483529864 | E82: =ASIN!E82 -> TRUE | F82: =ASIN!F82 -> 0
A83: =ASIN!A83 -> 0.9990482216 | B83: =ASIN!B83 -> 87.5 | C83: =ASIN!C83 -> 1.527163095 | D83: =ASIN!D83 -> 1.527163095 | E83: =ASIN!E83 -> TRUE | F83: =ASIN!F83 -> 0
A84: =ASIN!A84 -> 1 | B84: =ASIN!B84 -> 90 | C84: =ASIN!C84 -> 1.570796327 | D84: =ASIN!D84 -> 1.570796327 | E84: =ASIN!E84 -> TRUE | F84: =ASIN!F84 -> 0
A85: =ASIN!A85 -> 1.1 | B85: =ASIN!B85 ->  | C85: =ASIN!C85 ->  | D85: =ASIN!D85 ->  | E85: =ASIN!E85 -> Error | F85: =ASIN!F85 -> 0
A86: =ASIN!A86 -> -1.0000001 | B86: =ASIN!B86 ->  | C86: =ASIN!C86 ->  | D86: =ASIN!D86 ->  | E86: =ASIN!E86 -> Error | F86: =ASIN!F86 -> 0
A87: =ASIN!A87 -> 100 | B87: =ASIN!B87 ->  | C87: =ASIN!C87 ->  | D87: =ASIN!D87 ->  | E87: =ASIN!E87 -> Error | F87: =ASIN!F87 -> 0
A88: =ASIN!A88 -> 0 | B88: =ASIN!B88 -> 0 | C88: =ASIN!C88 -> 0 | D88: =ASIN!D88 -> 0 | E88: =ASIN!E88 -> TRUE | F88: =ASIN!F88 -> 0
A89: =ASIN!A89 -> 1 | B89: =ASIN!B89 -> 0 | C89: =ASIN!C89 -> 1.570796327 | D89: =ASIN!D89 -> 1.570796327 | E89: =ASIN!E89 -> TRUE | F89: =ASIN!F89 -> 0
A90: =ASIN!A90 -> -1 | B90: =ASIN!B90 -> 0 | C90: =ASIN!C90 -> -1.570796327 | D90: =ASIN!D90 -> -1.570796327 | E90: =ASIN!E90 -> TRUE | F90: =ASIN!F90 -> 0
A91: =ASIN!A91 -> 0.9986 | B91: =ASIN!B91 -> 0 | C91: =ASIN!C91 -> 1.517875125 | D91: =ASIN!D91 -> 1.517875125 | E91: =ASIN!E91 -> TRUE | F91: =ASIN!F91 -> 0
A92: =ASIN!A92 -> 0 | B92: =ASIN!B92 -> 0 | C92: =ASIN!C92 -> 1.370461484 | D92: =ASIN!D92 -> 1.370461484 | E92: =ASIN!E92 -> TRUE | F92: =ASIN!F92 -> 0
A93: =ASIN!A93 -> 0.96463013 | B93: =ASIN!B93 -> 0 | C93: =ASIN!C93 -> 1.304036645 | D93: =ASIN!D93 -> 1.304036645 | E93: =ASIN!E93 -> TRUE | F93: =ASIN!F93 -> 0
A94: =ASIN!A94 -> 0.9395 | B94: =ASIN!B94 -> 0 | C94: =ASIN!C94 -> 1.221167726 | D94: =ASIN!D94 -> 1.221167726 | E94: =ASIN!E94 -> TRUE | F94: =ASIN!F94 -> 0
A95: =ASIN!A95 -> 0 | B95: =ASIN!B95 -> 0 | C95: =ASIN!C95 -> 1.163007565 | D95: =ASIN!D95 -> 1.163007565 | E95: =ASIN!E95 -> TRUE | F95: =ASIN!F95 -> 0
A96: =ASIN!A96 -> 0.91427612 | B96: =ASIN!B96 -> 66.10313477 | C96: =ASIN!C96 -> 1.153717348 | D96: =ASIN!D96 -> 1.153717348 | E96: =ASIN!E96 -> TRUE | F96: =ASIN!F96 -> 0
A97: =ASIN!A97 -> 0.91 | B97: =ASIN!B97 -> 65.50535153 | C97: =ASIN!C97 -> 1.143284062 | D97: =ASIN!D97 -> 1.143284062 | E97: =ASIN!E97 -> TRUE | F97: =ASIN!F97 -> 0
A98: =ASIN!A98 -> 0.86 | B98: =ASIN!B98 -> 59.31658289 | C98: =ASIN!C98 -> 1.035269672 | D98: =ASIN!D98 -> 1.035269672 | E98: =ASIN!E98 -> TRUE | F98: =ASIN!F98 -> 0
A99: =ASIN!A99 -> 0.84 | B99: =ASIN!B99 -> 57.14011962 | C99: =ASIN!C99 -> 0.9972832224 | D99: =ASIN!D99 -> 0.9972832224 | E99: =ASIN!E99 -> TRUE | F99: =ASIN!F99 -> 0
A100: =ASIN!A100 -> 0.82 | B100: =ASIN!B100 -> 55.08479375 | C100: =ASIN!C100 -> 0.9614110188 | D100: =ASIN!D100 -> 0.9614110188 | E100: =ASIN!E100 -> TRUE | F100: =ASIN!F100 -> 0
A101: =ASIN!A101 -> 0 | B101: =ASIN!B101 -> 52.93003247 | C101: =ASIN!C101 -> 0.9238033397 | D101: =ASIN!D101 -> 0.9238033397 | E101: =ASIN!E101 -> TRUE | F101: =ASIN!F101 -> 0
A102: =ASIN!A102 -> 0.7734 | B102: =ASIN!B102 -> 50.66019542 | C102: =ASIN!C102 -> 0.8841872097 | D102: =ASIN!D102 -> 0.8841872097 | E102: =ASIN!E102 -> TRUE | F102: =ASIN!F102 -> 0
A103: =ASIN!A103 -> 0.7649 | B103: =ASIN!B103 -> 49.89809639 | C103: =ASIN!C103 -> 0.8708860725 | D103: =ASIN!D103 -> 0.8708860725 | E103: =ASIN!E103 -> TRUE | F103: =ASIN!F103 -> 0
A104: =ASIN!A104 -> 0.74 | B104: =ASIN!B104 -> 47.73141557 | C104: =ASIN!C104 -> 0.8330703583 | D104: =ASIN!D104 -> 0.8330703583 | E104: =ASIN!E104 -> TRUE | F104: =ASIN!F104 -> 0
A105: =ASIN!A105 -> 0.7004 | B105: =ASIN!B105 -> 44.45910487 | C105: =ASIN!C105 -> 0.7759577625 | D105: =ASIN!D105 -> 0.7759577625 | E105: =ASIN!E105 -> TRUE | F105: =ASIN!F105 -> 0
A106: =ASIN!A106 -> 0.65 | B106: =ASIN!B106 -> 40.54160187 | C106: =ASIN!C106 -> 0.7075844367 | D106: =ASIN!D106 -> 0.7075844367 | E106: =ASIN!E106 -> TRUE | F106: =ASIN!F106 -> 0
A107: =ASIN!A107 -> 0.6306 | B107: =ASIN!B107 -> 39.09440333 | C107: =ASIN!C107 -> 0.6823260573 | D107: =ASIN!D107 -> 0.6823260573 | E107: =ASIN!E107 -> TRUE | F107: =ASIN!F107 -> 0
A108: =ASIN!A108 -> 0.6129 | B108: =ASIN!B108 -> 37.79948853 | C108: =ASIN!C108 -> 0.6597255304 | D108: =ASIN!D108 -> 0.6597255304 | E108: =ASIN!E108 -> TRUE | F108: =ASIN!F108 -> 0
A109: =ASIN!A109 -> 0.60498047 | B109: =ASIN!B109 -> 37.22743652 | C109: =ASIN!C109 -> 0.6497413394 | D109: =ASIN!D109 -> 0.6497413394 | E109: =ASIN!E109 -> TRUE | F109: =ASIN!F109 -> 0
A110: =ASIN!A110 -> 0.58 | B110: =ASIN!B110 -> 35.45054264 | C110: =ASIN!C110 -> 0.6187286907 | D110: =ASIN!D110 -> 0.6187286907 | E110: =ASIN!E110 -> TRUE | F110: =ASIN!F110 -> 0
A111: =ASIN!A111 -> 0.57 | B111: =ASIN!B111 -> 34.75022575 | C111: =ASIN!C111 -> 0.6065058552 | D111: =ASIN!D111 -> 0.6065058552 | E111: =ASIN!E111 -> TRUE | F111: =ASIN!F111 -> 0
A112: =ASIN!A112 -> 0.561 | B112: =ASIN!B112 -> 34.12498265 | C112: =ASIN!C112 -> 0.5955933044 | D112: =ASIN!D112 -> 0.5955933044 | E112: =ASIN!E112 -> TRUE | F112: =ASIN!F112 -> 0
A113: =ASIN!A113 -> 0.56 | B113: =ASIN!B113 -> 34.05579774 | C113: =ASIN!C113 -> 0.5943858 | D113: =ASIN!D113 -> 0.5943858 | E113: =ASIN!E113 -> TRUE | F113: =ASIN!F113 -> 0
A114: =ASIN!A114 -> 0.55 | B114: =ASIN!B114 -> 33.36701297 | C114: =ASIN!C114 -> 0.5823642379 | D114: =ASIN!D114 -> 0.5823642379 | E114: =ASIN!E114 -> TRUE | F114: =ASIN!F114 -> 0
A115: =ASIN!A115 -> 0.54040527 | B115: =ASIN!B115 -> 32.71123159 | C115: =ASIN!C115 -> 0.5709186937 | D115: =ASIN!D115 -> 0.5709186937 | E115: =ASIN!E115 -> TRUE | F115: =ASIN!F115 -> 0
A116: =ASIN!A116 -> 0.53125 | B116: =ASIN!B116 -> 32.08995126 | C116: =ASIN!C116 -> 0.5600753062 | D116: =ASIN!D116 -> 0.5600753062 | E116: =ASIN!E116 -> TRUE | F116: =ASIN!F116 -> 0
A117: =ASIN!A117 -> 0.53 | B117: =ASIN!B117 -> 32.00545483 | C117: =ASIN!C117 -> 0.5586005653 | D117: =ASIN!D117 -> 0.5586005653 | E117: =ASIN!E117 -> TRUE | F117: =ASIN!F117 -> 0
A118: =ASIN!A118 -> 0.5 | B118: =ASIN!B118 -> 30 | C118: =ASIN!C118 -> 0.5235987756 | D118: =ASIN!D118 -> 0.5235987756 | E118: =ASIN!E118 -> TRUE | F118: =ASIN!F118 -> 0
A119: =ASIN!A119 -> 0.4968 | B119: =ASIN!B119 -> 29.78851457 | C119: =ASIN!C119 -> 0.5199076585 | D119: =ASIN!D119 -> 0.5199076585 | E119: =ASIN!E119 -> TRUE | F119: =ASIN!F119 -> 0
A120: =ASIN!A120 -> 0.48284912 | B120: =ASIN!B120 -> 28.87164846 | C120: =ASIN!C120 -> 0.5039053261 | D120: =ASIN!D120 -> 0.5039053261 | E120: =ASIN!E120 -> TRUE | F120: =ASIN!F120 -> 0
A121: =ASIN!A121 -> 0.47 | B121: =ASIN!B121 -> 28.03429653 | C121: =ASIN!C121 -> 0.489290778 | D121: =ASIN!D121 -> 0.489290778 | E121: =ASIN!E121 -> TRUE | F121: =ASIN!F121 -> 0
A122: =ASIN!A122 -> 0.44 | B122: =ASIN!B122 -> 26.10388114 | C122: =ASIN!C122 -> 0.4555986734 | D122: =ASIN!D122 -> 0.4555986734 | E122: =ASIN!E122 -> TRUE | F122: =ASIN!F122 -> 0
A123: =ASIN!A123 -> 0.43 | B123: =ASIN!B123 -> 25.46756014 | C123: =ASIN!C123 -> 0.4444927769 | D123: =ASIN!D123 -> 0.4444927769 | E123: =ASIN!E123 -> TRUE | F123: =ASIN!F123 -> 0
A124: =ASIN!A124 -> 0.41955566 | B124: =ASIN!B124 -> 24.80653763 | C124: =ASIN!C124 -> 0.4329557577 | D124: =ASIN!D124 -> 0.4329557577 | E124: =ASIN!E124 -> TRUE | F124: =ASIN!F124 -> 0
A125: =ASIN!A125 -> 0.40579224 | B125: =ASIN!B125 -> 23.94078251 | C125: =ASIN!C125 -> 0.4178454802 | D125: =ASIN!D125 -> 0.4178454802 | E125: =ASIN!E125 -> TRUE | F125: =ASIN!F125 -> 0
A126: =ASIN!A126 -> 0.3938 | B126: =ASIN!B126 -> 23.19115413 | C126: =ASIN!C126 -> 0.4047619969 | D126: =ASIN!D126 -> 0.4047619969 | E126: =ASIN!E126 -> TRUE | F126: =ASIN!F126 -> 0
A127: =ASIN!A127 -> 0.37 | B127: =ASIN!B127 -> 21.71561728 | C127: =ASIN!C127 -> 0.3790090207 | D127: =ASIN!D127 -> 0.3790090207 | E127: =ASIN!E127 -> TRUE | F127: =ASIN!F127 -> 0
A128: =ASIN!A128 -> 0.36895752 | B128: =ASIN!B128 -> 21.6513392 | C128: =ASIN!C128 -> 0.3778871566 | D128: =ASIN!D128 -> 0.3778871566 | E128: =ASIN!E128 -> TRUE | F128: =ASIN!F128 -> 0
A129: =ASIN!A129 -> 0.36 | B129: =ASIN!B129 -> 21.10019602 | C129: =ASIN!C129 -> 0.3682678934 | D129: =ASIN!D129 -> 0.3682678934 | E129: =ASIN!E129 -> TRUE | F129: =ASIN!F129 -> 0
A130: =ASIN!A130 -> 0.3438 | B130: =ASIN!B130 -> 20.10856051 | C130: =ASIN!C130 -> 0.3509605888 | D130: =ASIN!D130 -> 0.3509605888 | E130: =ASIN!E130 -> TRUE | F130: =ASIN!F130 -> 0
A131: =ASIN!A131 -> 0.33599854 | B131: =ASIN!B131 -> 19.63327008 | C131: =ASIN!C131 -> 0.3426652059 | D131: =ASIN!D131 -> 0.3426652059 | E131: =ASIN!E131 -> TRUE | F131: =ASIN!F131 -> 0
A132: =ASIN!A132 -> 0.32 | B132: =ASIN!B132 -> 18.66292488 | C132: =ASIN!C132 -> 0.3257294873 | D132: =ASIN!D132 -> 0.3257294873 | E132: =ASIN!E132 -> TRUE | F132: =ASIN!F132 -> 0
A133: =ASIN!A133 -> 0.3048 | B133: =ASIN!B133 -> 17.74613184 | C133: =ASIN!C133 -> 0.30972843 | D133: =ASIN!D133 -> 0.30972843 | E133: =ASIN!E133 -> TRUE | F133: =ASIN!F133 -> 0
A134: =ASIN!A134 -> 0.29208374 | B134: =ASIN!B134 -> 16.98274775 | C134: =ASIN!C134 -> 0.2964048644 | D134: =ASIN!D134 -> 0.2964048644 | E134: =ASIN!E134 -> TRUE | F134: =ASIN!F134 -> 0
A135: =ASIN!A135 -> 0.29 | B135: =ASIN!B135 -> 16.85795602 | C135: =ASIN!C135 -> 0.2942268377 | D135: =ASIN!D135 -> 0.2942268377 | E135: =ASIN!E135 -> TRUE | F135: =ASIN!F135 -> 0
A136: =ASIN!A136 -> 0.2613 | B136: =ASIN!B136 -> 15.14721353 | C136: =ASIN!C136 -> 0.2643687486 | D136: =ASIN!D136 -> 0.2643687486 | E136: =ASIN!E136 -> TRUE | F136: =ASIN!F136 -> 0
A137: =ASIN!A137 -> 0.25 | B137: =ASIN!B137 -> 14.47751219 | C137: =ASIN!C137 -> 0.2526802551 | D137: =ASIN!D137 -> 0.2526802551 | E137: =ASIN!E137 -> TRUE | F137: =ASIN!F137 -> 0
A138: =ASIN!A138 -> 0.2 | B138: =ASIN!B138 -> 11.53695903 | C138: =ASIN!C138 -> 0.2013579208 | D138: =ASIN!D138 -> 0.2013579208 | E138: =ASIN!E138 -> TRUE | F138: =ASIN!F138 -> 0
A139: =ASIN!A139 -> 0.17 | B139: =ASIN!B139 -> 9.787819057 | C139: =ASIN!C139 -> 0.1708296691 | D139: =ASIN!D139 -> 0.1708296691 | E139: =ASIN!E139 -> TRUE | F139: =ASIN!F139 -> 0
A140: =ASIN!A140 -> 0.13522339 | B140: =ASIN!B140 -> 7.771537644 | C140: =ASIN!C140 -> 0.1356389198 | D140: =ASIN!D140 -> 0.1356389198 | E140: =ASIN!E140 -> TRUE | F140: =ASIN!F140 -> 0
A141: =ASIN!A141 -> 0.13 | B141: =ASIN!B141 -> 7.469592316 | C141: =ASIN!C141 -> 0.1303689797 | D141: =ASIN!D141 -> 0.1303689797 | E141: =ASIN!E141 -> TRUE | F141: =ASIN!F141 -> 0
A142: =ASIN!A142 -> 0.10861206 | B142: =ASIN!B142 -> 6.235313095 | C142: =ASIN!C142 -> 0.1088267434 | D142: =ASIN!D142 -> 0.1088267434 | E142: =ASIN!E142 -> TRUE | F142: =ASIN!F142 -> 0
A143: =ASIN!A143 -> 0.09 | B143: =ASIN!B143 -> 5.163607091 | C143: =ASIN!C143 -> 0.09012194501 | D143: =ASIN!D143 -> 0.09012194501 | E143: =ASIN!E143 -> TRUE | F143: =ASIN!F143 -> 0
A144: =ASIN!A144 -> 0.08 | B144: =ASIN!B144 -> 4.588565736 | C144: =ASIN!C144 -> 0.08008558003 | D144: =ASIN!D144 -> 0.08008558003 | E144: =ASIN!E144 -> TRUE | F144: =ASIN!F144 -> 0
A145: =ASIN!A145 -> 0.07235718 | B145: =ASIN!B145 -> 4.149387146 | C145: =ASIN!C145 -> 0.07242046763 | D145: =ASIN!D145 -> 0.07242046763 | E145: =ASIN!E145 -> TRUE | F145: =ASIN!F145 -> 0
A146: =ASIN!A146 -> 0.05 | B146: =ASIN!B146 -> 2.865983983 | C146: =ASIN!C146 -> 0.05002085681 | D146: =ASIN!D146 -> 0.05002085681 | E146: =ASIN!E146 -> TRUE | F146: =ASIN!F146 -> 0
A147: =ASIN!A147 -> 0.0189 | B147: =ASIN!B147 -> 1.082954713 | C147: =ASIN!C147 -> 0.01890112539 | D147: =ASIN!D147 -> 0.01890112539 | E147: =ASIN!E147 -> TRUE | F147: =ASIN!F147 -> 0
A148: =ASIN!A148 -> -0.03 | B148: =ASIN!B148 -> -1.719131321 | C148: =ASIN!C148 -> -0.03000450182 | D148: =ASIN!D148 -> -0.03000450182 | E148: =ASIN!E148 -> TRUE | F148: =ASIN!F148 -> 0
A149: =ASIN!A149 -> -0.06240845 | B149: =ASIN!B149 -> -3.57806601 | C149: =ASIN!C149 -> -0.06244903273 | D149: =ASIN!D149 -> -0.06244903273 | E149: =ASIN!E149 -> TRUE | F149: =ASIN!F149 -> 0
A150: =ASIN!A150 -> -0.08 | B150: =ASIN!B150 -> -4.588565736 | C150: =ASIN!C150 -> -0.08008558003 | D150: =ASIN!D150 -> -0.08008558003 | E150: =ASIN!E150 -> TRUE | F150: =ASIN!F150 -> 0
A151: =ASIN!A151 -> -0.0814 | B151: =ASIN!B151 -> -4.669042313 | C151: =ASIN!C151 -> -0.08149016128 | D151: =ASIN!D151 -> -0.08149016128 | E151: =ASIN!E151 -> TRUE | F151: =ASIN!F151 -> 0
A152: =ASIN!A152 -> -0.1 | B152: =ASIN!B152 -> -5.739170477 | C152: =ASIN!C152 -> -0.1001674212 | D152: =ASIN!D152 -> -0.1001674212 | E152: =ASIN!E152 -> TRUE | F152: =ASIN!F152 -> 0
A153: =ASIN!A153 -> -0.116 | B153: =ASIN!B153 -> -6.661306867 | C153: =ASIN!C153 -> -0.1162617373 | D153: =ASIN!D153 -> -0.1162617373 | E153: =ASIN!E153 -> TRUE | F153: =ASIN!F153 -> 0
A154: =ASIN!A154 -> -0.13 | B154: =ASIN!B154 -> -7.469592316 | C154: =ASIN!C154 -> -0.1303689797 | D154: =ASIN!D154 -> -0.1303689797 | E154: =ASIN!E154 -> TRUE | F154: =ASIN!F154 -> 0
A155: =ASIN!A155 -> -0.15 | B155: =ASIN!B155 -> -8.626926559 | C155: =ASIN!C155 -> -0.1505682728 | D155: =ASIN!D155 -> -0.1505682728 | E155: =ASIN!E155 -> TRUE | F155: =ASIN!F155 -> 0
A156: =ASIN!A156 -> -0.18 | B156: =ASIN!B156 -> -10.36975981 | C156: =ASIN!C156 -> -0.1809864512 | D156: =ASIN!D156 -> -0.1809864512 | E156: =ASIN!E156 -> TRUE | F156: =ASIN!F156 -> 0
A157: =ASIN!A157 -> -0.24 | B157: =ASIN!B157 -> -13.88654036 | C157: =ASIN!C157 -> -0.242365851 | D157: =ASIN!D157 -> -0.242365851 | E157: =ASIN!E157 -> TRUE | F157: =ASIN!F157 -> 0
A158: =ASIN!A158 -> -0.2604 | B158: =ASIN!B158 -> -15.09379805 | C158: =ASIN!C158 -> -0.2634364725 | D158: =ASIN!D158 -> -0.2634364725 | E158: =ASIN!E158 -> TRUE | F158: =ASIN!F158 -> 0
A159: =ASIN!A159 -> -0.27 | B159: =ASIN!B159 -> -15.66426685 | C159: =ASIN!C159 -> -0.2733930315 | D159: =ASIN!D159 -> -0.2733930315 | E159: =ASIN!E159 -> TRUE | F159: =ASIN!F159 -> 0
A160: =ASIN!A160 -> -0.29064941 | B160: =ASIN!B160 -> -16.89683925 | C160: =ASIN!C160 -> -0.294905478 | D160: =ASIN!D160 -> -0.294905478 | E160: =ASIN!E160 -> TRUE | F160: =ASIN!F160 -> 0
A161: =ASIN!A161 -> -0.3 | B161: =ASIN!B161 -> -17.45760312 | C161: =ASIN!C161 -> -0.304692654 | D161: =ASIN!D161 -> -0.304692654 | E161: =ASIN!E161 -> TRUE | F161: =ASIN!F161 -> 0
A162: =ASIN!A162 -> -0.32 | B162: =ASIN!B162 -> -18.66292488 | C162: =ASIN!C162 -> -0.3257294873 | D162: =ASIN!D162 -> -0.3257294873 | E162: =ASIN!E162 -> TRUE | F162: =ASIN!F162 -> 0
A163: =ASIN!A163 -> -0.33 | B163: =ASIN!B163 -> -19.26877549 | C163: =ASIN!C163 -> -0.3363035752 | D163: =ASIN!D163 -> -0.3363035752 | E163: =ASIN!E163 -> TRUE | F163: =ASIN!F163 -> 0
A164: =ASIN!A164 -> -0.33868408 | B164: =ASIN!B164 -> -19.79672138 | C164: =ASIN!C164 -> -0.3455179692 | D164: =ASIN!D164 -> -0.3455179692 | E164: =ASIN!E164 -> TRUE | F164: =ASIN!F164 -> 0
A165: =ASIN!A165 -> -0.35 | B165: =ASIN!B165 -> -20.48731511 | C165: =ASIN!C165 -> -0.3575711036 | D165: =ASIN!D165 -> -0.3575711036 | E165: =ASIN!E165 -> TRUE | F165: =ASIN!F165 -> 0
A166: =ASIN!A166 -> -0.36651611 | B166: =ASIN!B166 -> -21.50091653 | C166: =ASIN!C166 -> -0.3752617856 | D166: =ASIN!D166 -> -0.3752617856 | E166: =ASIN!E166 -> TRUE | F166: =ASIN!F166 -> 0
A167: =ASIN!A167 -> -0.37 | B167: =ASIN!B167 -> -21.71561728 | C167: =ASIN!C167 -> -0.3790090207 | D167: =ASIN!D167 -> -0.3790090207 | E167: =ASIN!E167 -> TRUE | F167: =ASIN!F167 -> 0
A168: =ASIN!A168 -> -0.37 | B168: =ASIN!B168 -> -21.71561728 | C168: =ASIN!C168 -> -0.3790090207 | D168: =ASIN!D168 -> -0.3790090207 | E168: =ASIN!E168 -> TRUE | F168: =ASIN!F168 -> 0
A169: =ASIN!A169 -> -0.39974976 | B169: =ASIN!B169 -> -23.5625357 | C169: =ASIN!C169 -> -0.4112438281 | D169: =ASIN!D169 -> -0.4112438281 | E169: =ASIN!E169 -> TRUE | F169: =ASIN!F169 -> 0
A170: =ASIN!A170 -> -0.41 | B170: =ASIN!B170 -> -24.2048348 | C170: =ASIN!C170 -> -0.4224540622 | D170: =ASIN!D170 -> -0.4224540622 | E170: =ASIN!E170 -> TRUE | F170: =ASIN!F170 -> 0
A171: =ASIN!A171 -> -0.4294 | B171: =ASIN!B171 -> -25.42948866 | C171: =ASIN!C171 -> -0.4438283043 | D171: =ASIN!D171 -> -0.4438283043 | E171: =ASIN!E171 -> TRUE | F171: =ASIN!F171 -> 0
A172: =ASIN!A172 -> -0.4359 | B172: =ASIN!B172 -> -25.84257611 | C172: =ASIN!C172 -> -0.4510380403 | D172: =ASIN!D172 -> -0.4510380403 | E172: =ASIN!E172 -> TRUE | F172: =ASIN!F172 -> 0
A173: =ASIN!A173 -> -0.44799805 | B173: =ASIN!B173 -> -26.61531329 | C173: =ASIN!C173 -> -0.4645248483 | D173: =ASIN!D173 -> -0.4645248483 | E173: =ASIN!E173 -> TRUE | F173: =ASIN!F173 -> 0
A174: =ASIN!A174 -> -0.48 | B174: =ASIN!B174 -> -28.68540201 | C174: =ASIN!C174 -> -0.5006547124 | D174: =ASIN!D174 -> -0.5006547124 | E174: =ASIN!E174 -> TRUE | F174: =ASIN!F174 -> 0
A175: =ASIN!A175 -> -0.49609375 | B175: =ASIN!B175 -> -29.74189934 | C175: =ASIN!C175 -> -0.5190940693 | D175: =ASIN!D175 -> -0.5190940693 | E175: =ASIN!E175 -> TRUE | F175: =ASIN!F175 -> 0
A176: =ASIN!A176 -> -0.49963379 | B176: =ASIN!B176 -> -29.9757747 | C176: =ASIN!C176 -> -0.5231759643 | D176: =ASIN!D176 -> -0.5231759643 | E176: =ASIN!E176 -> TRUE | F176: =ASIN!F176 -> 0
A177: =ASIN!A177 -> -0.51 | B177: =ASIN!B177 -> -30.66382974 | C177: =ASIN!C177 -> -0.5351847903 | D177: =ASIN!D177 -> -0.5351847903 | E177: =ASIN!E177 -> TRUE | F177: =ASIN!F177 -> 0
A178: =ASIN!A178 -> -0.5305 | B178: =ASIN!B178 -> -32.03924404 | C178: =ASIN!C178 -> -0.5591902983 | D178: =ASIN!D178 -> -0.5591902983 | E178: =ASIN!E178 -> TRUE | F178: =ASIN!F178 -> 0
A179: =ASIN!A179 -> -0.5384 | B179: =ASIN!B179 -> -32.5747862 | C179: =ASIN!C179 -> -0.5685372723 | D179: =ASIN!D179 -> -0.5685372723 | E179: =ASIN!E179 -> TRUE | F179: =ASIN!F179 -> 0
A180: =ASIN!A180 -> -0.54394531 | B180: =ASIN!B180 -> -32.95261924 | C180: =ASIN!C180 -> -0.5751317029 | D180: =ASIN!D180 -> -0.5751317029 | E180: =ASIN!E180 -> TRUE | F180: =ASIN!F180 -> 0
A181: =ASIN!A181 -> -0.5582 | B181: =ASIN!B181 -> -33.93140693 | C181: =ASIN!C181 -> -0.5922147708 | D181: =ASIN!D181 -> -0.5922147708 | E181: =ASIN!E181 -> TRUE | F181: =ASIN!F181 -> 0
A182: =ASIN!A182 -> -0.56045532 | B182: =ASIN!B182 -> -34.087292 | C182: =ASIN!C182 -> -0.5949354786 | D182: =ASIN!D182 -> -0.5949354786 | E182: =ASIN!E182 -> TRUE | F182: =ASIN!F182 -> 0
A183: =ASIN!A183 -> -0.5678 | B183: =ASIN!B183 -> -34.59695511 | C183: =ASIN!C183 -> -0.6038307778 | D183: =ASIN!D183 -> -0.6038307778 | E183: =ASIN!E183 -> TRUE | F183: =ASIN!F183 -> 0
A184: =ASIN!A184 -> -0.58 | B184: =ASIN!B184 -> -35.45054264 | C184: =ASIN!C184 -> -0.6187286907 | D184: =ASIN!D184 -> -0.6187286907 | E184: =ASIN!E184 -> TRUE | F184: =ASIN!F184 -> 0
A185: =ASIN!A185 -> -0.58 | B185: =ASIN!B185 -> -35.45054264 | C185: =ASIN!C185 -> -0.6187286907 | D185: =ASIN!D185 -> -0.6187286907 | E185: =ASIN!E185 -> TRUE | F185: =ASIN!F185 -> 0
A186: =ASIN!A186 -> -0.61 | B186: =ASIN!B186 -> -37.58950296 | C186: =ASIN!C186 -> -0.6560605909 | D186: =ASIN!D186 -> -0.6560605909 | E186: =ASIN!E186 -> TRUE | F186: =ASIN!F186 -> 0
A187: =ASIN!A187 -> -0.62 | B187: =ASIN!B187 -> -38.31613447 | C187: =ASIN!C187 -> -0.6687427032 | D187: =ASIN!D187 -> -0.6687427032 | E187: =ASIN!E187 -> TRUE | F187: =ASIN!F187 -> 0
A188: =ASIN!A188 -> -0.64 | B188: =ASIN!B188 -> -39.7918195 | C188: =ASIN!C188 -> -0.6944982656 | D188: =ASIN!D188 -> -0.6944982656 | E188: =ASIN!E188 -> TRUE | F188: =ASIN!F188 -> 0
A189: =ASIN!A189 -> -0.6575 | B189: =ASIN!B189 -> -41.10948614 | C189: =ASIN!C189 -> -0.7174958869 | D189: =ASIN!D189 -> -0.7174958869 | E189: =ASIN!E189 -> TRUE | F189: =ASIN!F189 -> 0
A190: =ASIN!A190 -> -0.7182 | B190: =ASIN!B190 -> -45.90606837 | C190: =ASIN!C190 -> -0.8012120397 | D190: =ASIN!D190 -> -0.8012120397 | E190: =ASIN!E190 -> TRUE | F190: =ASIN!F190 -> 0
A191: =ASIN!A191 -> -0.74 | B191: =ASIN!B191 -> -47.73141557 | C191: =ASIN!C191 -> -0.8330703583 | D191: =ASIN!D191 -> -0.8330703583 | E191: =ASIN!E191 -> TRUE | F191: =ASIN!F191 -> 0
A192: =ASIN!A192 -> -0.77203369 | B192: =ASIN!B192 -> -50.53686533 | C192: =ASIN!C192 -> -0.8820346937 | D192: =ASIN!D192 -> -0.8820346937 | E192: =ASIN!E192 -> TRUE | F192: =ASIN!F192 -> 0
A193: =ASIN!A193 -> -0.78 | B193: =ASIN!B193 -> -51.2605754 | C193: =ASIN!C193 -> -0.8946658172 | D193: =ASIN!D193 -> -0.8946658172 | E193: =ASIN!E193 -> TRUE | F193: =ASIN!F193 -> 0
A194: =ASIN!A194 -> -0.80270386 | B194: =ASIN!B194 -> -53.38908325 | C194: =ASIN!C194 -> -0.9318152874 | D194: =ASIN!D194 -> -0.9318152874 | E194: =ASIN!E194 -> TRUE | F194: =ASIN!F194 -> 0
A195: =ASIN!A195 -> -0.82980347 | B195: =ASIN!B195 -> -56.07855491 | C195: =ASIN!C195 -> -0.978755423 | D195: =ASIN!D195 -> -0.978755423 | E195: =ASIN!E195 -> TRUE | F195: =ASIN!F195 -> 0
A196: =ASIN!A196 -> -0.85 | B196: =ASIN!B196 -> -58.21166938 | C196: =ASIN!C196 -> -1.015985294 | D196: =ASIN!D196 -> -1.015985294 | E196: =ASIN!E196 -> TRUE | F196: =ASIN!F196 -> 0
A197: =ASIN!A197 -> -0.86 | B197: =ASIN!B197 -> -59.31658289 | C197: =ASIN!C197 -> -1.035269672 | D197: =ASIN!D197 -> -1.035269672 | E197: =ASIN!E197 -> TRUE | F197: =ASIN!F197 -> 0
A198: =ASIN!A198 -> -0.91 | B198: =ASIN!B198 -> -65.50535153 | C198: =ASIN!C198 -> -1.143284062 | D198: =ASIN!D198 -> -1.143284062 | E198: =ASIN!E198 -> TRUE | F198: =ASIN!F198 -> 0
A199: =ASIN!A199 -> -0.91946411 | B199: =ASIN!B199 -> -66.84786379 | C199: =ASIN!C199 -> -1.166715321 | D199: =ASIN!D199 -> -1.166715321 | E199: =ASIN!E199 -> TRUE | F199: =ASIN!F199 -> 0
A200: =ASIN!A200 -> -0.93 | B200: =ASIN!B200 -> -68.43481498 | C200: =ASIN!C200 -> -1.194412844 | D200: =ASIN!D200 -> -1.194412844 | E200: =ASIN!E200 -> TRUE | F200: =ASIN!F200 -> 0
... 4300 more rows
